Nominativi dei beneficiari;Data mandato;Natura economica;Importo;Descrizione mandato;Numero mandato;TITNO_BL;2� livello;3� livello;4� livello;5� livello
STUDIO PICCHI ASSOCIATO;03/07/2017;Altre prestazioni professionali e specialistiche n.a.c.;2.385,01;LIQUIDAZIONE FATTURA NR. 000011-2017-FATTURE  DEL 11/05/2017 - AFFIDAMENTO SERVIZIO ELABORAZIONE PAGHE E CONTRIBUTI PERIODO 01/01/2017 -31/12/2017: IMPEGNO DI SPESA;2285;1;3;2;11;999
GIURICONSULT S.R.L.;03/07/2017;Accesso a banche dati e a pubblicazioni on line;16,00;IVA Liquidazione Fattura Nr. 255el  del 09/06/2017 (di cui Split per euro 16,00) - Rinnovo abbonamento Standard singolo a Lexitalia.it;2286;1;3;2;5;3
GIURICONSULT S.R.L.;03/07/2017;Accesso a banche dati e a pubblicazioni on line;400,00;Liquidazione Fattura Nr. 255el  del 09/06/2017 - Rinnovo abbonamento Standard singolo a Lexitalia.it;2286;1;3;2;5;3
S.E.P.E.L. S.A.S.;03/07/2017;Accesso a banche dati e a pubblicazioni on line;246,00;Liquidazione Fattura Nr. 2/2034  del 09/06/2017 - VENDITE ABB.RIV.;2286;1;3;2;5;3
TELECOM ITALIA SPA;03/07/2017;Telefonia mobile;14,96;IVA Liquidazione Fattura Nr. 6820170620000939  del 07/06/2017 (di cui Split per euro 14,96) - CONTO TELECOM ITALIA 4/2016 APRILE MAGGIO LINEA: 057113045291;2287;1;3;2;5;2
TELECOM ITALIA SPA;03/07/2017;Telefonia mobile;68,00;Liquidazione Fattura Nr. 6820170620000939  del 07/06/2017 - CONTO TELECOM ITALIA 4/2016 APRILE MAGGIO LINEA: 057113045291;2287;1;3;2;5;2
SOKOM SRL;03/07/2017;Servizi per i sistemi e relativa manutenzione;134,20;IVA Liquidazione Fattura Nr. 000007-2017-FATTPA  del 14/06/2017 (di cui Split per euro 134,20) - SOSTITUZIONE ACCESS POINT GUASTO PER FREE WIFI SU PALAZZO COMUNALE;2288;1;3;2;19;5
SOKOM SRL;03/07/2017;Servizi per i sistemi e relativa manutenzione;610,00;Liquidazione Fattura Nr. 000007-2017-FATTPA  del 14/06/2017 - SOSTITUZIONE ACCESS POINT GUASTO PER FREE WIFI SU PALAZZO COMUNALE;2288;1;3;2;19;5
TELECOM ITALIA SPA;03/07/2017;Servizi di rete per trasmissione dati e VoIP e relativa manutenzione;22,48;IVA Liquidazione Fattura Nr. 6820170620001240  del 08/06/2017 (di cui Split per euro 22,48) - CONTO TELECOM ITALIA 4/2016 APRILE MAGGIO LINEA: 057113046156;2289;1;3;2;19;4
TELECOM ITALIA SPA;03/07/2017;Servizi di rete per trasmissione dati e VoIP e relativa manutenzione;22,48;IVA Liquidazione Fattura Nr. 6820170620001246  del 08/06/2017 (di cui Split per euro 22,48) - CONTO TELECOM ITALIA 4/2016 APRILE MAGGIO LINEA : 057113046158;2289;1;3;2;19;4
TELECOM ITALIA SPA;03/07/2017;Servizi di rete per trasmissione dati e VoIP e relativa manutenzione;13,64;IVA Liquidazione Fattura Nr. 6820170620001319  del 08/06/2017 (di cui Split per euro 13,64) - CONTO TELECOM ITALIA 4/2016 APRILE MAGGIO LINEA : 057113342339;2289;1;3;2;19;4
TELECOM ITALIA SPA;03/07/2017;Servizi di rete per trasmissione dati e VoIP e relativa manutenzione;102,18;Liquidazione Fattura Nr. 6820170620001240  del 08/06/2017 - CONTO TELECOM ITALIA 4/2016 APRILE MAGGIO LINEA: 057113046156;2289;1;3;2;19;4
TELECOM ITALIA SPA;03/07/2017;Servizi di rete per trasmissione dati e VoIP e relativa manutenzione;102,18;Liquidazione Fattura Nr. 6820170620001246  del 08/06/2017 - CONTO TELECOM ITALIA 4/2016 APRILE MAGGIO LINEA : 057113046158;2289;1;3;2;19;4
TELECOM ITALIA SPA;03/07/2017;Servizi di rete per trasmissione dati e VoIP e relativa manutenzione;62,00;Liquidazione Fattura Nr. 6820170620001319  del 08/06/2017 - CONTO TELECOM ITALIA 4/2016 APRILE MAGGIO LINEA : 057113342339;2289;1;3;2;19;4
TELECOM ITALIA SPA;03/07/2017;Servizi di rete per trasmissione dati e VoIP e relativa manutenzione;1,90;IVA Liquidazione Fattura Nr. 6820170620000938  del 07/06/2017 (di cui Split per euro 1,90) - CONTO TELECOM ITALIA 4/2016 APRILE MAGGIO LINEA : 057113046155  CIG :  Z5915A5067;2290;1;3;2;19;4
TELECOM ITALIA SPA;03/07/2017;Servizi di rete per trasmissione dati e VoIP e relativa manutenzione;20,58;IVA Liquidazione Fattura Nr. 6820170620000938  del 07/06/2017 (di cui Split per euro 20,58) - CONTO TELECOM ITALIA 4/2016 APRILE MAGGIO LINEA : 057113046155  CIG :  Z5915A5067;2290;1;3;2;19;4
TELECOM ITALIA SPA;03/07/2017;Servizi di rete per trasmissione dati e VoIP e relativa manutenzione;102,18;Liquidazione Fattura Nr. 6820170620000938  del 07/06/2017 - CONTO TELECOM ITALIA 4/2016 APRILE MAGGIO LINEA : 057113046155  CIG :  Z5915A5067;2290;1;3;2;19;4
TELECOM ITALIA SPA;03/07/2017;Servizi di rete per trasmissione dati e VoIP e relativa manutenzione;14,96;IVA Liquidazione Fattura Nr. 6820170620000937  del 07/06/2017 (di cui Split per euro 14,96) - CONTO TELECOM ITALIA 4/2016 APRILE MAGGIO LINEA: 057113045436  CIG :  Z4419D9E67;2291;1;3;2;19;4
TELECOM ITALIA SPA;03/07/2017;Servizi di rete per trasmissione dati e VoIP e relativa manutenzione;68,00;Liquidazione Fattura Nr. 6820170620000937  del 07/06/2017 - CONTO TELECOM ITALIA 4/2016 APRILE MAGGIO LINEA: 057113045436  CIG :  Z4419D9E67;2291;1;3;2;19;4
TELECOM ITALIA SPA;03/07/2017;Servizi di rete per trasmissione dati e VoIP e relativa manutenzione;22,48;IVA Liquidazione Fattura Nr. 6820170620001245  del 08/06/2017 (di cui Split per euro 22,48) - CONTO TELECOM ITALIA 4/2016 APRILE MAGGIO  LINEA : 057113046159;2292;1;3;2;19;4
TELECOM ITALIA SPA;03/07/2017;Servizi di rete per trasmissione dati e VoIP e relativa manutenzione;102,18;Liquidazione Fattura Nr. 6820170620001245  del 08/06/2017 - CONTO TELECOM ITALIA 4/2016 APRILE MAGGIO  LINEA : 057113046159;2292;1;3;2;19;4
TELECOM ITALIA SPA;03/07/2017;Servizi di rete per trasmissione dati e VoIP e relativa manutenzione;22,48;IVA Liquidazione Fattura Nr. 6820170620001277  del 08/06/2017 (di cui Split per euro 22,48) - CONTO TELECOM ITALIA 4/2016 APRILE MAGGIO LINEA: 057113046157;2293;1;3;2;19;4
TELECOM ITALIA SPA;03/07/2017;Servizi di rete per trasmissione dati e VoIP e relativa manutenzione;102,18;Liquidazione Fattura Nr. 6820170620001277  del 08/06/2017 - CONTO TELECOM ITALIA 4/2016 APRILE MAGGIO LINEA: 057113046157;2293;1;3;2;19;4
MAGGIOLI S.P.A.;03/07/2017;Carta, cancelleria e stampati;51,04;IVA - Liquidazione Fattura Nr. 0002117069  del 30/04/2017 (di cui Split per euro 51,04) - FORNITURA PER UFFICIO ANAGRAFE E STATO CIVILE ;2295;1;3;1;2;1
MAGGIOLI S.P.A.;03/07/2017;Carta, cancelleria e stampati;232,00;Liquidazione Fattura Nr. 0002117069  del 30/04/2017 - FORNITURA PER UFFICIO ANAGRAFE E STATO CIVILE ;2295;1;3;1;2;1
DAMAZ S.R.L. - INGROSSO CASALINGHI;03/07/2017;Altri beni e materiali di consumo n.a.c.;0,59;IVA Liquidazione Fattura Nr. 11015P  del 26/04/2017 (di cui Split per euro 0,59) - ORDINE N. 1 MATERIALE PULIZIE E IGIENE PER EDIFICI COMUNALI - 3� CONSEGNA;2296;1;3;1;2;999
DAMAZ S.R.L. - INGROSSO CASALINGHI;03/07/2017;Altri beni e materiali di consumo n.a.c.;2,70;Liquidazione Fattura Nr. 11015P  del 26/04/2017 - ORDINE N. 1 MATERIALE PULIZIE E IGIENE PER EDIFICI COMUNALI - 3� CONSEGNA;2296;1;3;1;2;999
DAMAZ S.R.L. - INGROSSO CASALINGHI;03/07/2017;Altri beni e materiali di consumo n.a.c.;1,98;IVA Liquidazione Fattura Nr. 11014P  del 26/04/2017 (di cui Split per euro 1,98) - ORDINE N. 1 MATERIALE PULIZIA E IGIENE PER MUSEI - 3� CONSEGNA;2297;1;3;1;2;999
DAMAZ S.R.L. - INGROSSO CASALINGHI;03/07/2017;Altri beni e materiali di consumo n.a.c.;9,00;Liquidazione Fattura Nr. 11014P  del 26/04/2017 - ORDINE N. 1 MATERIALE PULIZIA E IGIENE PER MUSEI - 3� CONSEGNA;2297;1;3;1;2;999
COOPERATIVA SOCIALE ZOE S.C.A.R.L.;03/07/2017;Servizi di pulizia e lavanderia;222,06;IVA Liquidazione Fattura Nr. FATTPA 95_17  del 30/04/2017 (di cui Split per euro 222,06) - PULIZIA EDIFICIO COMUNALE (GENERALE) APRILE 2017;2298;1;3;2;13;2
COOPERATIVA SOCIALE ZOE S.C.A.R.L.;03/07/2017;Servizi di pulizia e lavanderia;1.009,36;Liquidazione Fattura Nr. FATTPA 95_17  del 30/04/2017 - PULIZIA EDIFICIO COMUNALE (GENERALE) APRILE 2017;2298;1;3;2;13;2
COOPERATIVA SOCIALE ZOE S.C.A.R.L.;03/07/2017;Servizi di pulizia e lavanderia;28,65;IVA Liquidazione Fattura Nr. FATTPA 96_17  del 30/04/2017 (di cui Split per euro 28,65) - PULIZIA BIBLIOTECHE APRILE 2017;2299;1;3;2;13;2
COOPERATIVA SOCIALE ZOE S.C.A.R.L.;03/07/2017;Servizi di pulizia e lavanderia;130,24;Liquidazione Fattura Nr. FATTPA 96_17  del 30/04/2017 - PULIZIA BIBLIOTECHE APRILE 2017;2299;1;3;2;13;2
COOPERATIVA SOCIALE ZOE S.C.A.R.L.;03/07/2017;Servizi di pulizia e lavanderia;250,71;IVA Liquidazione Fattura Nr. FATTPA 99_17  del 30/04/2017 (di cui Split per euro 250,71) - PULIZIA PALESTRE APRILE 2017;2300;1;3;2;13;2
COOPERATIVA SOCIALE ZOE S.C.A.R.L.;03/07/2017;Servizi di pulizia e lavanderia;1.139,60;Liquidazione Fattura Nr. FATTPA 99_17  del 30/04/2017 - PULIZIA PALESTRE APRILE 2017;2300;1;3;2;13;2
COOPERATIVA SOCIALE ZOE S.C.A.R.L.;03/07/2017;Servizi di pulizia e lavanderia;26,49;IVA Liquidazione Fattura Nr. FATTPA 100_17  del 30/04/2017 (di cui Split per euro 26,49) - PULIZIE NUOVO UFFICIO TURISTICO COMUNALE APRILE 2017;2301;1;3;2;13;2
COOPERATIVA SOCIALE ZOE S.C.A.R.L.;03/07/2017;Servizi di pulizia e lavanderia;120,40;Liquidazione Fattura Nr. FATTPA 100_17  del 30/04/2017 - PULIZIE NUOVO UFFICIO TURISTICO COMUNALE APRILE 2017;2301;1;3;2;13;2
CIR FOOD S.C. DIVISIONE EUDANIA;03/07/2017;Contratti di servizio per le mense scolastiche;776,14;IVA-Liquidazione Fattura Nr. 5200012591  del 30/04/2017 (di cui Split per euro 776,14) - SERVIZIO REFEZIONE SCOLASTICA MESE DI APRILE 2017;2302;1;3;2;15;6
CIR FOOD S.C. DIVISIONE EUDANIA;03/07/2017;Contratti di servizio per le mense scolastiche;19.403,48;Liquidazione Fattura Nr. 5200012591  del 30/04/2017 - SERVIZIO REFEZIONE SCOLASTICA MESE DI APRILE 2017;2302;1;3;2;15;6
EREDI LEPORATTI S.A.S.;03/07/2017;Contratti di servizio di trasporto pubblico;77,92;IVA Liquidazione Fattura Nr. 4/E  del 02/05/2017 (di cui Split per euro 77,92) - Servizio NAVETTA a chiamata Vinci-Anchiano-Vinci e Vinci-Empoli Stazione-Vinci periodo 01/04/2017 - 30/04/2017   (APRILE 2017);2303;1;3;2;15;1
EREDI LEPORATTI S.A.S.;03/07/2017;Contratti di servizio di trasporto pubblico;779,22;Liquidazione Fattura Nr. 4/E  del 02/05/2017 - Servizio NAVETTA a chiamata Vinci-Anchiano-Vinci e Vinci-Empoli Stazione-Vinci periodo 01/04/2017 - 30/04/2017   (APRILE 2017);2303;1;3;2;15;1
ARCA - COOPERATIVA SOCIALE A R.L.;03/07/2017;Contratti di servizio di asilo nido;1.403,39;IVA-Liquidazione Fattura Nr. E-495  del 04/05/2017 (di cui Split per euro 1.403,39) - GESTIONE SERVIZIO EDUCATIVO NIDO COMUNALE MESE DI APRILE 2017;2304;1;3;2;15;10
ARCA - COOPERATIVA SOCIALE A R.L.;03/07/2017;Contratti di servizio di asilo nido;202,50;IVA-Liquidazione Fattura Nr. E-496  del 04/05/2017 (di cui Split per euro 202,50) - GESTIONE SERVIZIO REFEZIONE NIDO COMUNALE MESE DI APRILE 2017;2304;1;3;2;15;10
ARCA - COOPERATIVA SOCIALE A R.L.;03/07/2017;Contratti di servizio di asilo nido;35.084,67;Liquidazione Fattura Nr. E-495  del 04/05/2017 - GESTIONE SERVIZIO EDUCATIVO NIDO COMUNALE MESE DI APRILE 2017;2304;1;3;2;15;10
ARCA - COOPERATIVA SOCIALE A R.L.;03/07/2017;Contratti di servizio di asilo nido;5.062,57;Liquidazione Fattura Nr. E-496  del 04/05/2017 - GESTIONE SERVIZIO REFEZIONE NIDO COMUNALE MESE DI APRILE 2017;2304;1;3;2;15;10
ESKIMO COOP. SOCIALE ONLUS;03/07/2017;Altre spese per contratti di servizio pubblico;7.184,50;Liquidazione Fattura Nr. FATTPA 40_17  del 28/04/2017 - SERVIZI EDUCATIVI PER L'INFANZIA ED EXTRASCOLASTICI VILLA REGHINI MESE DI APRILE 2017;2305;1;3;2;15;999
"PENSIONE PER CANI E GATTI ""CERTOSA"" S.R.L.";04/07/2017;Contratti di servizio per la lotta al randagismo ;176,64;IVA Liquidazione Fattura Nr. FATTPA 29_17  del 10/05/2017 (di cui Split per euro 176,64) - AGGIUD DEF EFFICACE APPALTO DEL SERVIZIO DI RICOVERO, CUSTODIA, MANTENIMENTO E CURA DI CANI ABBANDONATI E FERITI AI SENSI DELLA LE;2306;1;3;2;15;11
"PENSIONE PER CANI E GATTI ""CERTOSA"" S.R.L.";04/07/2017;Contratti di servizio per la lotta al randagismo ;170,94;IVA Liquidazione Fattura Nr. FATTPA 30_17  del 10/05/2017 (di cui Split per euro 170,94) - AGGIUD DEFIN EFFICACE DELL'APPALTO DEL SERVIZIO DI RICOVERO, CUSTODIA, MANTENIMENTO E CURA DI CANI ABBANDONATI E FERITI AI SENSI DELLA LE;2306;1;3;2;15;11
"PENSIONE PER CANI E GATTI ""CERTOSA"" S.R.L.";04/07/2017;Contratti di servizio per la lotta al randagismo ;802,90;Liquidazione Fattura Nr. FATTPA 29_17  del 10/05/2017 - AGGIUDICAZIONE DEFINITIVA ED EFFICACE DELL'APPALTO DEL SERVIZIO DI RICOVERO, CUSTODIA, MANTENIMENTO E CURA DI CANI ABBANDONATI E FERITI AI SENSI DELLA LEGGE REGIONALE TOSCANA N. 59 DEL;2306;1;3;2;15;11
"PENSIONE PER CANI E GATTI ""CERTOSA"" S.R.L.";04/07/2017;Contratti di servizio per la lotta al randagismo ;777,00;Liquidazione Fattura Nr. FATTPA 30_17  del 10/05/2017 - AGGIUDICAZIONE DEFINITIVA ED EFFICACE DELL'APPALTO DEL SERVIZIO DI RICOVERO, CUSTODIA, MANTENIMENTO E CURA DI CANI ABBANDONATI E FERITI AI SENSI DELLA LEGGE REGIONALE TOSCANA N. 59 DEL;2306;1;3;2;15;11
DGM SICUREZZA SRLS;04/07/2017;Manutenzione ordinaria e riparazioni di impianti e macchinari;431,20;IVA - Liquidazione Fattura Nr. 87/PA  del 30/04/2017 (di cui Split per euro 431,20) - MANUTENZIONE ORDINARIA A E RIPARAZIONE DI IMPIANTO DI RILEVAZIONE FUMI DEL MAGAZZINO COMUNALE_DET. 55/2017;2307;1;3;2;9;4
DGM SICUREZZA SRLS;04/07/2017;Manutenzione ordinaria e riparazioni di impianti e macchinari;1.960,00;Liquidazione Fattura Nr. 87/PA  del 30/04/2017 - MANUTENZIONE ORDINARIA A E RIPARAZIONE DI IMPIANTO DI RILEVAZIONE FUMI DEL MAGAZZINO COMUNALE_DET. 55/2017;2307;1;3;2;9;4
SOC.ING.MAGNANI SRL;04/07/2017;Altri beni e materiali di consumo n.a.c.;158,48;IVA-Liquidazione Fattura Nr. 38/10  del 28/04/2017 (di cui Split per euro 158,48) - FORNITURA STABILIZZATO PER MANUTENZIONE STRADE VICINALI - DETERMINA N. 59 DEL 28.03.2017 - CIG: ZA81E055AB;2308;1;3;1;2;999
SOC.ING.MAGNANI SRL;04/07/2017;Altri beni e materiali di consumo n.a.c.;720,36;Liquidazione Fattura Nr. 38/10  del 28/04/2017 - FORNITURA STABILIZZATO PER MANUTENZIONE STRADE VICINALI - DETERMINA N. 59 DEL 28.03.2017 - CIG: ZA81E055AB;2308;1;3;1;2;999
ENERGRID S.P.A.;04/07/2017;Energia elettrica;2.499,80;IVA-Liqu. Fattura Nr. 174016570  del 12/06/2017 (di cui Split per euro 2.499,80) - FORNITURA ENERGIA ELETTRICA PER P.I. MAGGIO 2017 Fattura Nr. 174016570 del 12-06-2017;2309;1;3;2;5;4
ENERGRID S.P.A.;04/07/2017;Energia elettrica;11.362,74;Liquidazione Fattura Nr. 174016570  del 12/06/2017 - FORNITURA ENERGIA ELETTRICA PER P.I. MAGGIO 2017;2309;1;3;2;5;4
LOW COST SERVICE SNC DI ASCARI ANDREA  & C.;04/07/2017;Attrezzature n.a.c.;23,98;"IVA - Liquidazione Fattura Nr. P/30  del 16/02/2017 - KIT Armadietto metallico da muro 42,5x45,2x16cm porta defibrillatore con sistema di allarme e sirena 100 db + Cartello DAE e kit di rianimazione	1";2310;2;2;1;5;999
LOW COST SERVICE SNC DI ASCARI ANDREA  & C.;04/07/2017;Attrezzature n.a.c.;109,00;"Liquidazione Fattura Nr. P/30  del 16/02/2017 - KIT Armadietto metallico da muro 42,5x45,2x16cm porta defibrillatore con sistema di allarme e sirena 100 db + Cartello DAE e kit di rianimazione	1";2310;2;2;1;5;999
SOC.ING.MAGNANI SRL;04/07/2017;Infrastrutture idrauliche;240,01;IVA-Liquidazione Fattura Nr. 39/10  del 28/04/2017 (di cui Split per euro 240,01) - LAVORI PREPARATORI ALL'INSTALLAZIONE DI UN FONTANELLO IN P.ZZA DEL POPOLO A VITOLINI;2311;2;2;1;9;10
SOC.ING.MAGNANI SRL;04/07/2017;Infrastrutture idrauliche;2.400,14;Liquidazione Fattura Nr. 39/10  del 28/04/2017 - LAVORI PREPARATORI ALL'INSTALLAZIONE DI UN FONTANELLO IN P.ZZA DEL POPOLO A VITOLINI;2311;2;2;1;9;10
LOTTI GEOL. GIUSEPPE;04/07/2017;Infrastrutture stradali;5.887,08;LIQUIDAZIONE FATTURA NR. 00003  DEL 09/05/2017 - INCARICO REDFAZIONE RELAZIONE GEOLOGICA LAVORI DI RIQUALIFICAZIONE SP 13 MONTALBANO;2312;2;2;1;9;12
IL LABORATORIO S.R.L .;04/07/2017;Manutenzione ordinaria e riparazioni di oggetti di valore;360,65;IVA su Liquidazione Fattura Nr. 7 del 11/05/2017 - Interventi di restauro su volumi a stampa di pregio della Biblioteca Leonardiana di Vinci;2313;1;3;2;9;10
IL LABORATORIO S.R.L .;04/07/2017;Manutenzione ordinaria e riparazioni di oggetti di valore;1.639,34;Liquidazione Fattura Nr. 7 del 11/05/2017 - Interventi di restauro su volumi a stampa di pregio della Biblioteca Leonardiana di Vinci;2313;1;3;2;9;10
ETRURIA P.A. SRL;04/07/2017;Stampa e rilegatura;1.152,00;"Liquidazione Fattura Nr. 288/00000  del 15/02/2017 - AFFIDAMENTO DEL SERVIZIO DI STAMPA DI GUIDE DEL MUSEO LEONARDIANO ""GIOCAMUSEO"" MEDIANTE PORCEDURA NEGOZIATA EX ART. 36 COMMA 2 LETTERA B) DEL D.LGS 50/2016 - IMPEGNO DI SPESA";2314;1;3;2;13;4
ETRURIA P.A. SRL;04/07/2017;Stampa e rilegatura;253,44;"Liquidazione Fattura Nr. 288/00000  del 15/02/2017 (di cui Split per euro 253,44) - AFFIDAMENTO DEL SERVIZIO DI STAMPA DI GUIDE DEL MUSEO LEONARDIANO ""GIOCAMUSEO"" MEDIANTE PORCEDURA NEGOZIATA EX ART. 36 COMMA 2 LETTERA B) DEL D.LGS 50/2016 ";2314;1;3;2;13;4
ETRURIA P.A. SRL;04/07/2017;Stampa e rilegatura;24,20;IVA - Liquidazione Fattura Nr. 876/00000  del 30/04/2017 (di cui Split per euro 24,20) - STAMPA DI MATERIALE INFORMATIVO PER MUSEO LEONARDIANO E UFFICIO TURISTICO - AFFIDAMENTO TRAMITE START E IMPEGNO DI SPESA;2315;1;3;2;13;4
ETRURIA P.A. SRL;04/07/2017;Stampa e rilegatura;110,00;Liquidazione Fattura Nr. 876/00000  del 30/04/2017 - STAMPA DI MATERIALE INFORMATIVO PER MUSEO LEONARDIANO E UFFICIO TURISTICO - AFFIDAMENTO TRAMITE START E IMPEGNO DI SPESA;2315;1;3;2;13;4
ARTMEDIASTUDIO DI V.CAPALBO E M.BERTOZZI ARCHITETTI;04/07/2017;Altre prestazioni professionali e specialistiche n.a.c.;4.510,80;LIQUIDAZIONE FATTURA NR. 1 PA  DEL 31/03/2017 - TRASFORMAZIONE VIDEOINSTALLAZIONE INCONTRO CON LEONARDO ALLA CASA NATALE DI LEONARDO;2316;1;3;2;11;999
LATINI  CLAUDIO;04/07/2017;Altre prestazioni professionali e specialistiche n.a.c.;1.205,36;LIQUIDAZIONE FATTURA NR. 000007-2017-PA  DEL 28/04/2017 - PRESTAZIONE PROFESSIONALE PER DUVRI SERVIZI MUSEALI;2317;1;3;2;11;999
BERTI SIMONE;04/07/2017;Attrezzature n.a.c.;2.532,35;Liquidazione Fattura Nr. 00195 del 22/05/2017 - ACQUISTO LAMPADE E FILTRI PER ALLESTIMENTO MUSEALE CASA NATALE DI LEONARDO AD ANCHIANO;2318;2;2;1;5;999
C.C.N. VINCINCENTRO;06/07/2017;Trasferimenti correnti a Istituzioni Sociali Private ;2.000,00;CCN VINCNCENTRO - CONCESSIONE CONTRIBUTO PER EVENTI IN PROGRAMMA ANNO 2017;2323;1;4;4;1;1
GENERALI ITALIA SPA;06/07/2017;Altri premi di assicurazione contro i danni;511,00;PAGAMENTO COPERTURA ASSICURATIVA I DELL'ENTE DAL 30/06/2017 AL 31/12/2017 KASKO VEICOLI DIPENDENTI IN MISSIONE ;2324;1;10;4;1;999
GENERALI ITALIA SPA;06/07/2017;Premi di assicurazione per responsabilit� civile verso terzi;255,50;PAGAMENTO  COPERTURA ASSICURATIVA  DELL'ENTE RESPONSABILITA' CIVILE AUTOVEICOLI DAL 30/06/2017 AL 31/12/2017;2324;1;10;4;1;3
GENERALI ITALIA SPA;06/07/2017;Premi di assicurazione per responsabilit� civile verso terzi;12.750,00;PAGAMENTO  COPERTURA ASSICURATIVA DELL'ENTE DAL 30/06/2017 AL 31/12/2017  RESP.CIVILE VERSO TERZI E PRESTATORI DI LAVORO- AGGIUDICAZIONE DEFINITIVA;2324;1;10;4;1;3
GENERALI ITALIA SPA;06/07/2017;Premi di assicurazione per responsabilit� civile verso terzi;600,00;PAGAMENTO DELLA COPERTURA ASSICURATIVA DELL'ENTE RESP.CIVILE PATRIMONIALE DAL 30/06/2017 AL 31/12/2017;2324;1;10;4;1;3
GENERALI ITALIA SPA;06/07/2017;Premi di assicurazione su beni immobili;4.651,00;PAGAMENTO  COPERTURA ASSICURATIVA DELL'ENTE POLIZZA INCENDIO BENI MOBILI ED IMMOBILI DAL 30/06/2017 AL 31/12/2017;2324;1;10;4;1;2
GENERALI ITALIA SPA;06/07/2017;Premi di assicurazione su beni mobili;1.579,00;PAGAMENTO COPERTURA ASSICURATIVA  DELL'ENTE  INFORTUNI CONDUC.VEICOLI, INFORTUNI AMMINISTRATORI, DANNI IMPIANTI E APPARECCH.ELETTR. DAL 30/06/2017 AL 31/12/2017 ;2324;1;10;4;1;1
GENERALI ITALIA SPA;06/07/2017;Premi di assicurazione su beni mobili;700,50;PAGAMENTO COPERTURA ASSICURATIVA  DELL'ENTE FURTO BENI MOBILI, VALORI, DENARO E PORTAVALORI DAL 30/06/2017 AL 31/12/2017;2324;1;10;4;1;1
GENERALI ITALIA SPA;06/07/2017;Premi di assicurazione su beni mobili;6.000,00;PAGAMENTO COPERTURA ASSICURATIVA  DELL'ENTE RESPONSABILITA' CIVILE  AUTOVEICOLI DAL 30/06/2017 AL 31/12/2017 ;2324;1;10;4;1;1
ENERGETIC S.P.A.;06/07/2017;Gas;63,73;IVA - Liquidazione Fattura Nr. EX27239/2017  del 13/06/2017 (di cui Split per euro 63,73) - FORNITURA RISCALDAMENTO UFFICI SPICCHIO;2325;1;3;2;5;6
ENERGETIC S.P.A.;06/07/2017;Gas;9,20;IVA - Liquidazione Fattura Nr. EX27276/2017  del 13/06/2017 (di cui Split per euro 9,20) - FORNITURA RISCALDAMENTO PALAZZO COMUNALE;2325;1;3;2;5;6
ENERGETIC S.P.A.;06/07/2017;Gas;6,28;IVA - Liquidazione Fattura Nr. EX27278/2017  del 13/06/2017 (di cui Split per euro 6,28) - FORNITURA RISCALDAMENTO MAGAZZINO;2325;1;3;2;5;6
ENERGETIC S.P.A.;06/07/2017;Gas;290,37;Liquidazione Fattura Nr. EX27239/2017  del 13/06/2017 - FORNITURA RISCALDAMENTO UFFICI SPICCHIO;2325;1;3;2;5;6
ENERGETIC S.P.A.;06/07/2017;Gas;42,51;Liquidazione Fattura Nr. EX27276/2017  del 13/06/2017 - FORNITURA RISCALDAMENTO PALAZZO COMUNALE;2325;1;3;2;5;6
ENERGETIC S.P.A.;06/07/2017;Gas;28,53;Liquidazione Fattura Nr. EX27278/2017  del 13/06/2017 - FORNITURA RISCALDAMENTO MAGAZZINO;2325;1;3;2;5;6
EDISON ENERGIA S.P.A.;06/07/2017;Energia elettrica;4,51;IVA-Liquidazione Fattura Nr. 5750432514  del 12/06/2017 (di cui Split per euro 4,51) - IT001E04919522 -- Fornitura energia elettrica locali ex macelli mese di maggio 2017;2326;1;3;2;5;4
EDISON ENERGIA S.P.A.;06/07/2017;Energia elettrica;4,51;IVA-Liquidazione Fattura Nr. 5750432515  del 12/06/2017 (di cui Split per euro 4,51) - IT001E04919533 -- Fornitura energia elettrica uggicio dismesso Via Torre, 3 mese di maggio 2017;2326;1;3;2;5;4
EDISON ENERGIA S.P.A.;06/07/2017;Energia elettrica;4,60;IVA-Liquidazione Fattura Nr. 5750432587  del 12/06/2017 (di cui Split per euro 4,60) - IT001E40889318 -- Fornitura energia elettrica casa Comparini mese di maggio 2017;2326;1;3;2;5;4
EDISON ENERGIA S.P.A.;06/07/2017;Energia elettrica;2,47;IVA-Liquidazione Fattura Nr. 5750432765  del 12/06/2017 (di cui Split per euro 2,47) - IT001E41741369 -- Fornitura energia elettrica alloggi Petroio mese di maggio 2017;2326;1;3;2;5;4
EDISON ENERGIA S.P.A.;06/07/2017;Energia elettrica;6,31;IVA-Liquidazione Fattura Nr. 5750432894  del 12/06/2017 (di cui Split per euro 6,31) - IT001E04919530 -- Fornitura energia elettrica ex scuola di Anchiano mese di maggio 2017;2326;1;3;2;5;4
EDISON ENERGIA S.P.A.;06/07/2017;Energia elettrica;11,62;IVA-Liquidazione Fattura Nr. 5750433650  del 12/06/2017 (di cui Split per euro 11,62) - IT001E04919532 -- Fornitura energia elettrica uffici comunali Via Torre, 9 mese di maggio 2017;2326;1;3;2;5;4
EDISON ENERGIA S.P.A.;06/07/2017;Energia elettrica;56,64;IVA-Liquidazione Fattura Nr. 5750435187  del 12/06/2017 (di cui Split per euro 56,64) - IT001E04919524 -- Fornitura energia elettrica magazzino comunale mese di maggio 2017;2326;1;3;2;5;4
EDISON ENERGIA S.P.A.;06/07/2017;Energia elettrica;57,78;IVA-Liquidazione Fattura Nr. 5750435200  del 12/06/2017 (di cui Split per euro 57,78) - IT001E04919536 -- Fornitura energia elettrica uffici Comunali Via Battisti mese di maggio 2017;2326;1;3;2;5;4
EDISON ENERGIA S.P.A.;06/07/2017;Energia elettrica;223,11;IVA-Liquidazione Fattura Nr. 5750436076  del 12/06/2017 (di cui Split per euro 223,11) - IT001E04919523 -- Fornitura energia elettrica edificio Comunale mese di maggio 2017;2326;1;3;2;5;4
EDISON ENERGIA S.P.A.;06/07/2017;Energia elettrica;20,49;Liquidazione Fattura Nr. 5750432514  del 12/06/2017 - IT001E04919522 -- Fornitura energia elettrica locali ex macelli mese di maggio 2017;2326;1;3;2;5;4
EDISON ENERGIA S.P.A.;06/07/2017;Energia elettrica;20,49;Liquidazione Fattura Nr. 5750432515  del 12/06/2017 - IT001E04919533 -- Fornitura energia elettrica uggicio dismesso Via Torre, 3 mese di maggio 2017;2326;1;3;2;5;4
EDISON ENERGIA S.P.A.;06/07/2017;Energia elettrica;20,92;Liquidazione Fattura Nr. 5750432587  del 12/06/2017 - IT001E40889318 -- Fornitura energia elettrica casa Comparini mese di maggio 2017;2326;1;3;2;5;4
EDISON ENERGIA S.P.A.;06/07/2017;Energia elettrica;24,74;Liquidazione Fattura Nr. 5750432765  del 12/06/2017 - IT001E41741369 -- Fornitura energia elettrica alloggi Petroio mese di maggio 2017;2326;1;3;2;5;4
EDISON ENERGIA S.P.A.;06/07/2017;Energia elettrica;28,67;Liquidazione Fattura Nr. 5750432894  del 12/06/2017 - IT001E04919530 -- Fornitura energia elettrica ex scuola di Anchiano mese di maggio 2017;2326;1;3;2;5;4
EDISON ENERGIA S.P.A.;06/07/2017;Energia elettrica;52,80;Liquidazione Fattura Nr. 5750433650  del 12/06/2017 - IT001E04919532 -- Fornitura energia elettrica uffici comunali Via Torre, 9 mese di maggio 2017;2326;1;3;2;5;4
EDISON ENERGIA S.P.A.;06/07/2017;Energia elettrica;257,47;Liquidazione Fattura Nr. 5750435187  del 12/06/2017 - IT001E04919524 -- Fornitura energia elettrica magazzino comunale mese di maggio 2017;2326;1;3;2;5;4
EDISON ENERGIA S.P.A.;06/07/2017;Energia elettrica;262,62;Liquidazione Fattura Nr. 5750435200  del 12/06/2017 - IT001E04919536 -- Fornitura energia elettrica uffici Comunali Via Battisti mese di maggio 2017;2326;1;3;2;5;4
EDISON ENERGIA S.P.A.;06/07/2017;Energia elettrica;1.014,13;Liquidazione Fattura Nr. 5750436076  del 12/06/2017 - IT001E04919523 -- Fornitura energia elettrica edificio Comunale mese di maggio 2017;2326;1;3;2;5;4
EDISON ENERGIA S.P.A.;06/07/2017;Energia elettrica;11,96;IVA-Liquidazione Fattura Nr. 5750433687  del 12/06/2017 (di cui Split per euro 11,96) - IT001E04919527 -- Fornitura energia elettrica archivio comunale mese di maggio 2017;2327;1;3;2;5;4
EDISON ENERGIA S.P.A.;06/07/2017;Energia elettrica;38,27;IVA-Liquidazione Fattura Nr. 5750434818  del 12/06/2017 (di cui Split per euro 38,27) - IT001E04919519 -- Fornitura energia elettrica URP Via Fucini mese di maggio 2017;2327;1;3;2;5;4
EDISON ENERGIA S.P.A.;06/07/2017;Energia elettrica;54,38;Liquidazione Fattura Nr. 5750433687  del 12/06/2017 - IT001E04919527 -- Fornitura energia elettrica archivio comunale mese di maggio 2017;2327;1;3;2;5;4
EDISON ENERGIA S.P.A.;06/07/2017;Energia elettrica;173,97;Liquidazione Fattura Nr. 5750434818  del 12/06/2017 - IT001E04919519 -- Fornitura energia elettrica URP Via Fucini mese di maggio 2017;2327;1;3;2;5;4
ENERGETIC S.P.A.;06/07/2017;Gas;7,93;IVA - Liquidazione Fattura Nr. EX26784/2017  del 13/06/2017 (di cui Split per euro 7,93) - FORNITURA RISCALDAMENTO SCUOLA INFANZIA VINCI;2328;1;3;2;5;6
ENERGETIC S.P.A.;06/07/2017;Gas;54,98;IVA - Liquidazione Fattura Nr. EX26785/2017  del 13/06/2017 (di cui Split per euro 54,98) - FORNITURA RISCALDAMENTO SCUOLA INFANZIA SPICCHIO;2328;1;3;2;5;6
ENERGETIC S.P.A.;06/07/2017;Gas;80,01;IVA - Liquidazione Fattura Nr. EX27113/2017  del 13/06/2017 (di cui Split per euro 80,01) - FORNITURA RISCALDAMENTO SCUOLA INFANZIA SOVIGLIANA;2328;1;3;2;5;6
ENERGETIC S.P.A.;06/07/2017;Gas;36,72;Liquidazione Fattura Nr. EX26784/2017  del 13/06/2017 - FORNITURA RISCALDAMENTO SCUOLA INFANZIA VINCI;2328;1;3;2;5;6
ENERGETIC S.P.A.;06/07/2017;Gas;250,61;Liquidazione Fattura Nr. EX26785/2017  del 13/06/2017 - FORNITURA RISCALDAMENTO SCUOLA INFANZIA SPICCHIO;2328;1;3;2;5;6
ENERGETIC S.P.A.;06/07/2017;Gas;364,38;Liquidazione Fattura Nr. EX27113/2017  del 13/06/2017 - FORNITURA RISCALDAMENTO SCUOLA INFANZIA SOVIGLIANA;2328;1;3;2;5;6
ACQUE S.P.A.;06/07/2017;Acqua;85,49;IVA - Liquidazione Fattura Nr. 6017012000007010  del 20/06/2017 (di cui Split per euro 85,49) - FORNITURA ACQUA POTABILE SCUOLA INFANZIA VINCI;2329;1;3;2;5;5
ACQUE S.P.A.;06/07/2017;Acqua;32,03;IVA - Liquidazione Fattura Nr. 6017012000007107  del 21/06/2017 (di cui Split per euro 32,03) - FORNITURA ACQUA POTABILE SCUOLA INFANZIA VINCI;2329;1;3;2;5;5
ACQUE S.P.A.;06/07/2017;Acqua;854,87;Liquidazione Fattura Nr. 6017012000007010  del 20/06/2017 - FORNITURA ACQUA POTABILE SCUOLA INFANZIA VINCI;2329;1;3;2;5;5
ACQUE S.P.A.;06/07/2017;Acqua;320,29;Liquidazione Fattura Nr. 6017012000007107  del 21/06/2017 - FORNITURA ACQUA POTABILE SCUOLA INFANZIA VINCI;2329;1;3;2;5;5
EDISON ENERGIA S.P.A.;06/07/2017;Energia elettrica;31,51;IVA-Liquidazione Fattura Nr. 5750434608  del 12/06/2017 (di cui Split per euro 31,51) - IT001E04919515 -- Fornitura energia elettrica scuola infanzia Spicchio  mese di maggio 2017;2330;1;3;2;5;4
EDISON ENERGIA S.P.A.;06/07/2017;Energia elettrica;63,75;IVA-Liquidazione Fattura Nr. 5750435276  del 12/06/2017 (di cui Split per euro 63,75) - IT001E04919535 -- Fornitura energia elettrica scuola infanzia Vinci mese di maggio 2017;2330;1;3;2;5;4
EDISON ENERGIA S.P.A.;06/07/2017;Energia elettrica;123,97;IVA-Liquidazione Fattura Nr. 5750435791  del 12/06/2017 (di cui Split per euro 123,97) - IT001E04919538 -- Fornitura energia elettrica scuola infanzia Sovigliana mese di maggio 2017;2330;1;3;2;5;4
EDISON ENERGIA S.P.A.;06/07/2017;Energia elettrica;143,23;Liquidazione Fattura Nr. 5750434608  del 12/06/2017 - IT001E04919515 -- Fornitura energia elettrica scuola infanzia Spicchio  mese di maggio 2017;2330;1;3;2;5;4
EDISON ENERGIA S.P.A.;06/07/2017;Energia elettrica;289,78;Liquidazione Fattura Nr. 5750435276  del 12/06/2017 - IT001E04919535 -- Fornitura energia elettrica scuola infanzia Vinci mese di maggio 2017;2330;1;3;2;5;4
EDISON ENERGIA S.P.A.;06/07/2017;Energia elettrica;563,48;Liquidazione Fattura Nr. 5750435791  del 12/06/2017 - IT001E04919538 -- Fornitura energia elettrica scuola infanzia Sovigliana mese di maggio 2017;2330;1;3;2;5;4
ENERGETIC S.P.A.;06/07/2017;Gas;13,40;IVA - Liquidazione Fattura Nr. EX27237/2017  del 13/06/2017 (di cui Split per euro 13,40) - FORNITURA RISCALDAMENTO SCUOLA PRIMARIA SPICCHIO;2331;1;3;2;5;6
ENERGETIC S.P.A.;06/07/2017;Gas;9,12;IVA - Liquidazione Fattura Nr. EX27289/2017  del 13/06/2017 (di cui Split per euro 9,12) - FORNITURA RISCALDAMENTO SCUOLA PRIMARIA E SECONDARIA DI PRIMO GRADO VINCI;2331;1;3;2;5;6
ENERGETIC S.P.A.;06/07/2017;Gas;61,58;Liquidazione Fattura Nr. EX27237/2017  del 13/06/2017 - FORNITURA RISCALDAMENTO SCUOLA PRIMARIA SPICCHIO;2331;1;3;2;5;6
ENERGETIC S.P.A.;06/07/2017;Gas;41,80;Liquidazione Fattura Nr. EX27289/2017  del 13/06/2017 - FORNITURA RISCALDAMENTO SCUOLA PRIMARIA E SECONDARIA DI PRIMO GRADO VINCI;2331;1;3;2;5;6
ACQUE S.P.A.;06/07/2017;Acqua;68,72;IVA - Liquidazione Fattura Nr. 6017012000006729  del 16/06/2017 (di cui Split per euro 68,72) - FORNITURA ACQUA POTABILE SCUOLA PRIMARIA VINCI;2332;1;3;2;5;5
ACQUE S.P.A.;06/07/2017;Acqua;687,18;Liquidazione Fattura Nr. 6017012000006729  del 16/06/2017 - FORNITURA ACQUA POTABILE SCUOLA PRIMARIA VINCI;2332;1;3;2;5;5
EDISON ENERGIA S.P.A.;06/07/2017;Energia elettrica;81,54;IVA-Liquidazione Fattura Nr. 5750435484  del 12/06/2017 (di cui Split per euro 81,54) - IT001E04919516 -- Fornitura energia elettrica scuola primaria Via Guiducci mese di maggio 2017;2333;1;3;2;5;4
EDISON ENERGIA S.P.A.;06/07/2017;Energia elettrica;56,98;IVA-Liquidazione Fattura Nr. 5750435730  del 12/06/2017 (di cui Split per euro 56,98) - IT001E04919520 -- Fornitura energia elettrica scuola primaria e secondaria 1� grado di Vinci mese di maggio 2017;2333;1;3;2;5;4
EDISON ENERGIA S.P.A.;06/07/2017;Energia elettrica;370,62;Liquidazione Fattura Nr. 5750435484  del 12/06/2017 - IT001E04919516 -- Fornitura energia elettrica scuola primaria Via Guiducci mese di maggio 2017;2333;1;3;2;5;4
EDISON ENERGIA S.P.A.;06/07/2017;Energia elettrica;259,01;Liquidazione Fattura Nr. 5750435730  del 12/06/2017 - IT001E04919520 -- Fornitura energia elettrica scuola primaria e secondaria 1� grado di Vinci mese di maggio 2017;2333;1;3;2;5;4
ENERGETIC S.P.A.;06/07/2017;Gas;13,16;IVA - Liquidazione Fattura Nr. EX27236/2017  del 13/06/2017 (di cui Split per euro 13,16) - FORNITURA RISCALDAMENTO SCUOLA SECONDARIA DI PRIMO GRADO SOVIGLIANA;2334;1;3;2;5;6
ENERGETIC S.P.A.;06/07/2017;Gas;9,12;IVA - Liquidazione Fattura Nr. EX27289/2017  del 13/06/2017 (di cui Split per euro 9,12) - FORNITURA RISCALDAMENTO SCUOLA PRIMARIA E SECONDARIA DI PRIMO GRADO VINCI;2334;1;3;2;5;6
ENERGETIC S.P.A.;06/07/2017;Gas;60,48;Liquidazione Fattura Nr. EX27236/2017  del 13/06/2017 - FORNITURA RISCALDAMENTO SCUOLA SECONDARIA DI PRIMO GRADO SOVIGLIANA;2334;1;3;2;5;6
ENERGETIC S.P.A.;06/07/2017;Gas;41,79;Liquidazione Fattura Nr. EX27289/2017  del 13/06/2017 - FORNITURA RISCALDAMENTO SCUOLA PRIMARIA E SECONDARIA DI PRIMO GRADO VINCI;2334;1;3;2;5;6
ACQUE S.P.A.;06/07/2017;Acqua;109,49;IVA - Liquidazione Fattura Nr. 6017012000006765  del 16/06/2017 (di cui Split per euro 109,49) - FORNITURA ACQUA POTABILE SCUOLA MEDIA SOVIGLIANA;2335;1;3;2;5;5
ACQUE S.P.A.;06/07/2017;Acqua;63,23;IVA - Liquidazione Fattura Nr. 6017012000007233  del 23/06/2017 (di cui Split per euro 63,23) - FORNITURA ACQUA POTABILE SCUOLA SECONDARIA VINCI;2335;1;3;2;5;5
ACQUE S.P.A.;06/07/2017;Acqua;1.094,91;Liquidazione Fattura Nr. 6017012000006765  del 16/06/2017 - FORNITURA ACQUA POTABILE SCUOLA MEDIA SOVIGLIANA;2335;1;3;2;5;5
ACQUE S.P.A.;06/07/2017;Acqua;632,30;Liquidazione Fattura Nr. 6017012000007233  del 23/06/2017 - FORNITURA ACQUA POTABILE SCUOLA SECONDARIA VINCI;2335;1;3;2;5;5
EDISON ENERGIA S.P.A.;06/07/2017;Energia elettrica;56,98;IVA-Liquidazione Fattura Nr. 5750435730  del 12/06/2017 (di cui Split per euro 56,98) - IT001E04919520 -- Fornitura energia elettrica scuola primaria e secondaria 1� grado di Vinci mese di maggio 2017;2336;1;3;2;5;4
EDISON ENERGIA S.P.A.;06/07/2017;Energia elettrica;122,09;IVA-Liquidazione Fattura Nr. 5750435776  del 12/06/2017 (di cui Split per euro 122,09) - IT001E40886806 -- Fornitura energia elettrica scuola secondaria di 1� grado di Sovigliana mese di maggio 2017;2336;1;3;2;5;4
EDISON ENERGIA S.P.A.;06/07/2017;Energia elettrica;259,01;Liquidazione Fattura Nr. 5750435730  del 12/06/2017 - IT001E04919520 -- Fornitura energia elettrica scuola primaria e secondaria 1� grado di Vinci mese di maggio 2017;2336;1;3;2;5;4
EDISON ENERGIA S.P.A.;06/07/2017;Energia elettrica;554,95;Liquidazione Fattura Nr. 5750435776  del 12/06/2017 - IT001E40886806 -- Fornitura energia elettrica scuola secondaria di 1� grado di Sovigliana mese di maggio 2017;2336;1;3;2;5;4
EDISON ENERGIA S.P.A.;06/07/2017;Energia elettrica;53,08;IVA-Liquidazione Fattura Nr. 5750435117  del 12/06/2017 (di cui Split per euro 53,08) - IT001E04919521 -- Fornitura energia elettrica Biblioteca mese di maggio 2017;2337;1;3;2;5;4
EDISON ENERGIA S.P.A.;06/07/2017;Energia elettrica;241,28;Liquidazione Fattura Nr. 5750435117  del 12/06/2017 - IT001E04919521 -- Fornitura energia elettrica Biblioteca mese di maggio 2017;2337;1;3;2;5;4
ACQUE S.P.A.;06/07/2017;Acqua;41,63;IVA - Liquidazione Fattura Nr. 6017012000007181  del 22/06/2017 (di cui Split per euro 41,63) - FORNITURA ACQUA POTABILE PALAZZINA;2338;1;3;2;5;5
ACQUE S.P.A.;06/07/2017;Acqua;416,26;Liquidazione Fattura Nr. 6017012000007181  del 22/06/2017 - FORNITURA ACQUA POTABILE PALAZZINA;2338;1;3;2;5;5
EDISON ENERGIA S.P.A.;06/07/2017;Energia elettrica;77,79;IVA-Liquidazione Fattura Nr. 5750435455  del 12/06/2017 (di cui Split per euro 77,79) - IT001E04919529 -- Fornitura energia elettrica casa natale Leonardo mese di maggio 2017;2339;1;3;2;5;4
EDISON ENERGIA S.P.A.;06/07/2017;Energia elettrica;146,05;IVA-Liquidazione Fattura Nr. 5750435876  del 12/06/2017 (di cui Split per euro 146,05) - IT001E04919531 -- Fornitura energia elettrica museo Leonardiano mese di maggio 2017;2339;1;3;2;5;4
EDISON ENERGIA S.P.A.;06/07/2017;Energia elettrica;266,50;IVA-Liquidazione Fattura Nr. 5750436123  del 12/06/2017 (di cui Split per euro 266,50) - IT001E04919528 -- Fornitura energia elettrica Palazzina Uzielli mese di maggio 2017;2339;1;3;2;5;4
EDISON ENERGIA S.P.A.;06/07/2017;Energia elettrica;353,60;Liquidazione Fattura Nr. 5750435455  del 12/06/2017 - IT001E04919529 -- Fornitura energia elettrica casa natale Leonardo mese di maggio 2017;2339;1;3;2;5;4
EDISON ENERGIA S.P.A.;06/07/2017;Energia elettrica;663,87;Liquidazione Fattura Nr. 5750435876  del 12/06/2017 - IT001E04919531 -- Fornitura energia elettrica museo Leonardiano mese di maggio 2017;2339;1;3;2;5;4
EDISON ENERGIA S.P.A.;06/07/2017;Energia elettrica;1.211,36;Liquidazione Fattura Nr. 5750436123  del 12/06/2017 - IT001E04919528 -- Fornitura energia elettrica Palazzina Uzielli mese di maggio 2017;2339;1;3;2;5;4
EDISON ENERGIA S.P.A.;06/07/2017;Energia elettrica;61,83;IVA-Liquidazione Fattura Nr. 5750435252  del 12/06/2017 (di cui Split per euro 61,83) - IT001E40889726 -- Fornitura energia elettrica teatro misericordia  mese di maggio 2017;2340;1;3;2;5;4
EDISON ENERGIA S.P.A.;06/07/2017;Energia elettrica;281,03;Liquidazione Fattura Nr. 5750435252  del 12/06/2017 - IT001E40889726 -- Fornitura energia elettrica teatro misericordia  mese di maggio 2017;2340;1;3;2;5;4
ACQUE S.P.A.;06/07/2017;Acqua;19,50;IVA - Liquidazione Fattura Nr. 6017012000006769  del 16/06/2017 (di cui Split per euro 19,50) - FORNITURA ACQUA POTABILE PALASPORT 40%;2341;1;3;2;5;5
ACQUE S.P.A.;06/07/2017;Acqua;28,80;IVA - Liquidazione Fattura Nr. 6017012000006769  del 16/06/2017 (di cui Split per euro 48,30) - FORNITURA ACQUA POTABILE PALASPORT 60%;2341;1;3;2;5;5
ACQUE S.P.A.;06/07/2017;Acqua;193,22;Liquidazione Fattura Nr. 6017012000006769  del 16/06/2017 - FORNITURA ACQUA POTABILE PALASPORT 40%;2341;1;3;2;5;5
ACQUE S.P.A.;06/07/2017;Acqua;289,80;Liquidazione Fattura Nr. 6017012000006769  del 16/06/2017 - FORNITURA ACQUA POTABILE PALASPORT 60%;2341;1;3;2;5;5
ENERGETIC S.P.A.;06/07/2017;Gas;3,87;IVA - Liquidazione Fattura Nr. EX27293/2017  del 13/06/2017 (di cui Split per euro 3,87) - FORNITURA RISCALDAMENTO PALASPORT 40%;2342;1;3;2;5;6
ENERGETIC S.P.A.;06/07/2017;Gas;6,00;IVA - Liquidazione Fattura Nr. EX27293/2017  del 13/06/2017 (di cui Split per euro 9,87) - FORNITURA RISCALDAMENTO PALASPORT 60%;2342;1;3;2;5;6
ENERGETIC S.P.A.;06/07/2017;Gas;17,95;Liquidazione Fattura Nr. EX27293/2017  del 13/06/2017 - FORNITURA RISCALDAMENTO PALASPORT 40%;2342;1;3;2;5;6
ENERGETIC S.P.A.;06/07/2017;Gas;27,60;Liquidazione Fattura Nr. EX27293/2017  del 13/06/2017 - FORNITURA RISCALDAMENTO PALASPORT 60%;2342;1;3;2;5;6
EDISON ENERGIA S.P.A.;06/07/2017;Energia elettrica;28,08;IVA-Liquidazione Fattura Nr. 5750435366  del 12/06/2017 (di cui Split per euro 28,08) - IT001E41412665 -- Fornitura energia elettrica palasport mese di maggio 2017;2343;1;3;2;5;4
EDISON ENERGIA S.P.A.;06/07/2017;Energia elettrica;42,11;IVA-Liquidazione Fattura Nr. 5750435366  del 12/06/2017 (di cui Split per euro 70,19) - IT001E41412665 -- Fornitura energia elettrica palasport mese di maggio 2017;2343;1;3;2;5;4
EDISON ENERGIA S.P.A.;06/07/2017;Energia elettrica;319,06;Liquidazione Fattura Nr. 5750435366  del 12/06/2017 - IT001E41412665 -- Fornitura energia elettrica palasport mese di maggio 2017;2343;1;3;2;5;4
EDISON ENERGIA S.P.A.;06/07/2017;Energia elettrica;5,51;IVA-Liquidazione Fattura Nr. 5750432774  del 12/06/2017 (di cui Split per euro 5,51) - IT001E04919518 -- Fornitura energia elettrica Pilomat mese di maggio 2017;2344;1;3;2;5;4
EDISON ENERGIA S.P.A.;06/07/2017;Energia elettrica;8,58;IVA-Liquidazione Fattura Nr. 5750433300  del 12/06/2017 (di cui Split per euro 8,58) - IT001E04919543 -- Fornitura energia elettrica mercato settimanale e impianto irrigazione mese di maggio 2017;2344;1;3;2;5;4
EDISON ENERGIA S.P.A.;06/07/2017;Energia elettrica;14,88;IVA-Liquidazione Fattura Nr. 5750433916  del 12/06/2017 (di cui Split per euro 14,88) - IT001E04919517 -- Fornitura energia elettrica cassa espansione Piccaratico mese di maggio 2017;2344;1;3;2;5;4
EDISON ENERGIA S.P.A.;06/07/2017;Energia elettrica;25,06;Liquidazione Fattura Nr. 5750432774  del 12/06/2017 - IT001E04919518 -- Fornitura energia elettrica Pilomat mese di maggio 2017;2344;1;3;2;5;4
EDISON ENERGIA S.P.A.;06/07/2017;Energia elettrica;39,02;Liquidazione Fattura Nr. 5750433300  del 12/06/2017 - IT001E04919543 -- Fornitura energia elettrica mercato settimanale e impianto irrigazione mese di maggio 2017;2344;1;3;2;5;4
EDISON ENERGIA S.P.A.;06/07/2017;Energia elettrica;67,63;Liquidazione Fattura Nr. 5750433916  del 12/06/2017 - IT001E04919517 -- Fornitura energia elettrica cassa espansione Piccaratico mese di maggio 2017;2344;1;3;2;5;4
ACQUE S.P.A.;06/07/2017;Acqua;2,97;iva - Liquidazione Fattura Nr. 6017012000006562  del 15/06/2017 (di cui Split per euro 2,97) - FORNITURA ACQUA POTABILE FONTANELLO;2345;1;3;2;5;5
ACQUE S.P.A.;06/07/2017;Acqua;47,59;IVA - Liquidazione Fattura Nr. 6017012000006978  del 20/06/2017 (di cui Split per euro 47,59) - FORNITURA ACQUA POTABILE FONTANELLO ;2345;1;3;2;5;5
ACQUE S.P.A.;06/07/2017;Acqua;55,07;IVA - Liquidazione Fattura Nr. 6017012000006994  del 20/06/2017 (di cui Split per euro 55,07) - FORNITURA ACQUA POTABILE ROTATORIA;2345;1;3;2;5;5
ACQUE S.P.A.;06/07/2017;Acqua;4,29;IVA - Liquidazione Fattura Nr. 6017012000007059  del 21/06/2017 (di cui Split per euro 4,29) - FORNITURA ACQUA POTABILE IDRANTE;2345;1;3;2;5;5
ACQUE S.P.A.;06/07/2017;Acqua;102,07;IVA - Liquidazione Fattura Nr. 6017012000007167  del 22/06/2017 (di cui Split per euro 102,07) - FORNITURA ACQUA POTABILE ROTATORIA;2345;1;3;2;5;5
ACQUE S.P.A.;06/07/2017;Acqua;29,70;Liquidazione Fattura Nr. 6017012000006562  del 15/06/2017 - FORNITURA ACQUA POTABILE FONTANELLO;2345;1;3;2;5;5
ACQUE S.P.A.;06/07/2017;Acqua;475,93;Liquidazione Fattura Nr. 6017012000006978  del 20/06/2017 - FORNITURA ACQUA POTABILE FONTANELLO ;2345;1;3;2;5;5
ACQUE S.P.A.;06/07/2017;Acqua;550,66;Liquidazione Fattura Nr. 6017012000006994  del 20/06/2017 - FORNITURA ACQUA POTABILE ROTATORIA;2345;1;3;2;5;5
ACQUE S.P.A.;06/07/2017;Acqua;42,88;Liquidazione Fattura Nr. 6017012000007059  del 21/06/2017 - FORNITURA ACQUA POTABILE IDRANTE;2345;1;3;2;5;5
ACQUE S.P.A.;06/07/2017;Acqua;1.020,65;Liquidazione Fattura Nr. 6017012000007167  del 22/06/2017 - FORNITURA ACQUA POTABILE ROTATORIA;2345;1;3;2;5;5
EDISON ENERGIA S.P.A.;06/07/2017;Energia elettrica;15,33;IVA-Liquidazione Fattura Nr. 5750433949  del 12/06/2017 - IT001E04919525 -- fornitura elettrica ufficio turistico nuovo mese di maggio 2017;2346;1;3;2;5;4
EDISON ENERGIA S.P.A.;06/07/2017;Energia elettrica;69,68;Liquidazione Fattura Nr. 5750433949  del 12/06/2017 - IT001E04919525 -- fornitura elettrica ufficio turistico nuovo mese di maggio 2017;2346;1;3;2;5;4
EDISON ENERGIA S.P.A.;06/07/2017;Energia elettrica;10,85;IVA-Liquidazione Fattura Nr. 5750433590  del 12/06/2017 (di cui Split per euro 10,85) - IT001E41398842 -- Fornitura energia elettrica fontanello Parco Mille mese di maggio 2017;2347;1;3;2;5;4
EDISON ENERGIA S.P.A.;06/07/2017;Energia elettrica;49,32;Liquidazione Fattura Nr. 5750433590  del 12/06/2017 - IT001E41398842 -- Fornitura energia elettrica fontanello Parco Mille mese di maggio 2017;2347;1;3;2;5;4
EDISON ENERGIA S.P.A.;06/07/2017;Energia elettrica;54,00;IVA-Liquidazione Fattura Nr. 5750435136  del 12/06/2017 (di cui Split per euro 54,00) - IT001E04919544 -- Fornitura energia elettrica Nido Comunale mese di maggio 2017;2348;1;3;2;5;4
EDISON ENERGIA S.P.A.;06/07/2017;Energia elettrica;245,46;Liquidazione Fattura Nr. 5750435136  del 12/06/2017 - IT001E04919544 -- Fornitura energia elettrica Nido Comunale mese di maggio 2017;2348;1;3;2;5;4
ACQUE S.P.A.;06/07/2017;Acqua;35,17;IVA - Liquidazione Fattura Nr. 6017012000007399  del 26/06/2017 (di cui Split per euro 35,17) - FORNITURA ACQUA POTABILE NIDO;2349;1;3;2;5;5
ACQUE S.P.A.;06/07/2017;Acqua;351,65;Liquidazione Fattura Nr. 6017012000007399  del 26/06/2017 - FORNITURA ACQUA POTABILE NIDO;2349;1;3;2;5;5
ENERGETIC S.P.A.;06/07/2017;Gas;1,70;IVA - Liquidazione Fattura Nr. EX27210/2017  del 13/06/2017 (di cui Split per euro 1,70) - FORNITURA RISCALDAMENTO NIDO;2350;1;3;2;5;6
ENERGETIC S.P.A.;06/07/2017;Gas;8,40;Liquidazione Fattura Nr. EX27210/2017  del 13/06/2017 - FORNITURA RISCALDAMENTO NIDO;2350;1;3;2;5;6
EDISON ENERGIA S.P.A.;06/07/2017;Energia elettrica;48,30;IVA-Liquidazione Fattura Nr. 5750435021  del 12/06/2017 (di cui Split per euro 48,30) - IT001E04919540 -- Fornitura energia elettrica Villa Reghini mese di maggio 2017;2351;1;3;2;5;4
EDISON ENERGIA S.P.A.;06/07/2017;Energia elettrica;219,55;Liquidazione Fattura Nr. 5750435021  del 12/06/2017 - IT001E04919540 -- Fornitura energia elettrica Villa Reghini mese di maggio 2017;2351;1;3;2;5;4
ENERGETIC S.P.A.;06/07/2017;Gas;105,86;IVA - Liquidazione Fattura Nr. EX27211/2017  del 13/06/2017 (di cui Split per euro 105,86) - FORNITURA RISCALDAMENTO VILLA REGHINI;2352;1;3;2;5;6
ENERGETIC S.P.A.;06/07/2017;Gas;481,85;Liquidazione Fattura Nr. EX27211/2017  del 13/06/2017 - FORNITURA RISCALDAMENTO VILLA REGHINI;2352;1;3;2;5;6
ACQUE S.P.A.;06/07/2017;Acqua;86,85;IVA - Liquidazione Fattura Nr. 6017012000007152  del 22/06/2017 (di cui Split per euro 86,85) - FORNITURA ACQUA POTABILE RESIDENZA ANZIANI;2353;1;3;2;5;5
ACQUE S.P.A.;06/07/2017;Acqua;868,54;Liquidazione Fattura Nr. 6017012000007152  del 22/06/2017 - FORNITURA ACQUA POTABILE RESIDENZA ANZIANI;2353;1;3;2;5;5
ENERGETIC S.P.A.;06/07/2017;Gas;63,68;IVA - Liquidazione Fattura Nr. EX27251/2017  del 13/06/2017 (di cui Split per euro 63,68) - FORNITURA RISCALDAMENTO R.S.A.;2354;1;3;2;5;6
ENERGETIC S.P.A.;06/07/2017;Gas;290,12;Liquidazione Fattura Nr. EX27251/2017  del 13/06/2017 - FORNITURA RISCALDAMENTO R.S.A.;2354;1;3;2;5;6
EDISON ENERGIA S.P.A.;06/07/2017;Energia elettrica;70,18;IVA-Liquidazione Fattura Nr. 5750435365  del 12/06/2017 (di cui Split per euro 70,18) - IT001E04919534 -- Fornitura energia elettrica residenza per anziani mese di maggio 2017;2355;1;3;2;5;4
EDISON ENERGIA S.P.A.;06/07/2017;Energia elettrica;319,00;Liquidazione Fattura Nr. 5750435365  del 12/06/2017 - IT001E04919534 -- Fornitura energia elettrica residenza per anziani mese di maggio 2017;2355;1;3;2;5;4
SELMI DI SELMI ANDREA & SELMI FRANCESCO S.N.C.;07/07/2017;Altri beni e materiali di consumo n.a.c.;1,50;PAGAMENTO BUONO ECONOMALE NR. 200050 - ACQUISTO BENI PER MANUT.SEDI ISTITUZIONALI- FATTA COPIA CHIAVE UFFICIO PERSONALE PER CONSERVAZIONE DOCUMENTI;2356;1;3;1;2;999
ISTITUTO GEOGRAFICO MILITARE;07/07/2017;Carta, cancelleria e stampati;60,00;PAGAMENTO BUONO ECONOMALE NR. 200046 - ACQUISTO CARTA CANCELLERIA E STAMPATI PER L'UFFICIO TECNICO - SPESE PER FOTO SATELLITARI DELL'UFFICIO URBANISTICA;2357;1;3;1;2;1
BAZAR CINELLI DI CINELLI ILARIA E PAOLO;07/07/2017;Carta, cancelleria e stampati;8,00;PAGAMENTO BUONO ECONOMALE NR. 200048 - ASSEGNAZIONE PER ACQUISTO DI CARTA MATERIALE VARIO E STAMPATI MINIMI PER UFFICIO- ACQUISTE CARTELLINE TRASPARENTI CON FORATURA LATERALE UNIVERSALE;2358;1;3;1;2;1
BELLINI ORO DI PAOLO BELLINI;07/07/2017;Carta, cancelleria e stampati;60,00;PAGAMENTO BUONO ECONOMALE NR. 200051 - ACQUISTO MATERIALE VARIO DI CANCELLERIA  PER GLI UFFICI -ACQUISTO PENNA PER LA CELEBRAZIONE DEI MATRIMONI CIVILI NELLE SEDI ISTITUZIONALI;2358;1;3;1;2;1
PEROREL ELETTRONICA DI ORELLI CLAUDIO;07/07/2017;Carta, cancelleria e stampati;5,50;PAGAMENTO BUONO ECONOMALE NR. 200049 - ASSEGNAZIONE PER ACQUISTO DI CARTA MATERIALE VARIO E STAMPATI MINIMI PER UFFICIO ACQUISTO 4 PILE STILO PER MOUSE WIRE LESS DELL'UFFICIO RAGIONERIA;2358;1;3;1;2;1
POSTE ITALIANE SPA SOCIETA' CON SOCIO UNICO;07/07/2017;Spese postali;92,16;PAGAMENTO BUONO ECONOMALE NR. 200047 - SPEDIZIONI DI PACCHI POSTALI URGENTI SPEDIZIONE DI UN PACCO POSTALE URGENTE AD HONG KONG MATERIALE INFORMATIVO PER MOSTRA LEONARDIANA;2359;1;3;2;16;2
ERARIO DELLO STATO PER PAGAMENTO I.V.A.;13/07/2017;Versamenti IVA a debito per le gestioni commerciali;4.682,90;PAGAMENTO IVA A DEBITO SERVIZI COMMERCIALI MESE DI GIUGNO 2017;2360;1;10;3;1;1
L'ELETTRICA S.P.A.;18/07/2017;Altri beni e materiali di consumo n.a.c.;73,48;IVA - Liquidazione Fattura Nr. 0000273PA  del 31/05/2017 (di cui Split per euro 73,48) - L'ELETTRICA SPA _ ACQUISTO LAMPADE EMERGENZA MAGAZZINO _ DET. 38/2017;2365;1;3;1;2;999
L'ELETTRICA S.P.A.;18/07/2017;Altri beni e materiali di consumo n.a.c.;334,00;Liquidazione Fattura Nr. 0000273PA  del 31/05/2017 - L'ELETTRICA SPA _ ACQUISTO LAMPADE EMERGENZA MAGAZZINO _ DET. 38/2017;2365;1;3;1;2;999
TOTALERG SPA;18/07/2017;Carburanti, combustibili e lubrificanti ;98,12;IVA-Liquidazione Fattura Nr. I7193303  del 31/05/2017 (di cui Split per euro 98,12) - FORNITURA DI CARBURANTE PER AUTOTRAZIONE MEDIANTE FUEL CARD E DEI SERVIZI CONNESSI PER LE PUBBLICHE AMMINISTRAZIONI - mese maggio 2017;2366;1;3;1;2;2
TOTALERG SPA;18/07/2017;Carburanti, combustibili e lubrificanti ;445,97;Liquidazione Fattura Nr. I7193303  del 31/05/2017 - FORNITURA DI CARBURANTE PER AUTOTRAZIONE MEDIANTE FUEL CARD E DEI SERVIZI CONNESSI PER LE PUBBLICHE AMMINISTRAZIONI - mese maggio 2017;2366;1;3;1;2;2
TOTALERG SPA;18/07/2017;Carburanti, combustibili e lubrificanti ;118,23;IVA-Liquidazione Fattura Nr. I7193303  del 31/05/2017 (di cui Split per euro 118,23) - FORNITURA DI CARBURANTE PER AUTOTRAZIONE MEDIANTE FUEL CARD E DEI SERVIZI CONNESSI PER LE PUBBLICHE AMMINISTRAZIONI - mese maggio 2017;2367;1;3;1;2;2
TOTALERG SPA;18/07/2017;Carburanti, combustibili e lubrificanti ;537,43;Liquidazione Fattura Nr. I7193303  del 31/05/2017 - FORNITURA DI CARBURANTE PER AUTOTRAZIONE MEDIANTE FUEL CARD E DEI SERVIZI CONNESSI PER LE PUBBLICHE AMMINISTRAZIONI - mese maggio 2017;2367;1;3;1;2;2
TOTALERG SPA;18/07/2017;Carburanti, combustibili e lubrificanti ;125,50;IVA-Liquidazione Fattura Nr. I7193303  del 31/05/2017 (di cui Split per euro 125,50) - FORNITURA DI CARBURANTE PER AUTOTRAZIONE MEDIANTE FUEL CARD E DEI SERVIZI CONNESSI PER LE PUBBLICHE AMMINISTRAZIONI - mese maggio 2017;2368;1;3;1;2;2
TOTALERG SPA;18/07/2017;Carburanti, combustibili e lubrificanti ;570,47;Liquidazione Fattura Nr. I7193303  del 31/05/2017 - FORNITURA DI CARBURANTE PER AUTOTRAZIONE MEDIANTE FUEL CARD E DEI SERVIZI CONNESSI PER LE PUBBLICHE AMMINISTRAZIONI - mese maggio 2017;2368;1;3;1;2;2
SCOTTI VEICOLI INDUSTRIALI S.P.A.;18/07/2017;Manutenzione ordinaria e riparazioni di mezzi di trasporto ad uso civile, di sicurezza e ordine pubblico;143,62;IVA - Liquidazione Fattura Nr. 630096/63  del 30/05/2017 (di cui Split per euro 143,62) - TAGLIANDO E RIPARAZIONE FRENI DELL'AUTOCARRO IVECO DAILY 35/EA TARGATO DR369FB _ DETERMINA A CONTRARRE E AFFIDAMENTO SCOTTI VEICOLI INDUSTRIALI SPA;2369;1;3;2;9;1
SCOTTI VEICOLI INDUSTRIALI S.P.A.;18/07/2017;Manutenzione ordinaria e riparazioni di mezzi di trasporto ad uso civile, di sicurezza e ordine pubblico;652,83;Liquidazione Fattura Nr. 630096/63  del 30/05/2017 - TAGLIANDO E RIPARAZIONE FRENI DELL'AUTOCARRO IVECO DAILY 35/EA TARGATO DR369FB _ DETERMINA A CONTRARRE E AFFIDAMENTO SCOTTI VEICOLI INDUSTRIALI SPA;2369;1;3;2;9;1
AUTOPASS EMPOLI S.R.L.;18/07/2017;Manutenzione ordinaria e riparazioni di mezzi di trasporto ad uso civile, di sicurezza e ordine pubblico;219,56;IVA - Liquidazione FT Nr. FATTPA 1_17  del 12/05/2017 (di cui Split per euro 219,56) - ESECUZIONE DEL TAGLIANDO E RIFACIMENTO FRENI POSTERIORI DELL'AUTOCARRO BREMACH TARGATO AC317FR _ DET. A CONTRERRE E AFFIDAMENTO DITTA AUTOPASS EMPOLI;2370;1;3;2;9;1
AUTOPASS EMPOLI S.R.L.;18/07/2017;Manutenzione ordinaria e riparazioni di mezzi di trasporto ad uso civile, di sicurezza e ordine pubblico;998,00;Liquidazione Fattura Nr. FATTPA 1_17  del 12/05/2017 - ESECUZIONE DEL TAGLIANDO E RIFACIMENTO FRENI POSTERIORI DELL'AUTOCARRO BREMACH TARGATO AC317FR _ DETERMINA A CONTRERRE E AFFIDAMENTO DITTA AUTOPASS EMPOLI SRL;2370;1;3;2;9;1
SERVICE S.R.L .;18/07/2017;Manutenzione ordinaria e riparazioni di mezzi di trasporto ad uso civile, di sicurezza e ordine pubblico;132,00;IVA - Liquidazione Fattura Nr. FATTPA 1_17  del 16/05/2017 (di cui Split per euro 132,00) - INTERVENTO DI RIPARAZIONE ALLA CARROZZERIA DELL'AUTOCARRO FIAT DOBLO' TARGATO DJ304DC _ DETERMINA A CONTRARRE E AFFIDAMENTO DITTA SERVICE SRL;2371;1;3;2;9;1
SERVICE S.R.L .;18/07/2017;Manutenzione ordinaria e riparazioni di mezzi di trasporto ad uso civile, di sicurezza e ordine pubblico;600,00;Liquidazione Fattura Nr. FATTPA 1_17  del 16/05/2017 - INTERVENTO DI RIPARAZIONE ALLA CARROZZERIA DELL'AUTOCARRO FIAT DOBLO' TARGATO DJ304DC _ DETERMINA A CONTRARRE E AFFIDAMENTO DITTA SERVICE SRL;2371;1;3;2;9;1
L'ELETTRICA S.P.A.;18/07/2017;Altri beni e materiali di consumo n.a.c.;13,53;IVA - Liquidazione Fattura Nr. 0000274PA  del 31/05/2017 (di cui Split per euro 13,53) - L'ELETTRICA _ FORNITURA MATERIALE ELETTRICO _ DET.102/2017;2372;1;3;1;2;999
L'ELETTRICA S.P.A.;18/07/2017;Altri beni e materiali di consumo n.a.c.;50,80;IVA - Liquidazione Fattura Nr. 0000275PA  del 31/05/2017 (di cui Split per euro 50,80) - L'ELETTRICA _ FORNITURA MATERIALE ELETTRICO _ DET.102/2017;2372;1;3;1;2;999
L'ELETTRICA S.P.A.;18/07/2017;Altri beni e materiali di consumo n.a.c.;61,52;Liquidazione Fattura Nr. 0000274PA  del 31/05/2017 - L'ELETTRICA _ FORNITURA MATERIALE ELETTRICO _ DET.102/2017;2372;1;3;1;2;999
L'ELETTRICA S.P.A.;18/07/2017;Altri beni e materiali di consumo n.a.c.;230,90;Liquidazione Fattura Nr. 0000275PA  del 31/05/2017 - L'ELETTRICA _ FORNITURA MATERIALE ELETTRICO _ DET.102/2017;2372;1;3;1;2;999
FANTINI & FANCELLI SRL;18/07/2017;Manutenzione ordinaria e riparazioni di impianti e macchinari;95,70;IVA - Liquidazione Fattura Nr. FATTPA 3_17  del 18/05/2017 - MANUTENZIONE E RIPARAZIONE CALDAIA CASA NATALE _ DET. 284/2016;2373;1;3;2;9;4
FANTINI & FANCELLI SRL;18/07/2017;Manutenzione ordinaria e riparazioni di impianti e macchinari;435,00;Liquidazione Fattura Nr. FATTPA 3_17  del 18/05/2017 - MANUTENZIONE E RIPARAZIONE CALDAIA CASA NATALE _ DET. 284/2016;2373;1;3;2;9;4
ILES  S.R.L.;18/07/2017;Manutenzione ordinaria e riparazioni di impianti e macchinari;219,78;IVA - Liquidazione Fattura Nr. 65E/2017  del 09/05/2017 (di cui Split per euro 219,78) - INTERVENTO DI RIPARAZIONE DELL'IMPIANTO SEMAFORICO POSTO TRA VIA MATTEOTTI E VIA LAMPORECCHIANA A VINCI_DET. 99/2017;2374;1;3;2;9;4
ILES  S.R.L.;18/07/2017;Manutenzione ordinaria e riparazioni di impianti e macchinari;999,00;Liquidazione Fattura Nr. 65E/2017  del 09/05/2017 - INTERVENTO DI RIPARAZIONE DELL'IMPIANTO SEMAFORICO POSTO TRA VIA MATTEOTTI E VIA LAMPORECCHIANA A VINCI_DET. 99/2017;2374;1;3;2;9;4
SOC.ING.MAGNANI SRL;18/07/2017;Altri beni e materiali di consumo n.a.c.;73,81;IVA-Liquidazione Fattura Nr. 47/10  del 24/05/2017 (di cui Split per euro 73,81) - FORNITURA STABILIZZATO PER MANUTENZIONE STRADE VICINALI - DETERMINA N. 59 DEL 28.03.2017 - CIG: ZA81E055AB;2375;1;3;1;2;999
SOC.ING.MAGNANI SRL;18/07/2017;Altri beni e materiali di consumo n.a.c.;335,52;Liquidazione Fattura Nr. 47/10  del 24/05/2017 - FORNITURA STABILIZZATO PER MANUTENZIONE STRADE VICINALI - DETERMINA N. 59 DEL 28.03.2017 - CIG: ZA81E055AB;2375;1;3;1;2;999
AGRIGARDEN S.N.C.;18/07/2017;Altri beni e materiali di consumo n.a.c.;171,31;IVA - Liquidazione Fattura Nr. FATTPA 3_17  del 22/05/2017 - ACQUISTO BENI E ATTREZZATURA PER LA MANUTENZIONE DI GIARDINI E STRADE _ DETERMINA A CONTRARRE E AFFIDAMENTO DITTA AGRIGARDEN DI FONDELLI EMANUELE & C. SNC;2376;1;3;1;2;999
AGRIGARDEN S.N.C.;18/07/2017;Altri beni e materiali di consumo n.a.c.;778,69;Liquidazione Fattura Nr. FATTPA 3_17  del 22/05/2017 - ACQUISTO BENI E ATTREZZATURA PER LA MANUTENZIONE DI GIARDINI E STRADE _ DETERMINA A CONTRARRE E AFFIDAMENTO DITTA AGRIGARDEN DI FONDELLI EMANUELE & C. SNC;2376;1;3;1;2;999
COOPERATIVA SOCIALE MIMOSA ONLUS;18/07/2017;Manutenzione ordinaria e riparazioni di beni immobili;499,58;IVA - Liquidazione Fattura Nr. 000009-2017-FE  del 30/04/2017 (di cui Split per euro 499,58) - AFFIDAMENTO DIRETTO AI SENSI DELL'ART. 36 D.LGS. 50/2011 IN APPALTO DEL SERVIZIO DI PULIZIA DEL VERDE PUBBLICO  DAL 13.03.2017 AL 31.12.2017;2377;1;3;2;9;8
COOPERATIVA SOCIALE MIMOSA ONLUS;18/07/2017;Manutenzione ordinaria e riparazioni di beni immobili;2.270,84;Liquidazione Fattura Nr. 000009-2017-FE  del 30/04/2017 - AFFIDAMENTO DIRETTO AI SENSI DELL'ART. 36 D.LGS. 50/2011 IN APPALTO DEL SERVIZIO DI PULIZIA DEL VERDE PUBBLICO  DAL 13.03.2017 AL 31.12.2017;2377;1;3;2;9;8
PUCCI EDILIZIA E STRADE DI ALESSANDRO PUCCI;18/07/2017;Manutenzione ordinaria e riparazioni di beni immobili;426,69;IVA - Liquidazione Fattura Nr. 8/PA  del 31/05/2017 (di cui Split per euro 426,69) - LAVORI DI MANUTENZIONE ORDINARIA PRESSO IL CIMITERO DI VINCI - CIG Z6F1CC3892 - STATO FINALE DEI LAVORI;2378;1;3;2;9;8
PUCCI EDILIZIA E STRADE DI ALESSANDRO PUCCI;18/07/2017;Manutenzione ordinaria e riparazioni di beni immobili;906,80;IVA - Liquidazione Fattura Nr. 8/PA  del 31/05/2017 (di cui Split per euro 906,80) - LAVORI DI MANUTENZIONE ORDINARIA PRESSO IL CIMITERO DI VINCI - CIG Z6F1CC3892 - STATO FINALE DEI LAVORI;2378;1;3;2;9;8
PUCCI EDILIZIA E STRADE DI ALESSANDRO PUCCI;18/07/2017;Manutenzione ordinaria e riparazioni di beni immobili;6.061,34;Liquidazione Fattura Nr. 8/PA  del 31/05/2017 - LAVORI DI MANUTENZIONE ORDINARIA PRESSO IL CIMITERO DI VINCI - CIG Z6F1CC3892 - STATO FINALE DEI LAVORI;2378;1;3;2;9;8
SARBA S.P.A.;18/07/2017;Beni immobili n.a.c.;890,71;IVA-Liquidazione Fattura Nr. 81/PF  del 15/05/2017 (di cui Split per euro 890,71) - ACQUISTO PONTE INDIANO PER PARCO DEI MILLE A SOVIGLIANA__AFFIDAMENTO DITTA SARBA SPA;2379;2;2;1;9;999
SARBA S.P.A.;18/07/2017;Beni immobili n.a.c.;4.048,66;Liquidazione Fattura Nr. 81/PF  del 15/05/2017 - ACQUISTO PONTE INDIANO PER PARCO DEI MILLE A SOVIGLIANA__AFFIDAMENTO DITTA SARBA SPA;2379;2;2;1;9;999
S.I.D.E.A. ITALIA SRL;18/07/2017;Infrastrutture idrauliche;1.035,00;IVA-Liquidazione Fattura Nr. 71/PA2017  del 26/04/2017 (di cui Split per euro 1.035,00) - FORNITURA FONTANELLO FISSO DA ESTERNO PER EROGAZIONE ACQUA ALTA QUALITA' A VITOLINI;2380;2;2;1;9;10
S.I.D.E.A. ITALIA SRL;18/07/2017;Infrastrutture idrauliche;10.350,00;Liquidazione Fattura Nr. 71/PA2017  del 26/04/2017 - FORNITURA FONTANELLO FISSO DA ESTERNO PER EROGAZIONE ACQUA ALTA QUALITA' A VITOLINI;2380;2;2;1;9;10
AGRIGARDEN S.N.C.;18/07/2017;Attrezzature n.a.c.;512,13;IVA - Liquidazione Fattura Nr. FATTPA 3_17  del 22/05/2017 - ACQUISTO BENI E ATTREZZATURA PER LA MANUTENZIONE DI GIARDINI E STRADE _ DETERMINA A CONTRARRE E AFFIDAMENTO DITTA AGRIGARDEN DI FONDELLI EMANUELE & C. SNC;2381;2;2;1;5;999
AGRIGARDEN S.N.C.;18/07/2017;Attrezzature n.a.c.;2.327,87;Liquidazione Fattura Nr. FATTPA 3_17  del 22/05/2017 - ACQUISTO BENI E ATTREZZATURA PER LA MANUTENZIONE DI GIARDINI E STRADE _ DETERMINA A CONTRARRE E AFFIDAMENTO DITTA AGRIGARDEN DI FONDELLI EMANUELE & C. SNC;2381;2;2;1;5;999
AGENZIA PER LO SVILUPPO  EMPOLESE VALDESA S.P.A.;18/07/2017;Acquisto di servizi per altre spese per formazione e addestramento n.a.c.;120,00;"Liquidazione Fattura Nr. 94/03  del 05/07/2017 - PARTECIPAZIONE AL CORSO DI FORMAZIONE  ""LE MODIFICHE AL TESTO UNICO DEL PUBBLICO IMPIEGO DEL D.LGVO APPROVATO IL 19 MAGGIO 2017""";2382;1;3;2;4;999
ETRURIA P.A. SRL;18/07/2017;Altre prestazioni professionali e specialistiche n.a.c.;924,00;IVA - Liquidazione Fattura Nr. 1029/00000  del 26/05/2017 (di cui Split per euro 924,00) - ACQUISTO MODULO CHIUSURA INVENTARIO E PREDISPOSIZIONE CONTO ECONOMICO SUL MEPA - DETERMINA DI AFFIDAMENTO;2383;1;3;2;11;999
ETRURIA P.A. SRL;18/07/2017;Altre prestazioni professionali e specialistiche n.a.c.;4.200,00;Liquidazione Fattura Nr. 1029/00000  del 26/05/2017 - ACQUISTO MODULO CHIUSURA INVENTARIO E PREDISPOSIZIONE CONTO ECONOMICO SUL MEPA - DETERMINA DI AFFIDAMENTO;2383;1;3;2;11;999
PRESSLEX DELLA DOTT.SSA CHIARA MOROCCHI;18/07/2017;Accesso a banche dati e a pubblicazioni on line;9,69;IVA Liquidazione Fattura Nr. 88  del 19/06/2017 (di cui Split per euro 9,69) - www.urbanisticaitaliana.it - ISSN 2498-9916;2384;1;3;2;5;3
PRESSLEX DELLA DOTT.SSA CHIARA MOROCCHI;18/07/2017;Accesso a banche dati e a pubblicazioni on line;242,31;Liquidazione Fattura Nr. 88  del 19/06/2017 - www.urbanisticaitaliana.it - ISSN 2498-9916;2384;1;3;2;5;3
MAGGIOLI S.P.A.;18/07/2017;Licenze d'uso per software;1.628,00;IVA Liquidazione Fattura Nr. 0002125440  del 30/06/2017 (di cui Split per euro 1.628,00) - MONITORAGGIO OO.PP., APPALTI E AFFIDAMENTI, ELENCHI OPERATORI ECONOMICI,4 GG DI PERSONALIZZAZIONE DA REMOTO ;2385;1;3;2;7;6
MAGGIOLI S.P.A.;18/07/2017;Licenze d'uso per software;7.400,00;Liquidazione Fattura Nr. 0002125440  del 30/06/2017 - MONITORAGGIO OO.PP., APPALTI E AFFIDAMENTI, ELENCHI OPERATORI ECONOMICI,4 GG DI PERSONALIZZAZIONE DA REMOTO ;2385;1;3;2;7;6
MEDICEA  ASSOCIAZIONE CULTURALE;18/07/2017;Altri servizi diversi n.a.c.;163,53;IVA - Liquidazione Fattura Nr. 16 del 30/06/2017 - servizio attacchinaggio manifesti cig Z371CAF4A1 IMPEGNO SPESA PPAA;2386;1;3;2;99;999
MEDICEA  ASSOCIAZIONE CULTURALE;18/07/2017;Altri servizi diversi n.a.c.;743,33;Liquidazione Fattura Nr. 16 del 30/06/2017 - servizio attacchinaggio manifesti cig Z371CAF4A1 IMPEGNO SPESA PPAA;2386;1;3;2;99;999
MAURIZI MARMI S.R.L.;18/07/2017;Altri beni e materiali di consumo n.a.c.;116,60;IVA Liquidazione Fattura Nr. 000001-2017-PA  del 25/05/2017 (di cui Split per euro 116,60) - Fornitura Targa Commemorativa dei Caduti di Sant'Ansano;2387;1;3;1;2;999
MAURIZI MARMI S.R.L.;18/07/2017;Altri beni e materiali di consumo n.a.c.;530,00;Liquidazione Fattura Nr. 000001-2017-PA  del 25/05/2017 - Fornitura Targa Commemorativa dei Caduti di Sant'Ansano;2387;1;3;1;2;999
BARGELLINI CLAUDIO;18/07/2017;Patrocinio legale;2.156,96;LIQUIDAZIONE FATTURA NR. 5/PA  DEL 16/05/2017 - SERVIZIO DI CONSULENZA LEGALE EX ART. 17, C. 2 D.GLS. N. 50/2016 RELATIVO A SCUOLA S. ALERAMO LOC. SPICCHIO;2388;1;3;2;11;6
STUDIO LEGALE GIALLONGO E ASSOCIATI;18/07/2017;Patrocinio legale;41,60;ADEG. IVA LIQUIDAZIONE FATTURA NR. 13/PA  DEL 15/05/2017 - RICORSO AGRUMI LUCIA TAR TOSCANA R.G. 1342-2011 - DECRETO DECISORIO N. 181/2017 ;2388;1;3;2;11;6
STUDIO LEGALE GIALLONGO E ASSOCIATI;18/07/2017;Patrocinio legale;2.496,00;LIQUIDAZIONE FATTURA NR. 13/PA  DEL 15/05/2017 - RICORSO AGRUMI LUCIA TAR TOSCANA R.G. 1342-2011 - DECRETO DECISORIO N. 181/2017 ;2388;1;3;2;11;6
ESKIMO COOP. SOCIALE ONLUS;18/07/2017;Altre spese per servizi amministrativi;2.770,00;Liquidazione Fattura Nr. FATTPA 48_17  del 28/04/2017 - SERVIZIO DI ARCHIVIO CORRENTE E DI DEPOSITO APRILE 2017;2389;1;3;2;16;999
ETRURIA P.A. SRL;18/07/2017;Stampa e rilegatura;48,84;IVA Liquidazione Fattura Nr. 957/00000  del 22/05/2017 (di cui Split per euro 48,84) - RILEGATURA REGISTRI DI STATO CIVILE ANNO 2015 E FORNITURA N. 2 RACCOGLITORI ANELLI PER ATTI DI STATO CIVILE;2390;1;3;2;13;4
ETRURIA P.A. SRL;18/07/2017;Stampa e rilegatura;222,00;Liquidazione Fattura Nr. 957/00000  del 22/05/2017 - RILEGATURA REGISTRI DI STATO CIVILE ANNO 2015 E FORNITURA N. 2 RACCOGLITORI ANELLI PER ATTI DI STATO CIVILE;2390;1;3;2;13;4
ETRURIA P.A. SRL;18/07/2017;Carta, cancelleria e stampati;8,80;IVA Liquidazione Fattura Nr. 957/00000  del 22/05/2017 (di cui Split per euro 8,80) - RILEGATURA REGISTRI DI STATO CIVILE ANNO 2015 E FORNITURA N. 2 RACCOGLITORI ANELLI PER ATTI DI STATO CIVILE;2391;1;3;1;2;1
ETRURIA P.A. SRL;18/07/2017;Carta, cancelleria e stampati;40,00;Liquidazione Fattura Nr. 957/00000  del 22/05/2017 - RILEGATURA REGISTRI DI STATO CIVILE ANNO 2015 E FORNITURA N. 2 RACCOGLITORI ANELLI PER ATTI DI STATO CIVILE;2391;1;3;1;2;1
CRISTOFORO SOC.COOP. SOCIALE ONLUS;18/07/2017;Altri servizi diversi n.a.c.;648,28;IVA-Liquidazione Fattura Nr. 273  del 16/05/2017 (di cui Split per euro 648,28) - SERVIZIO ACCOMPAGNAMENTO SCUOLABUS MESE DI APRILE 2017;2392;1;3;2;99;999
CRISTOFORO SOC.COOP. SOCIALE ONLUS;18/07/2017;Altri servizi diversi n.a.c.;93,11;IVA-Liquidazione Fattura Nr. 274  del 16/05/2017 (di cui Split per euro 93,11) - SERVIZIO PRESCUOLA MESE DI APRILE 2017;2392;1;3;2;99;999
CRISTOFORO SOC.COOP. SOCIALE ONLUS;18/07/2017;Altri servizi diversi n.a.c.;6.482,84;Liquidazione Fattura Nr. 273  del 16/05/2017 - SERVIZIO ACCOMPAGNAMENTO SCUOLABUS MESE DI APRILE 2017;2392;1;3;2;99;999
CRISTOFORO SOC.COOP. SOCIALE ONLUS;18/07/2017;Altri servizi diversi n.a.c.;931,06;Liquidazione Fattura Nr. 274  del 16/05/2017 - SERVIZIO PRESCUOLA MESE DI APRILE 2017;2392;1;3;2;99;999
ANCILLOTTI DI EREDI ANCILLOTTI LIDO S.N.C. DI ANCILLOTTI L. & C.;18/07/2017;Contratti di servizio di trasporto pubblico;132,75;IVA Liquidazione Fattura Nr. PA057  del 30/04/2017 (di cui Split per euro 132,75) - TRASPORTO PUBBLICO LOCALE - APRILE 2017;2393;1;3;2;15;1
ANCILLOTTI DI EREDI ANCILLOTTI LIDO S.N.C. DI ANCILLOTTI L. & C.;18/07/2017;Contratti di servizio di trasporto pubblico;1.327,49;Liquidazione Fattura Nr. PA057  del 30/04/2017 - TRASPORTO PUBBLICO LOCALE - APRILE 2017;2393;1;3;2;15;1
CO&SO EMPOLI - CONS. DI COOP. SOCIALI - SOCIETA' COOPERATIVA;18/07/2017;Altre spese per contratti di servizio pubblico;849,16;IVA-Liquidazione Fattura Nr. 000340-2C0  del 30/04/2017 (di cui Split per euro 849,16) - servizio sostegno handicap nell'ambito scolastico mese di Aprile 2017;2394;1;3;2;15;999
CO&SO EMPOLI - CONS. DI COOP. SOCIALI - SOCIETA' COOPERATIVA;18/07/2017;Altre spese per contratti di servizio pubblico;1.282,03;IVA-Liquidazione Fattura Nr. 000375-2C0  del 30/04/2017 (di cui Split per euro 1.282,03) - Fatt. regime sciss.pag.- servizio sostegno handicap scolastico mese di marzo 2017;2394;1;3;2;15;999
CO&SO EMPOLI - CONS. DI COOP. SOCIALI - SOCIETA' COOPERATIVA;18/07/2017;Altre spese per contratti di servizio pubblico;16.983,24;Liquidazione Fattura Nr. 000340-2C0  del 30/04/2017 - servizio sostegno handicap nell'ambito scolastico mese di Aprile 2017;2394;1;3;2;15;999
CO&SO EMPOLI - CONS. DI COOP. SOCIALI - SOCIETA' COOPERATIVA;18/07/2017;Altre spese per contratti di servizio pubblico;25.640,64;Liquidazione Fattura Nr. 000375-2C0  del 30/04/2017 - Fatt. regime sciss.pag. - servizio sostegno handicap scolastico mese di marzo 2017;2394;1;3;2;15;999
CO&SO EMPOLI - CONS. DI COOP. SOCIALI - SOCIETA' COOPERATIVA;18/07/2017;Altre spese per contratti di servizio pubblico;2.806,36;Liquidazione Fattura Nr. 000347-2C0  del 30/04/2017 - servizi extrascolastici presso Villa Reghini mese di Aprile 2017;2395;1;3;2;15;999
ART & LIBRI SAS DI ALFREDO LUPI & C.;19/07/2017;Pubblicazioni;72,00;Liquidazione Fattura Nr. 13/PA del 16/06/2017 - Fornitura materiale bibliografico per BIblioteca  Leonardiana;2396;1;3;1;1;2
DIOCESI DI VICENZA - UFFICIO PELLEGRINAGGI;19/07/2017;Quote di associazioni;134,20;versamento quota annuale di adesione alla ROMEA STRATA ;2397;1;3;2;99;3
ETRURIA P.A. SRL;19/07/2017;Stampa e rilegatura;80,96;IVA Liquidazione Fattura Nr. 1070/00000  del 31/05/2017 - Locandine pubblicitarie n. 3 diversi, Volantino Vieni a Vinci, 10x21 fronte;2398;1;3;2;13;4
ETRURIA P.A. SRL;19/07/2017;Stampa e rilegatura;1.610,40;Liquidazione Fattura Nr. 1069/00000  del 31/05/2017 - CARTINE TURISTICHE STAMPA A COLORI SU;2398;1;3;2;13;4
ETRURIA P.A. SRL;19/07/2017;Stampa e rilegatura;368,00;Liquidazione Fattura Nr. 1070/00000  del 31/05/2017 - Locandine pubblicitarie n. 3 diversi, Volantino Vieni a Vinci, 10x21 fronte;2398;1;3;2;13;4
CO&SO EMPOLI - CONS. DI COOP. SOCIALI - SOCIETA' COOPERATIVA;19/07/2017;Altre spese per contratti di servizio pubblico;201,96;IVA Liquidazione Fattura Nr. 000364-2C0  del 30/04/2017 - PULIZIE MUSEO mese aprile 2017;2399;1;3;2;15;999
CO&SO EMPOLI - CONS. DI COOP. SOCIALI - SOCIETA' COOPERATIVA;19/07/2017;Altre spese per contratti di servizio pubblico;918,00;Liquidazione Fattura Nr. 000364-2C0  del 30/04/2017 - PULIZIE MUSEO mese aprile 2017;2399;1;3;2;15;999
CO&SO EMPOLI - CONS. DI COOP. SOCIALI - SOCIETA' COOPERATIVA;19/07/2017;Altre spese per contratti di servizio pubblico;24.121,80;Liquidazione Fattura Nr. 000366-2C0  del 30/04/2017 - servizi museali mese di aprile 2017 (Museo - Casa natale - didattica);2399;1;3;2;15;999
CO&SO EMPOLI - CONS. DI COOP. SOCIALI - SOCIETA' COOPERATIVA;19/07/2017;Altre spese per contratti di servizio pubblico;23.190,30;Liquidazione Fattura Nr. 000442-2C0  del 31/05/2017 - servizi museali mese di maggio 2017;2399;1;3;2;15;999
CO&SO EMPOLI - CONS. DI COOP. SOCIALI - SOCIETA' COOPERATIVA;19/07/2017;Altre spese per contratti di servizio pubblico;3.032,78;Liquidazione Fattura Nr. 000367-2C0 del 30/04/2017 - Fattura per Servizio al pubblico di front-office  e didattica presso Biblioteca Leonardiana e sedi distaccate;2400;1;3;2;15;999
CO&SO EMPOLI - CONS. DI COOP. SOCIALI - SOCIETA' COOPERATIVA;19/07/2017;Altre spese per contratti di servizio pubblico;769,82;IVA - Liquidazione Fattura Nr. 000365-2C0  del 30/04/2017 - UF.TURISTICO mese di aprile 2017;2401;1;3;2;15;999
CO&SO EMPOLI - CONS. DI COOP. SOCIALI - SOCIETA' COOPERATIVA;19/07/2017;Altre spese per contratti di servizio pubblico;3.499,20;Liquidazione Fattura Nr. 000365-2C0  del 30/04/2017 - UF.TURISTICO mese di aprile 2017;2401;1;3;2;15;999
SINTESI S.R.L. - SISTEMI INTEGRATI PER UFFICIO;19/07/2017;Attrezzature n.a.c.;102,30;IVA Liquidazione Fattura Nr. 23/E del 08/05/2017 - ACQUISTO MONITOR PER SALA ESPOSITIVA MUSEO LEONARDIANO - SEDE DEL CASTELLO DEI CONTI GUIDI. DETERMINA A CONTRARRE E AFFIDAMENTO;2402;2;2;1;5;999
SINTESI S.R.L. - SISTEMI INTEGRATI PER UFFICIO;19/07/2017;Attrezzature n.a.c.;465,00;Liquidazione Fattura Nr. 23/E del 08/05/2017 - ACQUISTO MONITOR PER SALA ESPOSITIVA MUSEO LEONARDIANO - SEDE DEL CASTELLO DEI CONTI GUIDI. DETERMINA A CONTRARRE E AFFIDAMENTO;2402;2;2;1;5;999
PERSONALE DIPENDENTE SEDE;24/07/2017;Rimborso per viaggio e trasloco;177,32;stipendio 07;2446;1;3;2;2;1
AMMINISTRATORI COMUNALI;24/07/2017;Organi istituzionali dell'amministrazione - indennit�;8.330,37;stipendio 07;2513;1;3;2;1;1
ASSOCIAZIONE VOLO DI CECCO SANTI;25/07/2017;Trasferimenti correnti a Istituzioni Sociali Private ;1.000,00;ACCONTO CONTRIBUTO PER ORGANIZZAZIONE FIERA DI LUGLIO;2677;1;4;4;1;1
PREFETTURA DI FIRENZE;25/07/2017;Stampati specialistici;440,00;ACQUISTO N. 1000 CARTE DI IDENITA';2678;1;3;1;2;14
AGENZIA PER LO SVILUPPO  EMPOLESE VALDESA S.P.A.;26/07/2017;Contributi agli investimenti a altre imprese partecipate;290.777,66;RESTITUZIONE SOMME VERSATE IN ECCEDENZA LAVORI RESTAURO ED AMPLIAMENTO IRSOO;2679;2;3;3;2;1
REGIONE TOSCANA;31/07/2017;Altre spese per servizi amministrativi;75,00;"PAGAMENTO CONTRIBUTO PER GLI ONERI DI ISTRUTTORIA  - PROGRETTO ""ORTI SOCIALI""";2680;1;3;2;16;999
ACQUE S.P.A.;31/07/2017;Acqua;13,19;IVA - Liquidazione Fattura Nr. 6017012000007453  del 27/06/2017 (di cui Split per euro 13,19) - CONSUMO DI ACQUA POTABILE CASA NATALE LEONARDO;2681;1;3;2;5;5
ACQUE S.P.A.;31/07/2017;Acqua;131,91;Liquidazione Fattura Nr. 6017012000007453  del 27/06/2017 - CONSUMO DI ACQUA POTABILE CASA NATALE LEONARDO;2681;1;3;2;5;5
ACQUE S.P.A.;31/07/2017;Acqua;38,40;IVA - Liquidazione Fattura Nr. 6017022020000048  del 03/07/2017 (di cui Split per euro 38,40) - FORNITURA ACQUA POTABILE VIA CERRETANA - VINCI;2682;1;3;2;5;5
ACQUE S.P.A.;31/07/2017;Acqua;384,00;Liquidazione Fattura Nr. 6017022020000048  del 03/07/2017 - FORNITURA ACQUA POTABILE VIA CERRETANA - VINCI;2682;1;3;2;5;5
ACQUE S.P.A.;31/07/2017;Acqua;18,86;IVA - Liquidazione Fattura Nr. 6017012000007106  del 21/06/2017 - FORNITURA ACQUA POTABILE BAGNI PUBBLICI;2683;1;3;2;5;5
ACQUE S.P.A.;31/07/2017;Acqua;188,55;Liquidazione Fattura Nr. 6017012000007106  del 21/06/2017 - FORNITURA ACQUA POTABILE BAGNI PUBBLICI;2683;1;3;2;5;5
GALA S.P.A.;31/07/2017;Energia elettrica;9,54;IVA-Liquidazione Fattura Nr. E000140017  del 12/06/2017 (di cui Split per euro 9,54) - FORNITURA ENERGIA ELETTRICA  FONTANELLO DI VITOLINI.;2684;1;3;2;5;4
GALA S.P.A.;31/07/2017;Energia elettrica;43,35;Liquidazione Fattura Nr. E000140017  del 12/06/2017 - FORNITURA ENERGIA ELETTRICA  FONTANELLO DI VITOLINI.;2684;1;3;2;5;4
CALOS ITALIA DI CASTELLI ANTONIO;31/07/2017;Altri beni e materiali di consumo n.a.c.;4,71;IVA Liquidazione Fattura Nr. 28/PA  del 29/05/2017 - Acquisto etichettatrice Dymo;2685;1;3;1;2;999
ISTITUTO GEOGRAFICO MILITARE;31/07/2017;Carta, cancelleria e stampati;13,20;IVA Liquidazione Fattura Nr. PVFV0030053  del 06/06/2017 - Foto aeree per ufficio urbanistica;2686;1;3;1;2;1
ALIA SERVIZI AMBIENTALI S.P.A.;03/08/2017;Contratti di servizio per la raccolta rifiuti;65.283,13;IVA Liquidazione Fattura Nr. 0000132065  del 30/04/2017 (di cui Split per euro 65.283,13) - SERVIZIO INTEGRATO RACCOLTA, SPAZZAM E SMALTIMENTO DEI RIFIUTI URBANI E RIFIUTI SPECIALI ASSIMILATI AI RIFIUTI URBANI - AFFIDAMENTO A ALIA SERVIZI A;2688;1;3;2;15;4
ALIA SERVIZI AMBIENTALI S.P.A.;03/08/2017;Contratti di servizio per la raccolta rifiuti;16.320,78;IVA Liquidazione Fattura Nr. 0000132221  del 30/06/2017 (di cui Split per euro 16.320,78) - SERVIZIO INTEGR RACCOLTA, SPAZZAM E SMALTIMENTO DEI RIFIUTI URBANI E RIFIUTI SPECIALI ASSIMILATI AI RIFIUTI URBANI - AFFIDAMENTO A ALIA SERVIZI A;2688;1;3;2;15;4
ALIA SERVIZI AMBIENTALI S.P.A.;03/08/2017;Contratti di servizio per la raccolta rifiuti;652.831,25;Liquidazione Fattura Nr. 0000132065  del 30/04/2017 - SERVIZIO INTEGRATO RACCOLTA, SPAZZAMENTO E SMALTIMENTO DEI RIFIUTI URBANI E RIFIUTI SPECIALI ASSIMILATI AI RIFIUTI URBANI - AFFIDAMENTO A ALIA SERVIZI AMBIENTALI SPA ED IMPEGNO DI SPESA;2688;1;3;2;15;4
ALIA SERVIZI AMBIENTALI S.P.A.;03/08/2017;Contratti di servizio per la raccolta rifiuti;163.207,82;Liquidazione Fattura Nr. 0000132221  del 30/06/2017 - SERVIZIO INTEGRATO RACCOLTA, SPAZZAMENTO E SMALTIMENTO DEI RIFIUTI URBANI E RIFIUTI SPECIALI ASSIMILATI AI RIFIUTI URBANI - AFFIDAMENTO A ALIA SERVIZI AMBIENTALI SPA ED IMPEGNO DI SPESA;2688;1;3;2;15;4
UISP - UNIONE ITALIANA SPORT PER TUTTI COMITATO TERRITORIALE EMPOLI VALDELSA;03/08/2017;Altri servizi diversi n.a.c.;5.323,47;Liquidazione Fattura Nr. 177/2017  del 16/06/2017 - Servizio custodia e pulizia Palasport Falcone e Borsellino CIG Z111C9C926 marzo 2017 fatturazione effettuata da soggetto che si avvale del regime di cui alla legge 16/12/1991 n.398 non ass;2689;1;3;2;99;999
UISP - UNIONE ITALIANA SPORT PER TUTTI COMITATO TERRITORIALE EMPOLI VALDELSA;03/08/2017;Altri servizi diversi n.a.c.;3.749,67;Liquidazione Fattura Nr. 178/2017  del 16/06/2017 - Servizio custodia e pulizia Palasport Falcone e Borsellino CIG Z111C9C926 aprile 2017 fatturazione effettuata da soggetto che si avvale del regime di cui alla legge 16/12/1991 n.398 non as;2689;1;3;2;99;999
UISP - UNIONE ITALIANA SPORT PER TUTTI COMITATO TERRITORIALE EMPOLI VALDELSA;03/08/2017;Altri servizi diversi n.a.c.;4.741,53;Liquidazione Fattura Nr. 179/2017  del 16/06/2017 - Servizio custodia e pulizia Palasport Falcone e Borsellino CIG Z111C9C926 maggio 2017 fatturazione effettuata da soggetto che si avvale del regime di cui alla legge 16/12/1991 n.398 non as;2689;1;3;2;99;999
FONDAZIONE LEGAMBIENTE INNOVAZIONE;03/08/2017;Trasferimenti correnti a Istituzioni Sociali Private ;350,00;LEGAMBIENTE - PULIAMO IL MONDO 2017 - CONTRIBUTO ADESIONE;2690;1;4;4;1;1
PARROCCHIA DI SANTA MARIA A FALTOGNANO;03/08/2017;Trasferimenti correnti a Istituzioni Sociali Private ;1.500,00;PARROCCHIA DI S.MARIA A FALTOGNANO - CONCESSIONE CONTRIBUTO PER MANUTENZIONE ANNUALE LECCIO;2690;1;4;4;1;1
ASSOCIAZIONE NAZIONALE CITTA' DEL VINO;03/08/2017;Quote di associazioni;2.019,60;ASSOCIAZIONE NAZIONALE CITTA' DEL VINO - VERSAMENTO QUOTA ANNUALE DI ADESIONE ;2691;1;3;2;99;3
ASSOCIAZIONE NAZIONALE CITTA' DEL VINO;03/08/2017;Quote di associazioni;200,00;quota adesione a calici di stelle 2017;2691;1;3;2;99;3
F.A.C.E.  SRL;03/08/2017;Altre prestazioni professionali e specialistiche n.a.c.;2.753,51;IVA - Liquidazione Fattura Nr. FatPAM 5  del 06/06/2017 (di cui Split per euro 2.753,51) - Incarico vulnerabilit� sismica scuola secondaria primo grado Soviglisna - Rif. fase b c d det. 346 21-12-2016 cap. 1350  i. ds03346/1;2692;1;3;2;11;999
F.A.C.E.  SRL;03/08/2017;Altre prestazioni professionali e specialistiche n.a.c.;12.515,96;Liquidazione Fattura Nr. FatPAM 5  del 06/06/2017 - Incarico vulnerabilit� sismica scuola secondaria primo grado Soviglisna - Rif. fase b c d det. 346 21-12-2016 cap. 1350  i. ds03346/1;2692;1;3;2;11;999
TOTALERG SPA;03/08/2017;Carburanti, combustibili e lubrificanti ;42,25;IVA-Liquidazione Fattura Nr. I7236168  del 30/06/2017 - FORNITURA CARBURANTI - MESE GIUGNO 2017;2693;1;3;1;2;2
TOTALERG SPA;03/08/2017;Carburanti, combustibili e lubrificanti ;192,01;Liquidazione Fattura Nr. I7236168  del 30/06/2017 - FORNITURA CARBURANTI - MESE GIUGNO 2017;2693;1;3;1;2;2
TOTALERG SPA;03/08/2017;Carburanti, combustibili e lubrificanti ;116,59;IVA-Liquidazione Fattura Nr. I7236168  del 30/06/2017 - FORNITURA CARBURANTI - MESE GIUGNO 2017;2694;1;3;1;2;2
TOTALERG SPA;03/08/2017;Carburanti, combustibili e lubrificanti ;529,90;Liquidazione Fattura Nr. I7236168  del 30/06/2017 - FORNITURA CARBURANTI - MESE GIUGNO 2017;2694;1;3;1;2;2
TOTALERG SPA;03/08/2017;Carburanti, combustibili e lubrificanti ;158,50;IVA-Liquidazione Fattura Nr. I7236168  del 30/06/2017 - FORNITURA CARBURANTI - MESE GIUGNO 2017;2695;1;3;1;2;2
TOTALERG SPA;03/08/2017;Carburanti, combustibili e lubrificanti ;720,47;Liquidazione Fattura Nr. I7236168  del 30/06/2017 - FORNITURA CARBURANTI - MESE GIUGNO 2017;2695;1;3;1;2;2
UTAFF SAS DI LOLLI LUCIANO & C.;03/08/2017;Altri beni e materiali di consumo n.a.c.;70,57;IVA - Liquidazione Fattura Nr. 1  del 26/05/2017 - FORNITURA ED AFFILATURA LAME E RICAMBI PER MACCHINE DA FALEGNAMERIA - DETERMINA A CONTRARRE E AFFIDA;2696;1;3;1;2;999
UTAFF SAS DI LOLLI LUCIANO & C.;03/08/2017;Altri beni e materiali di consumo n.a.c.;320,80;Liquidazione Fattura Nr. 1  del 26/05/2017 - FORNITURA ED AFFILATURA LAME E RICAMBI PER MACCHINE DA FALEGNAMERIA;2696;1;3;1;2;999
ACQUE S.P.A.;03/08/2017;Acqua;60,49;IVA - Liquidazione Fattura Nr. 6017012000008030  del 12/07/2017 (di cui Split per euro 60,49) - FORNITURA ACQUA POTABILE SCUOLA PRIMARIA VINCI;2697;1;3;2;5;5
ACQUE S.P.A.;03/08/2017;Acqua;604,87;Liquidazione Fattura Nr. 6017012000008030  del 12/07/2017 - FORNITURA ACQUA POTABILE SCUOLA PRIMARIA VINCI;2697;1;3;2;5;5
UTAFF SAS DI LOLLI LUCIANO & C.;03/08/2017;Altri beni e materiali di consumo n.a.c.;70,58;IVA - Liquidazione Fattura Nr. 1  del 26/05/2017 - FORNITURA ED AFFILATURA LAME E RICAMBI PER MACCHINE DA FALEGNAMERIA ;2698;1;3;1;2;999
UTAFF SAS DI LOLLI LUCIANO & C.;03/08/2017;Altri beni e materiali di consumo n.a.c.;320,80;Liquidazione Fattura Nr. 1  del 26/05/2017 - FORNITURA ED AFFILATURA LAME E RICAMBI PER MACCHINE DA FALEGNAMERIA;2698;1;3;1;2;999
CENTRO TERMOTECNICA DI PASQUALI ANGELO E MASSIMO SNC;03/08/2017;Manutenzione ordinaria e riparazioni di impianti e macchinari;84,70;IVA - Liq. FT. Nr. 3/14  del 15/06/2017 (di cui Split per euro 84,70) - INTERVENTO DI MANUTENZIONE AL GRUPPO FRIGO DEL TEATRO DELLA MISERICORDIA DI VINCI _ DETERMINA A CONTRARRE E AFFIDAMENTO DITTA CENTRO TERMOTECNICA DI PASQUALI ANGE Fattu;2699;1;3;2;9;4
CENTRO TERMOTECNICA DI PASQUALI ANGELO E MASSIMO SNC;03/08/2017;Manutenzione ordinaria e riparazioni di impianti e macchinari;397,00;Liquidazione Fattura Nr. 3/14  del 15/06/2017 - INTERVENTO DI MANUTENZIONE AL GRUPPO FRIGO DEL TEATRO DELLA MISERICORDIA DI VINCI _ DETERMINA A CONTRARRE E AFFIDAMENTO DITTA CENTRO TERMOTECNICA DI PASQUALI ANGELO E MASSIMO SNC;2699;1;3;2;9;4
ACQUE S.P.A.;03/08/2017;Acqua;2,62;IVA - Liquidazione Fattura Nr. 6017012000008078  del 13/07/2017 (di cui Split per euro 2,62) - FORNITURA ACQUA POTABILE FONTANELLO VIA NAZARIO SAURO;2700;1;3;2;5;5
ACQUE S.P.A.;03/08/2017;Acqua;26,16;Liquidazione Fattura Nr. 6017012000008078  del 13/07/2017 - FORNITURA ACQUA POTABILE FONTANELLO VIA NAZARIO SAURO;2700;1;3;2;5;5
ENERGRID S.P.A.;03/08/2017;Energia elettrica;2.256,69;IVA-Liquidazione Fattura Nr. 174019418  del 12/07/2017 (di cui Split per euro 2.256,69) - FORNITURA ENERGIA ELETTRICA PER PUBBLICA ILLUMINAZIONE GIUGNO 2017;2701;1;3;2;5;4
ENERGRID S.P.A.;03/08/2017;Energia elettrica;10.257,70;Liquidazione Fattura Nr. 174019418  del 12/07/2017 - FORNITURA ENERGIA ELETTRICA PER PUBBLICA ILLUMINAZIONE GIUGNO 2017;2701;1;3;2;5;4
GALA S.P.A.;03/08/2017;Energia elettrica;6,30;IVA-Liquidazione Fattura Nr. E000160234  del 11/07/2017 (di cui Split per euro 6,30) - FORNITURA ENERGIA ELETTRICA FONTANELLO DI VITLINI;2702;1;3;2;5;4
GALA S.P.A.;03/08/2017;Energia elettrica;28,62;Liquidazione Fattura Nr. E000160234  del 11/07/2017 - FORNITURA ENERGIA ELETTRICA FONTANELLO DI VITLINI;2702;1;3;2;5;4
UTAFF SAS DI LOLLI LUCIANO & C.;03/08/2017;Altri beni e materiali di consumo n.a.c.;70,58;IVA - Liquidazione Fattura Nr. 1  del 26/05/2017 - FORNITURA ED AFFILATURA LAME E RICAMBI PER MACCHINE DA FALEGNAMERIA;2703;1;3;1;2;999
UTAFF SAS DI LOLLI LUCIANO & C.;03/08/2017;Altri beni e materiali di consumo n.a.c.;320,80;Liquidazione Fattura Nr. 1  del 26/05/2017 FORNITURA ED AFFILATURA LAME E RICAMBI PER MACCHINE DA FALEGNAMERIA;2703;1;3;1;2;999
COOPERATIVA SOCIALE MIMOSA ONLUS;03/08/2017;Manutenzione ordinaria e riparazioni di beni immobili;499,58;IVA - Liquidazione Fattura Nr. 000010-2017-FE  del 31/05/2017 (di cui Split per euro 499,58) - AFFIDAMENTO DIRETTO AI SENSI DELL'ART. 36 D.LGS. 50/2011 IN APPALTO DEL SERVIZIO DI PULIZIA DEL VERDE PUBBLICO  DAL 13.03.2017 AL 31.12.2017;2704;1;3;2;9;8
COOPERATIVA SOCIALE MIMOSA ONLUS;03/08/2017;Manutenzione ordinaria e riparazioni di beni immobili;2.270,84;Liquidazione Fattura Nr. 000010-2017-FE  del 31/05/2017 - AFFIDAMENTO DIRETTO AI SENSI DELL'ART. 36 D.LGS. 50/2011 IN APPALTO DEL SERVIZIO DI PULIZIA DEL VERDE PUBBLICO  DAL 13.03.2017 AL 31.12.2017;2704;1;3;2;9;8
NUOVA C. & P. SERRAMENTI S.N.C. DI VALORI V., PUCCI M., PROSPERI A. E MESSERI R.;03/08/2017;Fabbricati ad uso scolastico;1.376,27;IVA - Liquidazione Fattura Nr. 01/01  del 28/04/2017 (di cui Split per euro 1.376,27) - PLESSO SCOLASTICO DI PIAZZA GARIBALDI IN VINCI CAPOLUOGO - FORNITURA E POSA IN OPERA INFISSI - AFFIDAMENTO.;2705;2;2;1;9;3
NUOVA C. & P. SERRAMENTI S.N.C. DI VALORI V., PUCCI M., PROSPERI A. E MESSERI R.;03/08/2017;Fabbricati ad uso scolastico;6.255,76;Liquidazione Fattura Nr. 01/01  del 28/04/2017 - PLESSO SCOLASTICO DI PIAZZA GARIBALDI IN VINCI CAPOLUOGO - FORNITURA E POSA IN OPERA INFISSI - AFFIDAMENTO.;2705;2;2;1;9;3
CENTRO STUDI ENTI LOCALI S.R.L.;03/08/2017;Altre prestazioni professionali e specialistiche n.a.c.;135,25;IVA Liquidazione Fattura Nr. 271/AE  del 30/06/2017 (di cui Split per euro 135,25) - SERVIZIO DI ASSISTENZA FISCALE ANNO 2017 II TRIMESTRE DETERMINA N. 162 DEL 27/12/2016;2706;1;3;2;11;999
CENTRO STUDI ENTI LOCALI S.R.L.;03/08/2017;Altre prestazioni professionali e specialistiche n.a.c.;614,75;Liquidazione Fattura Nr. 271/AE  del 30/06/2017 - SERVIZIO DI ASSISTENZA FISCALE ANNO 2017 II TRIMESTRE DETERMINA N. 162 DEL 27/12/2016;2706;1;3;2;11;999
ESKIMO COOP. SOCIALE ONLUS;04/08/2017;Altre spese per servizi amministrativi;2.770,00;Liquidazione Fattura Nr. FATTPA 60_17  del 31/05/2017 - SERVIZIO ARCHIVIO MAGGIO 2017 (SALDO);2708;1;3;2;16;999
DAMAZ S.R.L. - INGROSSO CASALINGHI;04/08/2017;Altri beni e materiali di consumo n.a.c.;47,00;IVA Liquidazione Fattura Nr. 11346P  del 30/05/2017 (di cui Split per euro 47,00) - ORDINE N. 2 EDIFICI COMUNALI;2709;1;3;1;2;999
DAMAZ S.R.L. - INGROSSO CASALINGHI;04/08/2017;Altri beni e materiali di consumo n.a.c.;213,63;Liquidazione Fattura Nr. 11346P  del 30/05/2017 - ORDINE N. 2 EDIFICI COMUNALI;2709;1;3;1;2;999
DAMAZ S.R.L. - INGROSSO CASALINGHI;04/08/2017;Altri beni e materiali di consumo n.a.c.;50,39;IVA Liquidazione Fattura Nr. 11347P  del 30/05/2017 (di cui Split per euro 50,39) - ORDINE N. 2 PER MUSEI COMUNALI;2710;1;3;1;2;999
DAMAZ S.R.L. - INGROSSO CASALINGHI;04/08/2017;Altri beni e materiali di consumo n.a.c.;229,03;Liquidazione Fattura Nr. 11347P  del 30/05/2017 - ORDINE N. 2 PER MUSEI COMUNALI;2710;1;3;1;2;999
COOPERATIVA SOCIALE ZOE S.C.A.R.L.;04/08/2017;Servizi di pulizia e lavanderia;239,97;IVA Liquidazione Fattura Nr. FATTPA 125_17  del 31/05/2017 (di cui Split per euro 239,97) - PULIZIA EDIFICI COMUNALI (GENERALE) MAGGIO 2017;2711;1;3;2;13;2
COOPERATIVA SOCIALE ZOE S.C.A.R.L.;04/08/2017;Servizi di pulizia e lavanderia;1.090,76;Liquidazione Fattura Nr. FATTPA 125_17  del 31/05/2017 - PULIZIA EDIFICI COMUNALI (GENERALE) MAGGIO 2017;2711;1;3;2;13;2
COOPERATIVA SOCIALE ZOE S.C.A.R.L.;04/08/2017;Servizi di pulizia e lavanderia;28,65;IVA Liquidazione Fattura Nr. FATTPA 126_17  del 31/05/2017 (di cui Split per euro 28,65) - PULIZIE BIBLIOTECHE MAGGIO 2017;2712;1;3;2;13;2
COOPERATIVA SOCIALE ZOE S.C.A.R.L.;04/08/2017;Servizi di pulizia e lavanderia;130,24;Liquidazione Fattura Nr. FATTPA 126_17  del 31/05/2017 - PULIZIE BIBLIOTECHE MAGGIO 2017;2712;1;3;2;13;2
COOPERATIVA SOCIALE ZOE S.C.A.R.L.;04/08/2017;Servizi di pulizia e lavanderia;351,00;IVA Liquidazione Fattura Nr. FATTPA 127_17  del 31/05/2017 - PULIZIA PALESTRE MAGGIO 2017;2713;1;3;2;13;2
COOPERATIVA SOCIALE ZOE S.C.A.R.L.;04/08/2017;Servizi di pulizia e lavanderia;1.595,44;Liquidazione Fattura Nr. FATTPA 127_17  del 31/05/2017 - PULIZIA PALESTRE MAGGIO 2017;2713;1;3;2;13;2
COOPERATIVA SOCIALE ZOE S.C.A.R.L.;04/08/2017;Servizi di pulizia e lavanderia;34,06;IVA Liquidazione Fattura Nr. FATTPA 128_17  del 31/05/2017 (di cui Split per euro 34,06) - SERVIZIO PULIZIA NUOVO UTU MAGGIO 2017;2714;1;3;2;13;2
COOPERATIVA SOCIALE ZOE S.C.A.R.L.;04/08/2017;Servizi di pulizia e lavanderia;154,80;Liquidazione Fattura Nr. FATTPA 128_17  del 31/05/2017 - SERVIZIO PULIZIA NUOVO UTU MAGGIO 2017;2714;1;3;2;13;2
POSTE ITALIANE SPA SOCIETA' CON SOCIO UNICO;04/08/2017;Spese postali;19,43;Liquidazione Fattura Nr. 8717194510  del 14/07/2017 - CAN e CAD MAGGIO 2017 - Rendiconto 2092739263 -   B=041217871719451025;2715;1;3;2;16;2
COMUNE DI VINCI- CONTI CORRENTI POSTALI VARI;04/08/2017;Carta, cancelleria e stampati;45,00;REINTEGRO CCP 8805386 PER ACQUISTO BOLLETTINI POSTALI PER UFFICIO SCUOLA;2716;1;3;1;2;1
EREDI LEPORATTI S.A.S.;04/08/2017;Contratti di servizio di trasporto pubblico;77,92;IVA Liquidazione Fattura Nr. 5/E  del 06/06/2017 (di cui Split per euro 77,92) - Servizio Navetta a chiamata Vinci-Anchiano-Vinci e Vinci-Empoli Stazione-Vinci periodo 01/05/2017 - 31/05/2017;2717;1;3;2;15;1
EREDI LEPORATTI S.A.S.;04/08/2017;Contratti di servizio di trasporto pubblico;779,22;Liquidazione Fattura Nr. 5/E  del 06/06/2017 - Servizio Navetta a chiamata Vinci-Anchiano-Vinci e Vinci-Empoli Stazione-Vinci periodo 01/05/2017 - 31/05/2017;2717;1;3;2;15;1
AUSER VERDE ARGENTO;04/08/2017;Altre spese per contratti di servizio pubblico;1.000,00;AUSER VERDE ARGENTO - CONVENZIONE PER LA COLLABORAZIONE IN PROGETTI A FAVORE DEI BAMBINI E DELLE FAMIGLIE 2015-2017 - LIQUIDAZIONE CONTRIBUTO 2017 (ULTIMA RATA);2718;1;3;2;15;999
ASSOCIAZIONE CULTURALE IL PONTE;04/08/2017;Altre spese per contratti di servizio pubblico;3.943,39;Liquidazione Fattura Nr. 21  del 22/05/2017 - SERVIZI CONCESSIONE SERVIZI EDUCATIVI PER L'INFANZIA E EXTRA -SCOLASTICI MESE DI APRILE 2017;2719;1;3;2;15;999
ESKIMO COOP. SOCIALE ONLUS;04/08/2017;Altre spese per contratti di servizio pubblico;7.184,50;Liquidazione Fattura Nr. FATTPA 53_17  del 31/05/2017 - SERVIZI EDUCATIVI PER L'INFANZIA ED EXTRASCOLASTICI MESE DI MAGGIO 2017;2719;1;3;2;15;999
SKIRA EDITORE S.P.A.;04/08/2017;Pubblicazioni;764,00;"Liquidazione Fattura Nr. FATTPA 18_17 del 30/05/2017 - ACQUISTO VOLUMI ""UNA PIAZZA PER LEONARDO.IL NUOVO INGRESSO DEL MUSEO LEONARDIANO"" DA DESTINARE ALLA VENDITA PRESSO LE BIGLIETTERIE DEI MUSEI DI VINCI";2720;1;3;1;1;2
CO&SO EMPOLI - CONS. DI COOP. SOCIALI - SOCIETA' COOPERATIVA;04/08/2017;Altre spese per contratti di servizio pubblico;208,69;IVA (reverse charge) - Liquidazione Fattura Nr. 000440-2C0  del 31/05/2017 - servizi pulizia mese di maggio 2017;2721;1;3;2;15;999
CO&SO EMPOLI - CONS. DI COOP. SOCIALI - SOCIETA' COOPERATIVA;04/08/2017;Altre spese per contratti di servizio pubblico;948,60;Liquidazione Fattura Nr. 000440-2C0  del 31/05/2017 - servizi pulizia mese di maggio 2017;2721;1;3;2;15;999
CO&SO EMPOLI - CONS. DI COOP. SOCIALI - SOCIETA' COOPERATIVA;04/08/2017;Altre spese per contratti di servizio pubblico;3.911,15;Liquidazione Fattura Nr. 000443-2C0 del 31/05/2017 - Fattura per Servizio front-office al pubblico presso la Biblioteca comunale Leonardiana e sedi distaccate;2722;1;3;2;15;999
CENTRO  FORMAZIONE E CULTURA MUSICALE;04/08/2017;Trasferimenti correnti a Istituzioni Sociali Private ;9.600,00;SALDO CONTRIBUTO A SEGUITO DI PRESETAZIONE DEL RENDICONTO;2723;1;4;4;1;1
CO&SO EMPOLI - CONS. DI COOP. SOCIALI - SOCIETA' COOPERATIVA;04/08/2017;Altre spese per contratti di servizio pubblico;812,59;IVA - Liquidazione Fattura Nr. 000441-2C0  del 31/05/2017 (di cui Split per euro 812,59) - servizi ufficio turistico maggio 2017;2724;1;3;2;15;999
CO&SO EMPOLI - CONS. DI COOP. SOCIALI - SOCIETA' COOPERATIVA;04/08/2017;Altre spese per contratti di servizio pubblico;3.693,60;Liquidazione Fattura Nr. 000441-2C0  del 31/05/2017 - servizi ufficio turistico maggio 2017;2724;1;3;2;15;999
IL TARLO DI BONCI FILIPPO;04/08/2017;Mobili e arredi n.a.c.;950,00;Liquidazione Fattura Nr. FATTPA 1_17 del 07/06/2017 - ACQUISTO ARREDI PER CELEBRAZIONE MATRIMONI CIVILI ALLA CASA NATALE DI LEONARDO AD ANCHIANO;2725;2;2;1;3;999
ERARIO DELLO STATO PER PAGAMENTO I.V.A.;07/08/2017;Versamenti IVA a debito per le gestioni commerciali;4.091,84;PAGAMENTO IVA A DEBITO SERVIZI COMMERCIALI  MESE DI LUGLIO  2017;2727;1;10;3;1;1
FASTBOOK S.P.A.;07/08/2017;Pubblicazioni;52,67;Liquidazione Fattura Nr. 6217717136 del 30/04/2017 al netto di Nota: N. 6217910632 del 27/07/2017 di 10,48 - Fornitura Materiale Editoriale;2731;1;3;1;1;2
FASTBOOK S.P.A.;07/08/2017;Pubblicazioni;131,23;Liquidazione Fattura Nr. 6217727181 del 30/06/2017 - Fornitura Materiale Editoriale;2731;1;3;1;1;2
CO&SO EMPOLI - CONS. DI COOP. SOCIALI - SOCIETA' COOPERATIVA;07/08/2017;Altre spese per contratti di servizio pubblico;6,16;IVA per Oneri di sicurezza. Liquidazione Fattura Nr. 000480-2C0 del 31/05/2017 - Fatt. regime sciss.pag.;2732;1;3;2;15;999
CO&SO EMPOLI - CONS. DI COOP. SOCIALI - SOCIETA' COOPERATIVA;07/08/2017;Altre spese per contratti di servizio pubblico;28,00;Oneri di  sicurezza. Liquidazione Fattura Nr. 000480-2C0 del 31/05/2017 - Fatt. regime sciss.pag.;2732;1;3;2;15;999
GIALLOMARE MINIMAL TEATRO;07/08/2017;Altre prestazioni professionali e specialistiche n.a.c.;132,00;"IVA - Liquidazione Fattura Nr. FATTPA 8_17  del 27/04/2017 (di cui Split per euro 132,00) - AFFIDAMENTO DEL SERVIZIO DI REALIZZAZIONE DELLO SPETTACOLO TEATRALE ""ESSERE LEONARDO DA VINCI";2733;1;3;2;11;999
GIALLOMARE MINIMAL TEATRO;07/08/2017;Altre prestazioni professionali e specialistiche n.a.c.;600,00;"Liquidazione Fattura Nr. FATTPA 8_17  del 27/04/2017 - AFFIDAMENTO DEL SERVIZIO DI REALIZZAZIONE DELLO SPETTACOLO TEATRALE ""ESSERE LEONARDO DA VINCI. UN'INTERVISTA IMPOSSIBILE"" PRESSO IL TEATRO DI VINCI IL GIORNO 21 APRILE 2017 E AFFIDAMENT";2733;1;3;2;11;999
EDISON ENERGIA S.P.A.;08/08/2017;Energia elettrica;3,44;IVA-Liquidazione Fattura Nr. 5750432371  del 12/06/2017 - fornitura energia elettrica bagni pubblici mese di maggio 2017;2735;1;3;2;5;4
EDISON ENERGIA S.P.A.;08/08/2017;Energia elettrica;15,62;Liquidazione Fattura Nr. 5750432371  del 12/06/2017 - fornitura energia elettrica bagni pubblici mese di maggio 2017;2735;1;3;2;5;4
EDISON ENERGIA S.P.A.;08/08/2017;Energia elettrica;199,16;IVA-Liquidazione Fattura Nr. 5750445317  del 11/07/2017 (di cui Split per euro 199,16) - fornitura energia elettrica Edificio Comunale mese di giugno 2017;2736;1;3;2;5;4
EDISON ENERGIA S.P.A.;08/08/2017;Energia elettrica;73,03;IVA-Liquidazione Fattura Nr. 5750445881  del 11/07/2017 (di cui Split per euro 73,03) - fornitura energia elettrica Uff. Comunali Via Battisti mese di giugno 2017;2736;1;3;2;5;4
EDISON ENERGIA S.P.A.;08/08/2017;Energia elettrica;69,44;IVA-Liquidazione Fattura Nr. 5750445926  del 11/07/2017 (di cui Split per euro 69,44) - fornitura energia elettrica magazzino comunale mese di giugno 2017;2736;1;3;2;5;4
EDISON ENERGIA S.P.A.;08/08/2017;Energia elettrica;9,64;IVA-Liquidazione Fattura Nr. 5750447708  del 11/07/2017 (di cui Split per euro 9,64) - fornitura energia elettrica Uff. comunali Via Torre, 9 mese di giugno 2017;2736;1;3;2;5;4
EDISON ENERGIA S.P.A.;08/08/2017;Energia elettrica;5,79;IVA-Liquidazione Fattura Nr. 5750448266  del 11/07/2017 (di cui Split per euro 5,79) - fornitura energia elettrica ex scuola di Anchiano mese di giugno 2017;2736;1;3;2;5;4
EDISON ENERGIA S.P.A.;08/08/2017;Energia elettrica;2,43;IVA-Liquidazione Fattura Nr. 5750448340  del 11/07/2017 (di cui Split per euro 2,43) - fornitura energia elettrica alloggi Petroio mese di giugno 2017;2736;1;3;2;5;4
EDISON ENERGIA S.P.A.;08/08/2017;Energia elettrica;4,67;IVA-Liquidazione Fattura Nr. 5750448443  del 11/07/2017 (di cui Split per euro 4,67) - fornitura energia elettrica casa comparini mese di giugno 2017;2736;1;3;2;5;4
EDISON ENERGIA S.P.A.;08/08/2017;Energia elettrica;4,51;IVA-Liquidazione Fattura Nr. 5750448495  del 11/07/2017 (di cui Split per euro 4,51) - fornitura energia elettrica Uff. dismesso Via Torre, 3 mese di giugno 2017;2736;1;3;2;5;4
EDISON ENERGIA S.P.A.;08/08/2017;Energia elettrica;4,51;IVA-Liquidazione Fattura Nr. 5750448547  del 11/07/2017 (di cui Split per euro 4,51) - fornitura energia elettrica locali ex macelli mese di giugno 2017;2736;1;3;2;5;4
EDISON ENERGIA S.P.A.;08/08/2017;Energia elettrica;905,25;Liquidazione Fattura Nr. 5750445317  del 11/07/2017 - fornitura energia elettrica Edificio Comunale mese di giugno 2017;2736;1;3;2;5;4
EDISON ENERGIA S.P.A.;08/08/2017;Energia elettrica;331,95;Liquidazione Fattura Nr. 5750445881  del 11/07/2017 - fornitura energia elettrica Uff. Comunali Via Battisti mese di giugno 2017;2736;1;3;2;5;4
EDISON ENERGIA S.P.A.;08/08/2017;Energia elettrica;315,62;Liquidazione Fattura Nr. 5750445926  del 11/07/2017 - fornitura energia elettrica magazzino comunale mese di giugno 2017;2736;1;3;2;5;4
EDISON ENERGIA S.P.A.;08/08/2017;Energia elettrica;43,81;Liquidazione Fattura Nr. 5750447708  del 11/07/2017 - fornitura energia elettrica Uff. comunali Via Torre, 9 mese di giugno 2017;2736;1;3;2;5;4
EDISON ENERGIA S.P.A.;08/08/2017;Energia elettrica;26,31;Liquidazione Fattura Nr. 5750448266  del 11/07/2017 - fornitura energia elettrica ex scuola di Anchiano mese di giugno 2017;2736;1;3;2;5;4
EDISON ENERGIA S.P.A.;08/08/2017;Energia elettrica;24,31;Liquidazione Fattura Nr. 5750448340  del 11/07/2017 - fornitura energia elettrica alloggi Petroio mese di giugno 2017;2736;1;3;2;5;4
EDISON ENERGIA S.P.A.;08/08/2017;Energia elettrica;21,22;Liquidazione Fattura Nr. 5750448443  del 11/07/2017 - fornitura energia elettrica casa comparini mese di giugno 2017;2736;1;3;2;5;4
EDISON ENERGIA S.P.A.;08/08/2017;Energia elettrica;20,51;Liquidazione Fattura Nr. 5750448495  del 11/07/2017 - fornitura energia elettrica Uff. dismesso Via Torre, 3 mese di giugno 2017;2736;1;3;2;5;4
EDISON ENERGIA S.P.A.;08/08/2017;Energia elettrica;20,49;Liquidazione Fattura Nr. 5750448547  del 11/07/2017 - fornitura energia elettrica locali ex macelli mese di giugno 2017;2736;1;3;2;5;4
TERMOCONTROL SRL MANUTENZIONE IMPIANTI;08/08/2017;Manutenzione ordinaria e riparazioni di impianti e macchinari;199,01;IVA-Liquidazione Fattura Nr. 000027PA  del 08/06/2017 (di cui Split per euro 199,01) - MANUT. IMP. TERMICI DA CANONE - ANNO 2016-2017 - fattura al 31.05.2017 ;2737;1;3;2;9;4
TERMOCONTROL SRL MANUTENZIONE IMPIANTI;08/08/2017;Manutenzione ordinaria e riparazioni di impianti e macchinari;904,58;Liquidazione Fattura Nr. 000027PA  del 08/06/2017 - MANUT. IMP. TERMICI DA CANONE - ANNO 2016-2017 - fattura al 31.05.2017 ;2737;1;3;2;9;4
TERMOCONTROL SRL MANUTENZIONE IMPIANTI;08/08/2017;Manutenzione ordinaria e riparazioni di impianti e macchinari;13,29;IVA-Liquidazione Fattura Nr. 000027PA  del 08/06/2017 (di cui Split per euro 13,29) - MANUT. IMP. TERMICI DA CANONE - ANNO 2016-2017 - fattura al 31.05.2017 ;2738;1;3;2;9;4
TERMOCONTROL SRL MANUTENZIONE IMPIANTI;08/08/2017;Manutenzione ordinaria e riparazioni di impianti e macchinari;60,41;Liquidazione Fattura Nr. 000027PA  del 08/06/2017 - MANUT. IMP. TERMICI DA CANONE - ANNO 2016-2017 - fattura al 31.05.2017 ;2738;1;3;2;9;4
TAMBURINI  GIONNI;08/08/2017;Altre prestazioni professionali e specialistiche n.a.c.;262,00;"LIQUIDAZIONE FATTURA NR. FATTPA 13_17  DEL 07/06/2017 - SERVIZIO PER LO SVOLGIMENTO DELLE ATTIVITA' DI ""MEDICO COMPETENTE"" AI SENSI DEL D.LGS. 81/2008 ";2739;1;3;2;11;999
EDISON ENERGIA S.P.A.;08/08/2017;Energia elettrica;42,57;IVA-Liquidazione Fattura Nr. 5750446336  del 11/07/2017 (di cui Split per euro 42,57) - fornitura energia elettrica URP Via Fucini mese di giugno 2017;2740;1;3;2;5;4
EDISON ENERGIA S.P.A.;08/08/2017;Energia elettrica;12,14;IVA-Liquidazione Fattura Nr. 5750447470  del 11/07/2017 (di cui Split per euro 12,14) - fornitura energia elettrica archivio comunale mese di giugno 2017;2740;1;3;2;5;4
EDISON ENERGIA S.P.A.;08/08/2017;Energia elettrica;193,50;Liquidazione Fattura Nr. 5750446336  del 11/07/2017 - fornitura energia elettrica URP Via Fucini mese di giugno 2017;2740;1;3;2;5;4
EDISON ENERGIA S.P.A.;08/08/2017;Energia elettrica;55,16;Liquidazione Fattura Nr. 5750447470  del 11/07/2017 - fornitura energia elettrica archivio comunale mese di giugno 2017;2740;1;3;2;5;4
SMS DI SERAFINI MIRKO;08/08/2017;Manutenzione ordinaria e riparazioni di beni immobili;1.263,62;IVA-Liquidazione Fattura Nr. 22/PA  del 28/06/2017 (di cui Split per euro 1.263,62) - MANUTENZIONE SEGNALETICA ORIZZONTALE SULLE STRADE COMUNALI-DETERMINA A CONTRARRE - IMPEGNO DI SPESA ED AFFIDAMENTO DITTA SMS DI LUCCA;2741;1;3;2;9;8
SMS DI SERAFINI MIRKO;08/08/2017;Manutenzione ordinaria e riparazioni di beni immobili;5.743,71;Liquidazione Fattura Nr. 22/PA  del 28/06/2017 - MANUTENZIONE SEGNALETICA ORIZZONTALE SULLE STRADE COMUNALI-DETERMINA A CONTRARRE - IMPEGNO DI SPESA ED AFFIDAMENTO DITTA SMS DI LUCCA;2741;1;3;2;9;8
EDISON ENERGIA S.P.A.;08/08/2017;Energia elettrica;90,82;IVA-Liquidazione Fattura Nr. 5750445728  del 11/07/2017 (di cui Split per euro 90,82) - fornitura energia elettrica scuola infanzia Sovigliana mese di giugno 2017;2742;1;3;2;5;4
EDISON ENERGIA S.P.A.;08/08/2017;Energia elettrica;34,72;IVA-Liquidazione Fattura Nr. 5750446503  del 11/07/2017 (di cui Split per euro 34,72) - fornitura energia elettrica scuola infanzia Vinci mese di giugno 2017;2742;1;3;2;5;4
EDISON ENERGIA S.P.A.;08/08/2017;Energia elettrica;23,33;IVA-Liquidazione Fattura Nr. 5750446881  del 11/07/2017 (di cui Split per euro 23,33) - fornitura energia elettrica scuola infanzia Spicchio mese di giugno 2017;2742;1;3;2;5;4
EDISON ENERGIA S.P.A.;08/08/2017;Energia elettrica;412,83;Liquidazione Fattura Nr. 5750445728  del 11/07/2017 - fornitura energia elettrica scuola infanzia Sovigliana mese di giugno 2017;2742;1;3;2;5;4
EDISON ENERGIA S.P.A.;08/08/2017;Energia elettrica;157,81;Liquidazione Fattura Nr. 5750446503  del 11/07/2017 - fornitura energia elettrica scuola infanzia Vinci mese di giugno 2017;2742;1;3;2;5;4
EDISON ENERGIA S.P.A.;08/08/2017;Energia elettrica;106,03;Liquidazione Fattura Nr. 5750446881  del 11/07/2017 - fornitura energia elettrica scuola infanzia Spicchio mese di giugno 2017;2742;1;3;2;5;4
TERMOCONTROL SRL MANUTENZIONE IMPIANTI;08/08/2017;Manutenzione ordinaria e riparazioni di impianti e macchinari;154,46;IVA-Liquidazione Fattura Nr. 000027PA  del 08/06/2017 (di cui Split per euro 154,46) - MANUT. IMP. TERMICI DA CANONE - ANNO 2016-2017 - fattura al 31.05.2017 ;2743;1;3;2;9;4
TERMOCONTROL SRL MANUTENZIONE IMPIANTI;08/08/2017;Manutenzione ordinaria e riparazioni di impianti e macchinari;702,08;Liquidazione Fattura Nr. 000027PA  del 08/06/2017 - MANUT. IMP. TERMICI DA CANONE - ANNO 2016-2017 - fattura al 31.05.2017 ;2743;1;3;2;9;4
TERMOCONTROL SRL MANUTENZIONE IMPIANTI;08/08/2017;Manutenzione ordinaria e riparazioni di impianti e macchinari;178,06;IVA-Liquidazione Fattura Nr. 000027PA  del 08/06/2017 (di cui Split per euro 178,06) - MANUT. IMP. TERMICI DA CANONE - ANNO 2016-2017 - fattura al 31.05.2017 ;2744;1;3;2;9;4
TERMOCONTROL SRL MANUTENZIONE IMPIANTI;08/08/2017;Manutenzione ordinaria e riparazioni di impianti e macchinari;809,37;Liquidazione Fattura Nr. 000027PA  del 08/06/2017 - MANUT. IMP. TERMICI DA CANONE - ANNO 2016-2017 - fattura al 31.05.2017 ;2744;1;3;2;9;4
EDISON ENERGIA S.P.A.;08/08/2017;Energia elettrica;33,41;IVA-Liquidazione Fattura Nr. 5750445944  del 11/07/2017 (di cui Split per euro 33,41) - fornitura energia elettrica scuola primaria e secondaria 1� grado Vinci mese di giugno 2017;2745;1;3;2;5;4
EDISON ENERGIA S.P.A.;08/08/2017;Energia elettrica;60,97;IVA-Liquidazione Fattura Nr. 5750446048  del 11/07/2017 (di cui Split per euro 60,97) - fornitura energia elettrica scuola primaria Via Guiducci mese di giugno 2017;2745;1;3;2;5;4
EDISON ENERGIA S.P.A.;08/08/2017;Energia elettrica;151,86;Liquidazione Fattura Nr. 5750445944  del 11/07/2017 - fornitura energia elettrica scuola primaria e secondaria 1� grado Vinci mese di giugno 2017;2745;1;3;2;5;4
EDISON ENERGIA S.P.A.;08/08/2017;Energia elettrica;277,14;Liquidazione Fattura Nr. 5750446048  del 11/07/2017 - fornitura energia elettrica scuola primaria Via Guiducci mese di giugno 2017;2745;1;3;2;5;4
EDISON ENERGIA S.P.A.;08/08/2017;Energia elettrica;78,60;IVA-Liquidazione Fattura Nr. 5750445837  del 11/07/2017 (di cui Split per euro 78,60) - IT001E40886806;2746;1;3;2;5;4
EDISON ENERGIA S.P.A.;08/08/2017;Energia elettrica;33,41;IVA-Liquidazione Fattura Nr. 5750445944  del 11/07/2017 (di cui Split per euro 33,41) - fornitura energia elettrica scuola primaria e secondaria 1� grado Vinci mese di giugno 2017;2746;1;3;2;5;4
EDISON ENERGIA S.P.A.;08/08/2017;Energia elettrica;357,27;Liquidazione Fattura Nr. 5750445837  del 11/07/2017 - IT001E40886806;2746;1;3;2;5;4
EDISON ENERGIA S.P.A.;08/08/2017;Energia elettrica;151,85;Liquidazione Fattura Nr. 5750445944  del 11/07/2017 - fornitura energia elettrica scuola primaria e secondaria 1� grado Vinci mese di giugno 2017;2746;1;3;2;5;4
TERMOCONTROL SRL MANUTENZIONE IMPIANTI;08/08/2017;Manutenzione ordinaria e riparazioni di impianti e macchinari;136,81;IVA-Liquidazione Fattura Nr. 000027PA  del 08/06/2017 (di cui Split per euro 136,81) - MANUT. IMP. TERMICI DA CANONE - ANNO 2016-2017 - fattura al 31.05.2017 ;2747;1;3;2;9;4
TERMOCONTROL SRL MANUTENZIONE IMPIANTI;08/08/2017;Manutenzione ordinaria e riparazioni di impianti e macchinari;621,87;Liquidazione Fattura Nr. 000027PA  del 08/06/2017 - MANUT. IMP. TERMICI DA CANONE - ANNO 2016-2017 - fattura al 31.05.2017 ;2747;1;3;2;9;4
EDISON ENERGIA S.P.A.;08/08/2017;Energia elettrica;52,36;IVA-Liquidazione Fattura Nr. 5750446170  del 11/07/2017 (di cui Split per euro 52,36) - fornitura energia elettrica biblioteca comunale mese di giugno 2017;2748;1;3;2;5;4
EDISON ENERGIA S.P.A.;08/08/2017;Energia elettrica;238,01;Liquidazione Fattura Nr. 5750446170  del 11/07/2017 - fornitura energia elettrica biblioteca comunale mese di giugno 2017;2748;1;3;2;5;4
EDISON ENERGIA S.P.A.;08/08/2017;Energia elettrica;458,89;IVA-Liquidazione Fattura Nr. 5750445078  del 11/07/2017 (di cui Split per euro 458,89) - fornitura energia elettrica palazzina uzielli mese di giugno 2017;2749;1;3;2;5;4
EDISON ENERGIA S.P.A.;08/08/2017;Energia elettrica;176,59;IVA-Liquidazione Fattura Nr. 5750445356  del 11/07/2017 (di cui Split per euro 176,59) - fornitura energia elettrica Museo Leonardiano mese di giugno 2017;2749;1;3;2;5;4
EDISON ENERGIA S.P.A.;08/08/2017;Energia elettrica;98,61;IVA-Liquidazione Fattura Nr. 5750445660  del 11/07/2017 (di cui Split per euro 98,61) - fornitura energia elettrica casa Natale di Leonardo mese di giugno 2017;2749;1;3;2;5;4
EDISON ENERGIA S.P.A.;08/08/2017;Energia elettrica;2.085,88;Liquidazione Fattura Nr. 5750445078  del 11/07/2017 - fornitura energia elettrica palazzina uzielli mese di giugno 2017;2749;1;3;2;5;4
EDISON ENERGIA S.P.A.;08/08/2017;Energia elettrica;802,68;Liquidazione Fattura Nr. 5750445356  del 11/07/2017 - fornitura energia elettrica Museo Leonardiano mese di giugno 2017;2749;1;3;2;5;4
EDISON ENERGIA S.P.A.;08/08/2017;Energia elettrica;448,21;Liquidazione Fattura Nr. 5750445660  del 11/07/2017 - fornitura energia elettrica casa Natale di Leonardo mese di giugno 2017;2749;1;3;2;5;4
EDISON ENERGIA S.P.A.;08/08/2017;Energia elettrica;60,69;IVA-Liquidazione Fattura Nr. 5750446051  del 11/07/2017 (di cui Split per euro 60,69) - fornitura energia elettrica Edificio Comunale mese di giugno 2017;2750;1;3;2;5;4
EDISON ENERGIA S.P.A.;08/08/2017;Energia elettrica;275,86;Liquidazione Fattura Nr. 5750446051  del 11/07/2017 - fornitura energia elettrica Edificio Comunale mese di giugno 2017;2750;1;3;2;5;4
TERMOCONTROL SRL MANUTENZIONE IMPIANTI;08/08/2017;Manutenzione ordinaria e riparazioni di impianti e macchinari;144,10;IVA-Liquidazione Fattura Nr. 000028PA  del 08/06/2017 - MANUT. IMP. TERMICI DA CANONE - ANNO 2016-2017 - fattura al 31.05.2017;2751;1;3;2;9;4
TERMOCONTROL SRL MANUTENZIONE IMPIANTI;08/08/2017;Manutenzione ordinaria e riparazioni di impianti e macchinari;655,00;Liquidazione Fattura Nr. 000028PA  del 08/06/2017 - MANUT. IMP. TERMICI DA CANONE - ANNO 2016-2017 - fattura al 31.05.2017;2751;1;3;2;9;4
TERMOCONTROL SRL MANUTENZIONE IMPIANTI;08/08/2017;Manutenzione ordinaria e riparazioni di impianti e macchinari;47,67;IVA-Liquidazione Fattura Nr. 000027PA  del 08/06/2017 (di cui Split per euro 47,67) - MANUT. IMP. TERMICI DA CANONE - ANNO 2016-2017 - fattura al 31.05.2017 ;2752;1;3;2;9;4
TERMOCONTROL SRL MANUTENZIONE IMPIANTI;08/08/2017;Manutenzione ordinaria e riparazioni di impianti e macchinari;216,67;Liquidazione Fattura Nr. 000027PA  del 08/06/2017 - MANUT. IMP. TERMICI DA CANONE - ANNO 2016-2017 - fattura al 31.05.2017 ;2752;1;3;2;9;4
TERMOCONTROL SRL MANUTENZIONE IMPIANTI;08/08/2017;Manutenzione ordinaria e riparazioni di impianti e macchinari;52,25;IVA-Liquidazione Fattura Nr. 000027PA  del 08/06/2017 (di cui Split per euro 52,25) - MANUT. IMP. TERMICI DA CANONE - ANNO 2016-2017 - fattura al 31.05.2017 ;2753;1;3;2;9;4
TERMOCONTROL SRL MANUTENZIONE IMPIANTI;08/08/2017;Manutenzione ordinaria e riparazioni di impianti e macchinari;237,50;Liquidazione Fattura Nr. 000027PA  del 08/06/2017 - MANUT. IMP. TERMICI DA CANONE - ANNO 2016-2017 - fattura al 31.05.2017 ;2753;1;3;2;9;4
TERMOCONTROL SRL MANUTENZIONE IMPIANTI;08/08/2017;Manutenzione ordinaria e riparazioni di impianti e macchinari;38,50;IVA-Liquidazione Fattura Nr. 000027PA  del 08/06/2017 (di cui Split per euro 38,50) - MANUT. IMP. TERMICI DA CANONE - ANNO 2016-2017 - fattura al 31.05.2017 ;2754;1;3;2;9;4
TERMOCONTROL SRL MANUTENZIONE IMPIANTI;08/08/2017;Manutenzione ordinaria e riparazioni di impianti e macchinari;57,75;IVA-Liquidazione Fattura Nr. 000028PA  del 08/06/2017 - MANUT. IMP. TERMICI DA CANONE - ANNO 2016-2017 - fattura al 31.05.2017;2754;1;3;2;9;4
TERMOCONTROL SRL MANUTENZIONE IMPIANTI;08/08/2017;Manutenzione ordinaria e riparazioni di impianti e macchinari;175,01;Liquidazione Fattura Nr. 000027PA  del 08/06/2017 - MANUT. IMP. TERMICI DA CANONE - ANNO 2016-2017 - fattura al 31.05.2017 ;2754;1;3;2;9;4
TERMOCONTROL SRL MANUTENZIONE IMPIANTI;08/08/2017;Manutenzione ordinaria e riparazioni di impianti e macchinari;262,49;Liquidazione Fattura Nr. 000028PA  del 08/06/2017 - MANUT. IMP. TERMICI DA CANONE - ANNO 2016-2017 - fattura al 31.05.2017;2754;1;3;2;9;4
EDISON ENERGIA S.P.A.;08/08/2017;Energia elettrica;43,24;IVA-Liquidazione Fattura Nr. 5750446328  del 11/07/2017 - fornitura energia elettrica Palasport mese di giugno 2017;2755;1;3;2;5;4
EDISON ENERGIA S.P.A.;08/08/2017;Energia elettrica;196,55;Liquidazione Fattura Nr. 5750446328  del 11/07/2017 - fornitura energia elettrica Palasport mese di giugno 2017;2755;1;3;2;5;4
EDISON ENERGIA S.P.A.;08/08/2017;Energia elettrica;12,93;IVA-Liquidazione Fattura Nr. 5750447416  del 11/07/2017 (di cui Split per euro 12,93) - fornitura energia elettrica cassa espansione Piccaratico mese di giugno 2017;2756;1;3;2;5;4
EDISON ENERGIA S.P.A.;08/08/2017;Energia elettrica;7,35;IVA-Liquidazione Fattura Nr. 5750447975  del 11/07/2017 (di cui Split per euro 7,35) - fornitura energia elettrica mercato settimanale e impianto irrigazione mese di giugno 2017;2756;1;3;2;5;4
EDISON ENERGIA S.P.A.;08/08/2017;Energia elettrica;5,81;IVA-Liquidazione Fattura Nr. 5750448262  del 11/07/2017 (di cui Split per euro 5,81) - fornitura energia elettrica Pilomat mese di giugno 2017;2756;1;3;2;5;4
EDISON ENERGIA S.P.A.;08/08/2017;Energia elettrica;58,78;Liquidazione Fattura Nr. 5750447416  del 11/07/2017 - fornitura energia elettrica cassa espansione Piccaratico mese di giugno 2017;2756;1;3;2;5;4
EDISON ENERGIA S.P.A.;08/08/2017;Energia elettrica;33,40;Liquidazione Fattura Nr. 5750447975  del 11/07/2017 - fornitura energia elettrica mercato settimanale e impianto irrigazione mese di giugno 2017;2756;1;3;2;5;4
EDISON ENERGIA S.P.A.;08/08/2017;Energia elettrica;26,40;Liquidazione Fattura Nr. 5750448262  del 11/07/2017 - fornitura energia elettrica Pilomat mese di giugno 2017;2756;1;3;2;5;4
EDISON ENERGIA S.P.A.;08/08/2017;Energia elettrica;21,28;IVA-Liquidazione Fattura Nr. 5750446973  del 11/07/2017 (di cui Split per euro 21,28) - fornitura energia elettrica uff. turistico nuovo mese di giugno 2017;2757;1;3;2;5;4
EDISON ENERGIA S.P.A.;08/08/2017;Energia elettrica;2,14;IVA-Liquidazione Fattura Nr. 5750448887  del 11/07/2017 (di cui Split per euro 2,14) - fornitura energia elettrica bagni pubblici mese di giugno 2017;2757;1;3;2;5;4
EDISON ENERGIA S.P.A.;08/08/2017;Energia elettrica;96,73;Liquidazione Fattura Nr. 5750446973  del 11/07/2017 - fornitura energia elettrica uff. turistico nuovo mese di giugno 2017;2757;1;3;2;5;4
EDISON ENERGIA S.P.A.;08/08/2017;Energia elettrica;9,71;Liquidazione Fattura Nr. 5750448887  del 11/07/2017 - fornitura energia elettrica bagni pubblici mese di giugno 2017;2757;1;3;2;5;4
TERMOCONTROL SRL MANUTENZIONE IMPIANTI;08/08/2017;Manutenzione ordinaria e riparazioni di beni immobili;17,78;IVA-Liquidazione Fattura Nr. 000027PA  del 08/06/2017 (di cui Split per euro 17,78) - MANUT. IMP. TERMICI DA CANONE - ANNO 2016-2017 - fattura al 31.05.2017 ;2758;1;3;2;9;8
TERMOCONTROL SRL MANUTENZIONE IMPIANTI;08/08/2017;Manutenzione ordinaria e riparazioni di beni immobili;80,84;Liquidazione Fattura Nr. 000027PA  del 08/06/2017 - MANUT. IMP. TERMICI DA CANONE - ANNO 2016-2017 - fattura al 31.05.2017 ;2758;1;3;2;9;8
PAGANELLI GARGANI LECCI  S.A.S.;08/08/2017;Manutenzione ordinaria e riparazioni di beni immobili;146,20;IVA-Liquidazione Fattura Nr. 000003-2017-FAEL  del 14/06/2017 (di cui Split per euro 146,20) - PULIZIA CADITOIE E POZZETTI STRADALI;2759;1;3;2;9;8
PAGANELLI GARGANI LECCI  S.A.S.;08/08/2017;Manutenzione ordinaria e riparazioni di beni immobili;1.462,00;Liquidazione Fattura Nr. 000003-2017-FAEL  del 14/06/2017 - PULIZIA CADITOIE E POZZETTI STRADALI;2759;1;3;2;9;8
CONSORZIO STRADALE DI RIPALTA C/O STUDIO TECNICO OPUS;08/08/2017;Altri trasferimenti a famiglie n.a.c.;1.500,00;Liquidazione contributo per l'anno 2017;2760;1;4;2;5;999
SOC.ING.MAGNANI SRL;08/08/2017;Altri beni e materiali di consumo n.a.c.;63,91;IVA-Liquidazione Fattura Nr. 53/10  del 20/06/2017 (di cui Split per euro 63,91) - FORNITURA STABILIZZATO PER MANUTENZIONE STRADE VICINALI - DETERMINA N. 59 DEL 28.03.2017 - CIG: ZA81E055AB;2761;1;3;1;2;999
SOC.ING.MAGNANI SRL;08/08/2017;Altri beni e materiali di consumo n.a.c.;36,19;IVA-Liquidazione Fattura Nr. 56/10  del 27/06/2017 (di cui Split per euro 36,19) - FORNITURA STABILIZZATO PER MANUTENZIONE STRADE VICINALI - DETERMINA N. 59 DEL 28.03.2017 - CIG: ZA81E055AB.;2761;1;3;1;2;999
SOC.ING.MAGNANI SRL;08/08/2017;Altri beni e materiali di consumo n.a.c.;290,52;Liquidazione Fattura Nr. 53/10  del 20/06/2017 - FORNITURA STABILIZZATO PER MANUTENZIONE STRADE VICINALI - DETERMINA N. 59 DEL 28.03.2017 - CIG: ZA81E055AB;2761;1;3;1;2;999
SOC.ING.MAGNANI SRL;08/08/2017;Altri beni e materiali di consumo n.a.c.;164,52;Liquidazione Fattura Nr. 56/10  del 27/06/2017 - FORNITURA STABILIZZATO PER MANUTENZIONE STRADE VICINALI - DETERMINA N. 59 DEL 28.03.2017 - CIG: ZA81E055AB.;2761;1;3;1;2;999
EDISON ENERGIA S.P.A.;08/08/2017;Energia elettrica;10,81;IVA-Liquidazione Fattura Nr. 5750447597  del 11/07/2017 (di cui Split per euro 10,81) - fornitura energia elettrica fontanello parco Mille mese di giugno 2017;2762;1;3;2;5;4
EDISON ENERGIA S.P.A.;08/08/2017;Energia elettrica;49,13;Liquidazione Fattura Nr. 5750447597  del 11/07/2017 - fornitura energia elettrica fontanello parco Mille mese di giugno 2017;2762;1;3;2;5;4
EDISON ENERGIA S.P.A.;08/08/2017;Energia elettrica;48,14;IVA-Liquidazione Fattura Nr. 5750446234  del 11/07/2017 (di cui Split per euro 48,14) - fornitura energia elettrica nido comunale mese di giugno 2017;2763;1;3;2;5;4
EDISON ENERGIA S.P.A.;08/08/2017;Energia elettrica;218,81;Liquidazione Fattura Nr. 5750446234  del 11/07/2017 - fornitura energia elettrica nido comunale mese di giugno 2017;2763;1;3;2;5;4
EDISON ENERGIA S.P.A.;08/08/2017;Energia elettrica;80,11;IVA-Liquidazione Fattura Nr. 5750445820  del 11/07/2017 (di cui Split per euro 80,11) - fornitura energia elettrica villa reghini mese di giugno 2017;2764;1;3;2;5;4
EDISON ENERGIA S.P.A.;08/08/2017;Energia elettrica;364,13;Liquidazione Fattura Nr. 5750445820  del 11/07/2017 - fornitura energia elettrica villa reghini mese di giugno 2017;2764;1;3;2;5;4
TERMOCONTROL SRL MANUTENZIONE IMPIANTI;08/08/2017;Manutenzione ordinaria e riparazioni di impianti e macchinari;35,47;IVA-Liquidazione Fattura Nr. 000028PA  del 08/06/2017 - MANUT. IMP. TERMICI DA CANONE - ANNO 2016-2017 - fattura al 31.05.2017;2765;1;3;2;9;4
TERMOCONTROL SRL MANUTENZIONE IMPIANTI;08/08/2017;Manutenzione ordinaria e riparazioni di impianti e macchinari;161,25;Liquidazione Fattura Nr. 000028PA  del 08/06/2017 - MANUT. IMP. TERMICI DA CANONE - ANNO 2016-2017 - fattura al 31.05.2017;2765;1;3;2;9;4
TERMOCONTROL SRL MANUTENZIONE IMPIANTI;08/08/2017;Manutenzione ordinaria e riparazioni di impianti e macchinari;80,76;IVA-Liquidazione Fattura Nr. 000027PA  del 08/06/2017 (di cui Split per euro 80,76) - MANUT. IMP. TERMICI DA CANONE - ANNO 2016-2017 - fattura al 31.05.2017 ;2766;1;3;2;9;4
TERMOCONTROL SRL MANUTENZIONE IMPIANTI;08/08/2017;Manutenzione ordinaria e riparazioni di impianti e macchinari;367,09;Liquidazione Fattura Nr. 000027PA  del 08/06/2017 - MANUT. IMP. TERMICI DA CANONE - ANNO 2016-2017 - fattura al 31.05.2017 ;2766;1;3;2;9;4
EDISON ENERGIA S.P.A.;08/08/2017;Energia elettrica;67,55;IVA-Liquidazione Fattura Nr. 5750445939  del 11/07/2017 (di cui Split per euro 67,55) - fornitura energia elettrica resideza per anziani mese di giugno 2017;2767;1;3;2;5;4
EDISON ENERGIA S.P.A.;08/08/2017;Energia elettrica;307,06;Liquidazione Fattura Nr. 5750445939  del 11/07/2017 - fornitura energia elettrica resideza per anziani mese di giugno 2017;2767;1;3;2;5;4
TERMOCONTROL SRL MANUTENZIONE IMPIANTI;08/08/2017;Manutenzione ordinaria e riparazioni di impianti e macchinari;35,29;IVA-Liquidazione Fattura Nr. 000027PA  del 08/06/2017 (di cui Split per euro 35,29) - MANUT. IMP. TERMICI DA CANONE - ANNO 2016-2017 - fattura al 31.05.2017 ;2768;1;3;2;9;4
TERMOCONTROL SRL MANUTENZIONE IMPIANTI;08/08/2017;Manutenzione ordinaria e riparazioni di impianti e macchinari;160,42;Liquidazione Fattura Nr. 000027PA  del 08/06/2017 - MANUT. IMP. TERMICI DA CANONE - ANNO 2016-2017 - fattura al 31.05.2017 ;2768;1;3;2;9;4
ITALIAN GARDEN S.R.L.;08/08/2017;Beni immobili n.a.c.;1.089,00;IVA-Liquidazione Fattura Nr. 46/10  del 13/06/2017 (di cui Split per euro 1.089,00) - POSA IN OPERA DI PONTE INDIANO E FORNITURA E POSA DELLA PAVIMENTAZIONE IN GOMMA ANTITRAUMA NECECESSARIA ;2769;2;2;1;9;999
ITALIAN GARDEN S.R.L.;08/08/2017;Beni immobili n.a.c.;4.950,02;Liquidazione Fattura Nr. 46/10  del 13/06/2017 - POSA IN OPERA DI PONTE INDIANO E FORNITURA E POSA DELLA PAVIMENTAZIONE IN GOMMA ANTITRAUMA NECECESSARIA ;2769;2;2;1;9;999
O.L.V. SRL IMPIANTI ELETTRICI CIVILI ED INDUSTRIALI;08/08/2017;Infrastrutture stradali;16,86;IVA - Liquidazione Fattura Nr. 16  del 18/07/2017 - Realizzazione di due limitate estensioni della linea di pubblica illuminazione in localita poggio alla cavalla e via cimabue.;2770;2;2;1;9;12
O.L.V. SRL IMPIANTI ELETTRICI CIVILI ED INDUSTRIALI;08/08/2017;Infrastrutture stradali;168,63;Liquidazione Fattura Nr. 16  del 18/07/2017 - Realizzazione di due limitate estensioni della linea di pubblica illuminazione in localita poggio alla cavalla e via cimabue.;2770;2;2;1;9;12
LOTTI  GIUSEPPE;08/08/2017;Incarichi professionali per la realizzazione di investimenti;4.326,51;LIQUIDAZIONE FATTURA NR. 00004  DEL 09/05/2017 - INCARICO PER RELAZIONE GEOLOGICA E GEOTECNICA PER PASSERELLA PERCORSO DENOMINATO STRADA VERDE;2771;2;2;3;5;1
OASI VERDE SNC DI GIRALDI SONIA & C.;09/08/2017;Beni per attivit� di rappresentanza ;90,00;Liquidazione Fattura Nr. 000004-2017-PA  del 17/06/2017 - Cerimonia 17 Giugno 2017 - Fornitura n.1 corona di alloro senza canne;2772;1;3;1;2;9
ANTENNA 5 S.R.L.;09/08/2017;pubblicit�;159,50;"IVA Liquidazione Fattura Nr. 000010-2017-FE  del 29/04/2017 (di cui Split per euro 159,50) - SERVIZIO DI ATTIVIT� INFORMATIVA DEGLI EVENTI ""LVII LETTURA VINCIANA ""(8 APRILE 2017) E ""CELEBRAZIONE DEL 25 APRILE""";2773;1;3;2;2;4
ANTENNA 5 S.R.L.;09/08/2017;pubblicit�;725,00;"Liquidazione Fattura Nr. 000010-2017-FE  del 29/04/2017 - SERVIZIO DI ATTIVIT� INFORMATIVA DEGLI EVENTI ""LVII LETTURA VINCIANA ""(8 APRILE 2017) E ""CELEBRAZIONE DEL 25 APRILE""";2773;1;3;2;2;4
POSTE ITALIANE SPA SOCIETA' CON SOCIO UNICO;09/08/2017;Altre spese per servizi amministrativi;134,89;IVA Liquidazione Fattura Nr. 8017123611  del 03/07/2017 (di cui Split per euro 134,89) - NOTIFICHE MARZO  2017 - N. 133 PEZZI  -  B=034017801712361109;2774;1;3;2;16;999
POSTE ITALIANE SPA SOCIETA' CON SOCIO UNICO;09/08/2017;Altre spese per servizi amministrativi;57,81;IVA Liquidazione Fattura Nr. 8017123612  del 03/07/2017 (di cui Split per euro 57,81) - NOTIFICHE APRILE 2017  - N. 57 PEZZI - B=034017801712361210;2774;1;3;2;16;999
POSTE ITALIANE SPA SOCIETA' CON SOCIO UNICO;09/08/2017;Altre spese per servizi amministrativi;96,35;IVA Liquidazione Fattura Nr. 8017123613  del 03/07/2017 (di cui Split per euro 96,35) - NOTIFICHE MAGGIO 2017 - N. 95 PEZZI -  B=034017801712361311;2774;1;3;2;16;999
POSTE ITALIANE SPA SOCIETA' CON SOCIO UNICO;09/08/2017;Altre spese per servizi amministrativi;112,58;IVA Liquidazione Fattura Nr. 8017127328  del 18/07/2017 (di cui Split per euro 112,58) - NOTIFICHE GIUGNO 2017 - N. 111 PEZZI - B=034017801712732806;2774;1;3;2;16;999
POSTE ITALIANE SPA SOCIETA' CON SOCIO UNICO;09/08/2017;Altre spese per servizi amministrativi;613,13;Liquidazione Fattura Nr. 8017123611  del 03/07/2017 - NOTIFICHE MARZO  2017 - N. 133 PEZZI  -  B=034017801712361109;2774;1;3;2;16;999
POSTE ITALIANE SPA SOCIETA' CON SOCIO UNICO;09/08/2017;Altre spese per servizi amministrativi;262,77;Liquidazione Fattura Nr. 8017123612  del 03/07/2017 - NOTIFICHE APRILE 2017  - N. 57 PEZZI - B=034017801712361210;2774;1;3;2;16;999
POSTE ITALIANE SPA SOCIETA' CON SOCIO UNICO;09/08/2017;Altre spese per servizi amministrativi;437,95;Liquidazione Fattura Nr. 8017123613  del 03/07/2017 - NOTIFICHE MAGGIO 2017 - N. 95 PEZZI -  B=034017801712361311;2774;1;3;2;16;999
POSTE ITALIANE SPA SOCIETA' CON SOCIO UNICO;09/08/2017;Altre spese per servizi amministrativi;511,71;"Liquidazione Fattura Nr. 8017127328  del 18/07/2017 - NOTIFICHE GIUGNO 2017 - N. 111 PEZZI - B=034017801712732806
";2774;1;3;2;16;999
ETRURIA P.A. SRL;09/08/2017;Stampati specialistici;59,40;IVA - Liquidazione Fattura Nr. 1068/00000  del 31/05/2017 (di cui Split per euro 59,40) - FORNITURA N. 30 CARTELLINE PER CONSEGNA PERGAMENE DI MATRIMONI ED UNIONI CIVILI;2775;1;3;1;2;14
ETRURIA P.A. SRL;09/08/2017;Stampati specialistici;270,00;Liquidazione Fattura Nr. 1068/00000  del 31/05/2017 - FORNITURA N. 30 CARTELLINE PER CONSEGNA PERGAMENE DI MATRIMONI ED UNIONI CIVILI;2775;1;3;1;2;14
DAMAZ S.R.L. - INGROSSO CASALINGHI;09/08/2017;Altri beni e materiali di consumo n.a.c.;22,23;IVA Liquidazione Fattura Nr. 11507P  del 19/06/2017 (di cui Split per euro 22,23) - ordine n. 3 EDIFICI COMUNALI;2776;1;3;1;2;999
DAMAZ S.R.L. - INGROSSO CASALINGHI;09/08/2017;Altri beni e materiali di consumo n.a.c.;101,04;Liquidazione Fattura Nr. 11507P  del 19/06/2017 - ordine n. 3 EDIFICI COMUNALI;2776;1;3;1;2;999
ISTITUTO COMPRENSIVO DI VINCI;09/08/2017;Trasferimenti correnti a Ministero dell'Istruzione - Istituzioni scolastiche;5.581,27;LIQUIDAZIONE COOFINANZIAMENTO P.E.Z. E SECONDA PARTE DEL CONTRIBUTO COMUNALE PER L'ORGANIZZAZIONE A.S. 16/17;2777;1;4;1;1;2
ISTITUTO COMPRENSIVO DI VINCI;09/08/2017;Trasferimenti correnti a Ministero dell'Istruzione - Istituzioni scolastiche;3.197,64;LIQUIDAZIONE COOFINANZIAMENTO P.E.Z. E SECONDA PARTE DEL CONTRIBUTO COMUNALE PER L'ORGANIZZAZIONE A.S. 16/17;2778;1;4;1;1;2
CRISTOFORO SOC.COOP. SOCIALE ONLUS;09/08/2017;Altri servizi diversi n.a.c.;950,82;IVA-Liquidazione Fattura Nr. 345  del 22/06/2017 (di cui Split per euro 950,82) - SERVIZIO ACCOMPAGNAMENTO MESE DI MAGGIO 2017;2779;1;3;2;99;999
CRISTOFORO SOC.COOP. SOCIALE ONLUS;09/08/2017;Altri servizi diversi n.a.c.;113,80;IVA-Liquidazione Fattura Nr. 360  del 22/06/2017 (di cui Split per euro 113,80) - SERVIZIO PRESCUOLA MESE DI MAGGIO 2017;2779;1;3;2;99;999
CRISTOFORO SOC.COOP. SOCIALE ONLUS;09/08/2017;Altri servizi diversi n.a.c.;9.508,16;Liquidazione Fattura Nr. 345  del 22/06/2017 - SERVIZIO ACCOMPAGNAMENTO MESE DI MAGGIO 2017;2779;1;3;2;99;999
CRISTOFORO SOC.COOP. SOCIALE ONLUS;09/08/2017;Altri servizi diversi n.a.c.;1.137,96;Liquidazione Fattura Nr. 360  del 22/06/2017 - SERVIZIO PRESCUOLA MESE DI MAGGIO 2017;2779;1;3;2;99;999
CIR FOOD S.C. DIVISIONE EUDANIA;09/08/2017;Contratti di servizio per le mense scolastiche;1.146,01;IVA-Liquid. Fattura Nr. 5200016959  del 31/05/2017 (di cui Split per euro 1.146,01) - Destinatario:0000100288,COMUNE DI VINCI,Piazza Leonardo 29,VINCI,50059,FI Trattenute DPR RIT 0,5 % ART. 4 C.3 DPR 207/2010 di 143,97- REFEZIONE SCOLASTIC ;2780;1;3;2;15;6
CIR FOOD S.C. DIVISIONE EUDANIA;09/08/2017;Contratti di servizio per le mense scolastiche;28.650,31;Liquidazione Fattura Nr. 5200016959  del 31/05/2017 - Destinatario:0000100288,COMUNE DI VINCI,Piazza Leonardo 29,VINCI,50059,FI Trattenute DPR RIT 0,5 % ART. 4 C.3 DPR 207/2010 di 143,97- REFEZIONE SCOLASTICA MESE DI MAGGIO 2017;2780;1;3;2;15;6
ANCILLOTTI DI EREDI ANCILLOTTI LIDO S.N.C. DI ANCILLOTTI L. & C.;09/08/2017;Contratti di servizio di trasporto pubblico;150,06;IVA Liquidazione Fattura Nr. PA075  del 31/05/2017 (di cui Split per euro 150,06) - Servizio TPL maggio 2017;2781;1;3;2;15;1
ANCILLOTTI DI EREDI ANCILLOTTI LIDO S.N.C. DI ANCILLOTTI L. & C.;09/08/2017;Contratti di servizio di trasporto pubblico;1.500,64;Liquidazione Fattura Nr. PA075  del 31/05/2017 - Servizio TPL maggio 2017;2781;1;3;2;15;1
ARCA - COOPERATIVA SOCIALE A R.L.;09/08/2017;Contratti di servizio di asilo nido;1.403,39;IVA-Liquidazione Fattura Nr. E-661  del 12/06/2017 (di cui Split per euro 1.403,39) - GESTIONE SERVIZIO EDUCATIVO NIDO MESE DI MAGGIO 2017;2782;1;3;2;15;10
ARCA - COOPERATIVA SOCIALE A R.L.;09/08/2017;Contratti di servizio di asilo nido;202,50;IVA-Liquidazione Fattura Nr. E-662  del 12/06/2017 (di cui Split per euro 202,50) - GESTIONE SERVIZIO REFEZIONE NISO MESE DI MAGGIO 2017;2782;1;3;2;15;10
ARCA - COOPERATIVA SOCIALE A R.L.;09/08/2017;Contratti di servizio di asilo nido;35.084,67;Liquidazione Fattura Nr. E-661  del 12/06/2017 - GESTIONE SERVIZIO EDUCATIVO NIDO MESE DI MAGGIO 2017;2782;1;3;2;15;10
ARCA - COOPERATIVA SOCIALE A R.L.;09/08/2017;Contratti di servizio di asilo nido;5.062,57;Liquidazione Fattura Nr. E-662  del 12/06/2017 - GESTIONE SERVIZIO REFEZIONE NIDO MESE DI MAGGIO 2017;2782;1;3;2;15;10
CO&SO EMPOLI - CONS. DI COOP. SOCIALI - SOCIETA' COOPERATIVA;09/08/2017;Altre spese per contratti di servizio pubblico;513,23;IVA-Liquidazione Fattura Nr. 000451-2C0  del 31/05/2017 (di cui Split per euro 513,23) - servizio sostegno handicap nell'ambito scolastico mese di maggio 2017;2783;1;3;2;15;999
CO&SO EMPOLI - CONS. DI COOP. SOCIALI - SOCIETA' COOPERATIVA;09/08/2017;Altre spese per contratti di servizio pubblico;739,10;IVA-Liquidazione Fattura Nr. 000452-2C0  del 31/05/2017 (di cui Split per euro 739,10) - servizio sostegno handicap nell'ambito scolastico dal 15 al 31/05/2017;2783;1;3;2;15;999
CO&SO EMPOLI - CONS. DI COOP. SOCIALI - SOCIETA' COOPERATIVA;09/08/2017;Altre spese per contratti di servizio pubblico;10.264,55;Liquidazione Fattura Nr. 000451-2C0  del 31/05/2017 - servizio sostegno handicap nell'ambito scolastico dal 1 al 13 maggio  2017;2783;1;3;2;15;999
CO&SO EMPOLI - CONS. DI COOP. SOCIALI - SOCIETA' COOPERATIVA;09/08/2017;Altre spese per contratti di servizio pubblico;14.782,05;Liquidazione Fattura Nr. 000452-2C0  del 31/05/2017 - servizio sostegno handicap nell'ambito scolastico dal 15 al 31/05/2017;2783;1;3;2;15;999
CO&SO EMPOLI - CONS. DI COOP. SOCIALI - SOCIETA' COOPERATIVA;09/08/2017;Altre spese per contratti di servizio pubblico;2.806,36;Liquidazione Fattura Nr. 000455-2C0  del 31/05/2017 - servizi educativi ed extrascolastici presso Villa Reghini mese di maggio 2017;2784;1;3;2;15;999
VAR GROUP S.P.A. CON SOCIO UNICO;09/08/2017;Attrezzature n.a.c.;1.049,62;IVA-Liquidazione Fattura Nr. P/118  del 31/05/2017 (di cui Split per euro 1.049,62) - ACQUISTO PC PER LABORATORI, NOTEBOOK E TABLET PER LE SCUOLE SECONDARIE DI PRIMO GRADO ;2785;2;2;1;5;999
VAR GROUP S.P.A. CON SOCIO UNICO;09/08/2017;Attrezzature n.a.c.;4.771,00;Liquidazione Fattura Nr. P/118  del 31/05/2017 - ACQUISTO PC PER LABORATORI, NOTEBOOK E TABLET PER LE SCUOLE SECONDARIE DI PRIMO GRADO ;2785;2;2;1;5;999
ORDINE DEGLI INGEGNERI  DELLA PROVINCIA DI  PISA;09/08/2017;Acquisto di servizi per altre spese per formazione e addestramento n.a.c.;20,00;Liquidazione Fattura Nr. 15 PA  del 11/07/2017 - CORSO 'CODICE DEGLI APPALTI: SERVIZI DI INGEGNERIA E ARCHITETTURA' PARTECIPANTE CLAUDIA PERUZZI;2786;1;3;2;4;999
STUDIO PICCHI ASSOCIATO;09/08/2017;Altre prestazioni professionali e specialistiche n.a.c.;2.385,01;LIQUIDAZIONE FATTURA NR. 000015-2017-FATTURE  DEL 22/06/2017 - AFFIDAMENTO SERVIZIO ELABORAZIONE PAGHE E CONTRIBUTI PERIODO 01/01/2017 -31/12/2017: IMPEGNO DI SPESA;2787;1;3;2;11;999
ASCAM S.R.L.;09/08/2017;Carta, cancelleria e stampati;75,13;IVA Liquidazione Fattura Nr. 279/PA  del 30/06/2017 (di cui Split per euro 75,13) - DET. DI AFFIDAMENTO MEDIANTE AGGIUDICAZIONE DEFINITIVA RDO SUL MEPA PER FORNITURA  DI BUSTE FORMATO COMMERCIALE CON FINESTRA E DI BUSTE A SACCO FORMAT;2788;1;3;1;2;1
ASCAM S.R.L.;09/08/2017;Carta, cancelleria e stampati;341,50;Liquidazione Fattura Nr. 279/PA  del 30/06/2017 - DETERMINAZIONE DI AFFIDAMENTO MEDIANTE AGGIUDICAZIONE DEFINITIVA RDO SUL MEPA PER FORNITURA  DI BUSTE FORMATO COMMERCIALE CON FINESTRA E DI BUSTE A SACCO FORMATO A4 CON STAMPA IN NERO DEL LO;2788;1;3;1;2;1
CALOS ITALIA DI CASTELLI ANTONIO;09/08/2017;Carta, cancelleria e stampati;35,75;IVA Liquidazione Fattura Nr. 30/PA  del 15/06/2017 (di cui Split per euro 35,75) - Rif. vs determinazione nr. 82 del 08/06/2017 acquisto timbri vari per gli uffici;2788;1;3;1;2;1
CALOS ITALIA DI CASTELLI ANTONIO;09/08/2017;Carta, cancelleria e stampati;162,50;Liquidazione Fattura Nr. 30/PA  del 15/06/2017 - Rif. vs determinazione nr. 82 del 08/06/2017 acquisto timbri vari per gli uffici;2788;1;3;1;2;1
COMAR DI CATIA CORSI;09/08/2017;Carta, cancelleria e stampati;116,84;IVALiquidazione Fattura Nr. 70/P  del 30/06/2017 (di cui Split per euro 116,84) - DETERMINAZIONE DI AFFIDAMENTO MEDIANTE AGGIUDICAZIONE DEFINITIVA RDO SUL MEPA PER FORNITURA  DI MATERIALE VARIO DI CANCELLERIA PER GLI UFFICI DELL'ENTE;2788;1;3;1;2;1
COMAR DI CATIA CORSI;09/08/2017;Carta, cancelleria e stampati;531,08;Liquidazione Fattura Nr. 70/P  del 30/06/2017 - DETERMINAZIONE DI AFFIDAMENTO MEDIANTE AGGIUDICAZIONE DEFINITIVA RDO SUL MEPA PER FORNITURA  DI MATERIALE VARIO DI CANCELLERIA PER GLI UFFICI DELL'ENTE;2788;1;3;1;2;1
EUROGRAFICA S.R.L.;09/08/2017;Carta, cancelleria e stampati;12,10;IVA Liquidazione Fattura Nr. 3/01  del 25/07/2017 (di cui Split per euro 12,10) - ACQUISTO CARTELLINE PER UFFICIO CONTRATTI- DETERMINA DI AFFIDAMENTO;2788;1;3;1;2;1
EUROGRAFICA S.R.L.;09/08/2017;Carta, cancelleria e stampati;55,00;Liquidazione Fattura Nr. 3/01  del 25/07/2017 - ACQUISTO CARTELLINE PER UFFICIO CONTRATTI- DETERMINA DI AFFIDAMENTO;2788;1;3;1;2;1
MONTI ROBERTA;09/08/2017;Carta, cancelleria e stampati;142,91;IVA Liquidazione Fattura Nr. 900050  del 08/06/2017 (di cui Split per euro 142,91) - ACQUISTO CARTA IN RISME PER GLI UFFICI;2788;1;3;1;2;1
MONTI ROBERTA;09/08/2017;Carta, cancelleria e stampati;649,60;Liquidazione Fattura Nr. 900050  del 08/06/2017 - ACQUISTO CARTA IN RISME PER GLI UFFICI;2788;1;3;1;2;1
MONRIF NET S.R.L.;09/08/2017;Giornali e riviste;6,92;IVA Liquidazione Fattura Nr. PA00179/2017  del 11/07/2017 (di cui Split per euro 6,92) - ABBONAMENTO A QUOTIDIANO TELEMATICO LA NAZIONE ON LINE;2789;1;3;1;1;1
MONRIF NET S.R.L.;09/08/2017;Giornali e riviste;173,07;Liquidazione Fattura Nr. PA00179/2017  del 11/07/2017 - ABBONAMENTO A QUOTIDIANO TELEMATICO LA NAZIONE ON LINE;2789;1;3;1;1;1
LEGISLAZIONE TECNICA S.R.L.;09/08/2017;Accesso a banche dati e a pubblicazioni on line;210,00;Liquidazione Fattura Nr. 436/2017/PA  del 11/07/2017 - ABBONAMENTO A BANCHE DATI SPECIALISTICHE DI AGGIORNAMENTO E APPROFONDIMENTO NORMATIVO PER GLI UFFICI - DETERMINAZIONE DI AFFIDAMENTO;2790;1;3;2;5;3
MAGGIOLI S.P.A.;09/08/2017;Accesso a banche dati e a pubblicazioni on line;114,40;IVA Liquidazione Fattura Nr. 0002123443  del 16/06/2017 (di cui Split per euro 114,40) - ABBONAMENTO AD APPALTI E CONTRATTI BANCA DATI ;2790;1;3;2;5;3
MAGGIOLI S.P.A.;09/08/2017;Accesso a banche dati e a pubblicazioni on line;520,00;Liquidazione Fattura Nr. 0002123443  del 16/06/2017 - ABBONAMENTO AD APPALTI E CONTRATTI BANCA DATI ;2790;1;3;2;5;3
TELECOM ITALIA SPA;09/08/2017;Telefonia fissa;234,35;IVA Liquidazione Fattura Nr. 4220617800011523  del 07/06/2017 (di cui Split per euro 234,35) - 4BIM 2017;2791;1;3;2;5;1
TELECOM ITALIA SPA;09/08/2017;Telefonia fissa;1.066,28;Liquidazione Fattura Nr. 4220617800011523  del 07/06/2017 - 4BIM 2017;2791;1;3;2;5;1
TELECOM ITALIA SPA;09/08/2017;Servizi di rete per trasmissione dati e VoIP e relativa manutenzione;85,42;IVA Liquidazione Fattura Nr. 6820170620005379  del 27/06/2017 (di cui Split per euro 85,42) - FATTURAZIONE CONTRATTO RETE DATI RTRT3 - 2' TRIMESTRE 2017 - RIF. PROROGA TECNICA DECRETO 8483 DEL 28/7/2016;2792;1;3;2;19;4
TELECOM ITALIA SPA;09/08/2017;Servizi di rete per trasmissione dati e VoIP e relativa manutenzione;22,48;IVA Liquidazione Fattura Nr. 8L00461533  del 07/06/2017 (di cui Split per euro 22,48) - 4BIM 2017;2792;1;3;2;19;4
TELECOM ITALIA SPA;09/08/2017;Servizi di rete per trasmissione dati e VoIP e relativa manutenzione;40,64;IVA Liquidazione Fattura Nr. 8L00462569  del 07/06/2017 (di cui Split per euro 40,64) - 4BIM 2017;2792;1;3;2;19;4
TELECOM ITALIA SPA;09/08/2017;Servizi di rete per trasmissione dati e VoIP e relativa manutenzione;40,64;IVA Liquidazione Fattura Nr. 8L00463681  del 07/06/2017 (di cui Split per euro 40,64) - 4BIM 2017;2792;1;3;2;19;4
TELECOM ITALIA SPA;09/08/2017;Servizi di rete per trasmissione dati e VoIP e relativa manutenzione;388,25;Liquidazione Fattura Nr. 6820170620005379  del 27/06/2017 - FATTURAZIONE CONTRATTO RETE DATI RTRT3 - 2' TRIMESTRE 2017 - RIF. PROROGA TECNICA DECRETO 8483 DEL 28/7/2016;2792;1;3;2;19;4
TELECOM ITALIA SPA;09/08/2017;Servizi di rete per trasmissione dati e VoIP e relativa manutenzione;102,34;Liquidazione Fattura Nr. 8L00461533  del 07/06/2017 - 4BIM 2017;2792;1;3;2;19;4
TELECOM ITALIA SPA;09/08/2017;Servizi di rete per trasmissione dati e VoIP e relativa manutenzione;187,32;Liquidazione Fattura Nr. 8L00462569  del 07/06/2017 - 4BIM 2017;2792;1;3;2;19;4
TELECOM ITALIA SPA;09/08/2017;Servizi di rete per trasmissione dati e VoIP e relativa manutenzione;187,32;Liquidazione Fattura Nr. 8L00463681  del 07/06/2017 - 4BIM 2017;2792;1;3;2;19;4
BNP PARIBAS LEASE GROUP SA;09/08/2017;Noleggi di hardware;24,76;IVA Liquidazione Fattura Nr. BKC62233  del 22/06/2017 (di cui Split per euro 24,76) - REIMPUTAZIONE IMPEGNI E VARIAZIONE FORNITORE PER NOLEGGIO STAMPANTE MULTIFUNZIONE PER SPORTELLO LAVORO SOVIGLIANA;2793;1;3;2;7;4
BNP PARIBAS LEASE GROUP SA;09/08/2017;Noleggi di hardware;112,56;Liquidazione Fattura Nr. BKC62233  del 22/06/2017 - REIMPUTAZIONE IMPEGNI E VARIAZIONE FORNITORE PER NOLEGGIO STAMPANTE MULTIFUNZIONE PER SPORTELLO LAVORO SOVIGLIANA;2793;1;3;2;7;4
LDP PROGETTI GIS S.R.L.;09/08/2017;Gestione e manutenzione applicazioni;825,00;"IVA - Liquidazione Fattura Nr. 69  del 17/07/2017 (di cui Split per euro 825,00) - Determinazione n. 68 Sett. II del 28.06.2016; Imp. DS02068/1-2017 Cap. 1724/6-2017";2794;1;3;2;19;1
LDP PROGETTI GIS S.R.L.;09/08/2017;Gestione e manutenzione applicazioni;3.750,00;"Liquidazione Fattura Nr. 69  del 17/07/2017 - Determinazione n. 68 Sett. II del 28.06.2016; Imp. DS02068/1-2017 Cap. 1724/6-2017";2794;1;3;2;19;1
TELECOM ITALIA SPA;09/08/2017;Telefonia fissa;24,23;IVA Liquidazione Fattura Nr. 4220617800011523  del 07/06/2017 (di cui Split per euro 24,23) - 4BIM 2017;2795;1;3;2;5;1
TELECOM ITALIA SPA;09/08/2017;Telefonia fissa;110,14;Liquidazione Fattura Nr. 4220617800011523  del 07/06/2017 - 4BIM 2017;2795;1;3;2;5;1
TELECOM ITALIA SPA;09/08/2017;Telefonia fissa;0,36;IVA Liquidazione Fattura Nr. 4220617800011523  del 07/06/2017 (di cui Split per euro 0,36) - 4BIM 2017;2796;1;3;2;5;1
TELECOM ITALIA SPA;09/08/2017;Telefonia fissa;22,54;IVA Liquidazione Fattura Nr. 4220617800011523  del 07/06/2017 (di cui Split per euro 22,54) - 4BIM 2017;2796;1;3;2;5;1
TELECOM ITALIA SPA;09/08/2017;Telefonia fissa;104,10;Liquidazione Fattura Nr. 4220617800011523  del 07/06/2017 - 4BIM 2017;2796;1;3;2;5;1
TELECOM ITALIA SPA;09/08/2017;Servizi di rete per trasmissione dati e VoIP e relativa manutenzione;14,96;IVA Liquidazione Fattura Nr. 8L00462075  del 07/06/2017 (di cui Split per euro 14,96) - 4BIM 2017;2797;1;3;2;19;4
TELECOM ITALIA SPA;09/08/2017;Servizi di rete per trasmissione dati e VoIP e relativa manutenzione;22,48;IVA Liquidazione Fattura Nr. 8L00463575  del 07/06/2017 (di cui Split per euro 22,48) - 4BIM 2017;2797;1;3;2;19;4
TELECOM ITALIA SPA;09/08/2017;Servizi di rete per trasmissione dati e VoIP e relativa manutenzione;68,10;Liquidazione Fattura Nr. 8L00462075  del 07/06/2017 - 4BIM 2017;2797;1;3;2;19;4
TELECOM ITALIA SPA;09/08/2017;Servizi di rete per trasmissione dati e VoIP e relativa manutenzione;102,34;Liquidazione Fattura Nr. 8L00463575  del 07/06/2017 - 4BIM 2017;2797;1;3;2;19;4
TELECOM ITALIA SPA;09/08/2017;Telefonia fissa;2,32;IVA Liquidazione Fattura Nr. 4220617800011523  del 07/06/2017 (di cui Split per euro 2,32) - 4BIM 2017;2798;1;3;2;5;1
TELECOM ITALIA SPA;09/08/2017;Telefonia fissa;34,64;IVA Liquidazione Fattura Nr. 4220617800011523  del 07/06/2017 (di cui Split per euro 34,64) - 4BIM 2017;2798;1;3;2;5;1
TELECOM ITALIA SPA;09/08/2017;Telefonia fissa;167,98;Liquidazione Fattura Nr. 4220617800011523  del 07/06/2017 - 4BIM 2017;2798;1;3;2;5;1
TELECOM ITALIA SPA;09/08/2017;Servizi di rete per trasmissione dati e VoIP e relativa manutenzione;14,96;IVA Liquidazione Fattura Nr. 8L00461511  del 07/06/2017 (di cui Split per euro 14,96) - 4BIM 2017;2799;1;3;2;19;4
TELECOM ITALIA SPA;09/08/2017;Servizi di rete per trasmissione dati e VoIP e relativa manutenzione;68,10;Liquidazione Fattura Nr. 8L00461511  del 07/06/2017 - 4BIM 2017;2799;1;3;2;19;4
TELECOM ITALIA SPA;09/08/2017;Telefonia fissa;36,58;IVA Liquidazione Fattura Nr. 4220617800011523  del 07/06/2017 (di cui Split per euro 36,58) - 4BIM 2017;2800;1;3;2;5;1
TELECOM ITALIA SPA;09/08/2017;Telefonia fissa;166,28;Liquidazione Fattura Nr. 4220617800011523  del 07/06/2017 - 4BIM 2017;2800;1;3;2;5;1
TELECOM ITALIA SPA;09/08/2017;Servizi di rete per trasmissione dati e VoIP e relativa manutenzione;22,48;IVA Liquidazione Fattura Nr. 8L00457697  del 07/06/2017 (di cui Split per euro 22,48) - 4BIM 2017;2801;1;3;2;19;4
TELECOM ITALIA SPA;09/08/2017;Servizi di rete per trasmissione dati e VoIP e relativa manutenzione;102,34;Liquidazione Fattura Nr. 8L00457697  del 07/06/2017 - 4BIM 2017;2801;1;3;2;19;4
TELECOM ITALIA SPA;09/08/2017;Telefonia fissa;13,95;IVA Liquidazione Fattura Nr. 4220617800011523  del 07/06/2017 (di cui Split per euro 13,95) - 4BIM 2017;2802;1;3;2;5;1
TELECOM ITALIA SPA;09/08/2017;Telefonia fissa;63,40;Liquidazione Fattura Nr. 4220617800011523  del 07/06/2017 - 4BIM 2017;2802;1;3;2;5;1
TELECOM ITALIA SPA;09/08/2017;Servizi di rete per trasmissione dati e VoIP e relativa manutenzione;22,48;IVA Liquidazione Fattura Nr. 8L00458565  del 07/06/2017 (di cui Split per euro 22,48) - 4BIM 2017;2803;1;3;2;19;4
TELECOM ITALIA SPA;09/08/2017;Servizi di rete per trasmissione dati e VoIP e relativa manutenzione;102,34;Liquidazione Fattura Nr. 8L00458565  del 07/06/2017 - 4BIM 2017;2803;1;3;2;19;4
TELECOM ITALIA SPA;09/08/2017;Telefonia fissa;17,01;IVA Liquidazione Fattura Nr. 4220617800011523  del 07/06/2017 (di cui Split per euro 17,01) - 4BIM 2017;2804;1;3;2;5;1
TELECOM ITALIA SPA;09/08/2017;Telefonia fissa;6,38;IVA Liquidazione Fattura Nr. 8L00459182  del 07/06/2017 (di cui Split per euro 6,38) - 4BIM 2017;2804;1;3;2;5;1
TELECOM ITALIA SPA;09/08/2017;Telefonia fissa;77,32;Liquidazione Fattura Nr. 4220617800011523  del 07/06/2017 - 4BIM 2017;2804;1;3;2;5;1
TELECOM ITALIA SPA;09/08/2017;Telefonia fissa;29,04;Liquidazione Fattura Nr. 8L00459182  del 07/06/2017 - 4BIM 2017;2804;1;3;2;5;1
TELECOM ITALIA SPA;09/08/2017;Telefonia fissa;0,92;IVA Liquidazione Fattura Nr. 4220617800011523  del 07/06/2017 (di cui Split per euro 0,92) - 4BIM 2017;2805;1;3;2;5;1
TELECOM ITALIA SPA;09/08/2017;Telefonia fissa;4,21;Liquidazione Fattura Nr. 4220617800011523  del 07/06/2017 - 4BIM 2017;2805;1;3;2;5;1
TELECOM ITALIA SPA;09/08/2017;Telefonia fissa;0,87;IVA Liquidazione Fattura Nr. 4220617800011523  del 07/06/2017 (di cui Split per euro 0,87) - 4BIM 2017;2806;1;3;2;5;1
TELECOM ITALIA SPA;09/08/2017;Telefonia fissa;8,17;IVA Liquidazione Fattura Nr. 4220617800011523  del 07/06/2017 (di cui Split per euro 8,17) - 4BIM 2017;2806;1;3;2;5;1
TELECOM ITALIA SPA;09/08/2017;Telefonia fissa;41,09;Liquidazione Fattura Nr. 4220617800011523  del 07/06/2017 - 4BIM 2017;2806;1;3;2;5;1
TELECOM ITALIA SPA;09/08/2017;Servizi di rete per trasmissione dati e VoIP e relativa manutenzione;20,24;IVA Liquidazione Fattura Nr. 8L00459399  del 07/06/2017 (di cui Split per euro 20,24) - 4BIM 2017;2807;1;3;2;19;4
TELECOM ITALIA SPA;09/08/2017;Servizi di rete per trasmissione dati e VoIP e relativa manutenzione;92,14;Liquidazione Fattura Nr. 8L00459399  del 07/06/2017 - 4BIM 2017;2807;1;3;2;19;4
PRATESI LORENZO S.R.L.;09/08/2017;Altri beni e materiali di consumo n.a.c.;100,51;IVA - Liquidazione Fattura Nr. 2/E  del 30/04/2017 - ACQUISTO MATERIALI EDILI PER LAVORI DI MANUTENZIONE ORDINARIA PRESSO EDIFICI E SCUOLE _ DETERMINA A CONTRARRE AFFIDAMENTO DITTA PRATESI LORENZO SRL;2808;1;3;1;2;999
PRATESI LORENZO S.R.L.;09/08/2017;Altri beni e materiali di consumo n.a.c.;456,87;Liquidazione Fattura Nr. 2/E  del 30/04/2017 - ACQUISTO MATERIALI EDILI PER LAVORI DI MANUTENZIONE ORDINARIA PRESSO EDIFICI E SCUOLE _ DETERMINA A CONTRARRE E AFFIDAMENTO DITTA PRATESI LORENZO SRL;2808;1;3;1;2;999
AUTOPASS EMPOLI S.R.L.;09/08/2017;Manutenzione ordinaria e riparazioni di mezzi di trasporto ad uso civile, di sicurezza e ordine pubblico;19,27;IVA - Liquidazione Fattura Nr. FATTPA 2_17  del 27/06/2017 - RIPARAZIONE DI ALCUNI AUTOCARRI IN DOTAZIONE AL MAGAZZINO COMUNALE _ DETERMINA A CONTRARRE E AFFIDAMENTO DITTA AUTOPASS EMPOLI SRL;2809;1;3;2;9;1
AUTOPASS EMPOLI S.R.L.;09/08/2017;Manutenzione ordinaria e riparazioni di mezzi di trasporto ad uso civile, di sicurezza e ordine pubblico;87,61;Liquidazione Fattura Nr. FATTPA 2_17  del 27/06/2017 - RIPARAZIONE DI ALCUNI AUTOCARRI IN DOTAZIONE AL MAGAZZINO COMUNALE _ DETERMINA A CONTRARRE E AFFIDAMENTO DITTA AUTOPASS EMPOLI SRL;2809;1;3;2;9;1
AUTOPASS EMPOLI S.R.L.;09/08/2017;Manutenzione ordinaria e riparazioni di mezzi di trasporto ad uso civile, di sicurezza e ordine pubblico;110,00;IVA - Liquidazione Fattura Nr. FATTPA 2_17  del 27/06/2017 - RIPARAZIONE DI ALCUNI AUTOCARRI IN DOTAZIONE AL MAGAZZINO COMUNALE _ DETERMINA A CONTRARRE E AFFIDAMENTO DITTA AUTOPASS EMPOLI SRL;2810;1;3;2;9;1
AUTOPASS EMPOLI S.R.L.;09/08/2017;Manutenzione ordinaria e riparazioni di mezzi di trasporto ad uso civile, di sicurezza e ordine pubblico;500,00;Liquidazione Fattura Nr. FATTPA 2_17  del 27/06/2017 - RIPARAZIONE DI ALCUNI AUTOCARRI IN DOTAZIONE AL MAGAZZINO COMUNALE _ DETERMINA A CONTRARRE E AFFIDAMENTO DITTA AUTOPASS EMPOLI SRL;2810;1;3;2;9;1
PRATESI LORENZO S.R.L.;09/08/2017;Altri beni e materiali di consumo n.a.c.;5,66;IVA - Liquidazione Fattura Nr. 2/E  del 30/04/2017 - ACQUISTO MATERIALI EDILI PER LAVORI DI MANUTENZIONE ORDINARIA PRESSO EDIFICI E SCUOLE _ DETERMINA A CONTRARRE AFFIDAMENTO DITTA PRATESI LORENZO SRL;2811;1;3;1;2;999
PRATESI LORENZO S.R.L.;09/08/2017;Altri beni e materiali di consumo n.a.c.;25,71;Liquidazione Fattura Nr. 2/E  del 30/04/2017 - ACQUISTO MATERIALI EDILI PER LAVORI DI MANUTENZIONE ORDINARIA PRESSO EDIFICI E SCUOLE _ DETERMINA A CONTRARRE E AFFIDAMENTO DITTA PRATESI LORENZO SRL;2811;1;3;1;2;999
E.M. SERVICE;09/08/2017;Manutenzione ordinaria e riparazioni di impianti e macchinari;174,82;IVA - Liquidazione Fattura Nr. 342  del 31/05/2017 (di cui Split per euro 174,82) - ESECUZIONE DI LAVORI ALL'IMPIANTO TERMICO DEL TEATRO DELLA MISERICORDIA DI VINCI _ DETERMINA A CONTRARRE E AFFIDAMENTO DITTA E.M. SERVICE;2812;1;3;2;9;4
E.M. SERVICE;09/08/2017;Manutenzione ordinaria e riparazioni di impianti e macchinari;794,64;Liquidazione Fattura Nr. 342  del 31/05/2017 - ESECUZIONE DI LAVORI ALL'IMPIANTO TERMICO DEL TEATRO DELLA MISERICORDIA DI VINCI _ DETERMINA A CONTRARRE E AFFIDAMENTO DITTA E.M. SERVICE;2812;1;3;2;9;4
TECNOSPAZIO DI OSCAR QUARENGHI;09/08/2017;Manutenzione ordinaria e riparazioni di impianti e macchinari;23,80;"IVA - Liquidazione Fattura Nr. FATTPA 7_17  del 29/05/2017 - FORNITURA DISPOSITIVO PER IMPIANTO PALLAVOLO PALASPORT ""FALCONE E BORSELLINO"". AFFIDAMENTO ALLA DITTA TECNOSPAZIO 40%";2813;1;3;2;9;4
TECNOSPAZIO DI OSCAR QUARENGHI;09/08/2017;Manutenzione ordinaria e riparazioni di impianti e macchinari;35,60;"IVA - Liquidazione Fattura Nr. FATTPA 7_17  del 29/05/2017 - FORNITURA DISPOSITIVO PER IMPIANTO PALLAVOLO PALASPORT ""FALCONE E BORSELLINO"". AFFIDAMENTO ALLA DITTA TECNOSPAZIO 60%";2813;1;3;2;9;4
TECNOSPAZIO DI OSCAR QUARENGHI;09/08/2017;Manutenzione ordinaria e riparazioni di impianti e macchinari;108,20;"Liquidazione Fattura Nr. FATTPA 7_17  del 29/05/2017 - FORNITURA DISPOSITIVO PER IMPIANTO PALLAVOLO PALASPORT ""FALCONE E BORSELLINO"". AFFIDAMENTO ALLA DITTA TECNOSPAZIO 40%";2813;1;3;2;9;4
TECNOSPAZIO DI OSCAR QUARENGHI;09/08/2017;Manutenzione ordinaria e riparazioni di impianti e macchinari;161,80;"Liquidazione Fattura Nr. FATTPA 7_17  del 29/05/2017 - FORNITURA DISPOSITIVO PER IMPIANTO PALLAVOLO PALASPORT ""FALCONE E BORSELLINO"". AFFIDAMENTO ALLA DITTA TECNOSPAZIO 60%";2813;1;3;2;9;4
ARCOGAS ITALIA S.R.L.;09/08/2017;Manutenzione ordinaria e riparazioni di beni immobili;33,00;IVA - Liquidazione Fattura Nr. 1043  del 21/06/2017 (di cui Split per euro 33,00) - NOLEGGIO BOMBOLE DI OSSIGENO E DI ACETILENE PER LA SALDATURA _ DETERMINA A CONTRARRE E AFFIDAMENTO DITTA ARCOGAS ITALIA SRL;2814;1;3;2;9;8
ARCOGAS ITALIA S.R.L.;09/08/2017;Manutenzione ordinaria e riparazioni di beni immobili;150,00;Liquidazione Fattura Nr. 1043  del 21/06/2017 - NOLEGGIO BOMBOLE DI OSSIGENO E DI ACETILENE PER LA SALDATURA _ DETERMINA A CONTRARRE E AFFIDAMENTO DITTA ARCOGAS ITALIA SRL;2814;1;3;2;9;8
AMMINISTRATORI COMUNALI;10/08/2017;Organi istituzionali dell'amministrazione - indennit�;8.330,37;stipendio 08;2851;1;3;2;1;1
GRUPPO SPORTIVO MALTINTI LAMPADARI;11/08/2017;Trasferimenti correnti a Istituzioni Sociali Private ;8.350,00;CONTRIBUTO CONCESSO PER 54^ CITT� DI VINCI GARA CICLISTICA DILETTANTI UNDER 23 DEL 25 LUGLIO U.S.;2925;1;4;4;1;1
PUCCI EDILIZIA E STRADE DI ALESSANDRO PUCCI;17/08/2017;Manutenzione ordinaria e riparazioni di beni immobili;0,04;IVA - Liquidazione Fattura Nr. 8/PA  del 31/05/2017 - LAVORI DI MANUTENZIONE ORDINARIA PRESSO IL CIMITERO DI VINCI - CIG Z6F1CC3892 - STATO FINALE DEI LAVORI;2926;1;3;2;9;8
PUCCI EDILIZIA E STRADE DI ALESSANDRO PUCCI;17/08/2017;Manutenzione ordinaria e riparazioni di beni immobili;0,15;SALDO FATTURA NR. 8/PA  DEL 31/05/2017 - LAVORI DI MANUTENZIONE ORDINARIA PRESSO IL CIMITERO DI VINCI - CIG Z6F1CC3892 - STATO FINALE DEI LAVORI;2926;1;3;2;9;8
LEONI FABRIZIO  - PERITO INDUSTRIALE;17/08/2017;Infrastrutture stradali;4.174,24;LIQUIDAZIONE FATTURA NR. FATTPA 1_17  DEL 27/06/2017 - SALDO INCARICO PROGETTAZIONE E DIREZIONE LAVORI  IMPIANTO PUBBLICA ILLUMINAZIONE POGGIO ALLA CAVALLA;2927;2;2;1;9;12
CALOS ITALIA DI CASTELLI ANTONIO;17/08/2017;Altri beni e materiali di consumo n.a.c.;21,40;PAGAMENTO BUONO ECONOMALE NR. 200054 - ACQUISTO BENI PER MANUT.SEDI ISTITUZIONALI-ACQUISTO ETICHETTATRICE PER IMPIANTI ELETTRICI;2928;1;3;1;2;999
SELMI DI SELMI ANDREA & SELMI FRANCESCO S.N.C.;17/08/2017;Altri beni e materiali di consumo n.a.c.;1,30;PAGAMENTO BUONO ECONOMALE NR. 200057 - ACQUISTO BENI PER MANUT.SEDI ISTITUZIONALI-ACQISTO COPIA CHIAVE PER STANZA DEL SINDACO SEDE SOVIGLIANA;2928;1;3;1;2;999
ISTITUTO GEOGRAFICO MILITARE;17/08/2017;Stampa e rilegatura;60,00;PAGAMENTO BUONO ECONOMALE NR. 200055 - SPESE PER COPIE E RILEGATURE PER L'UFFICIO TECNICO - ACQUISTO FOTO AEREE PER RILEVAZIONI E CONTROLLI;2929;1;3;2;13;4
MAGGIOLI S.P.A.;17/08/2017;Pubblicazioni;85,00;"PAGAMENTO BUONO ECONOMALE NR. 200053 - ACQUISTI URGENTI TESTI NORMATIVI --ACQUISTO LIBRO ""IL PRINCIPIO APPLICATO DELLA CONTABILIT� ECONOMICO PATRIMONIALE""";2930;1;3;1;1;2
MAGGIOLI S.P.A.;17/08/2017;Pubblicazioni;40,00;PAGAMENTO BUONO ECONOMALE NR. 200058 - ACQUISTI URGENTI TESTI NORMATIVI IN MATERIA DI BILANCIO E CONTABILITA'- ACQUISTO VOLUME IL BILANCIO CONSOLIDATO DEGLI ENTI LOCALI;2930;1;3;1;1;2
POSTE ITALIANE SPA SOCIETA' CON SOCIO UNICO;17/08/2017;Spese postali;16,90;PAGAMENTO BUONO ECONOMALE NR. 200056 - SPEDIZIONI DI PACCHI POSTALI URGENTI-SPEDITO PACCO DI DEPLIANT E OPUSCOLI INFORMATIVI SULLE TERRE DI LEONARDO ALL'UFFICIO TURISTICO DI MONTECATINI TERME;2931;1;3;2;16;2
ECOMEDICA S.P.A.;22/08/2017;Altre prestazioni professionali e specialistiche n.a.c.;60,02;Liquidazione Fattura Nr. 00112  del 22/12/2016 - PRESTAZIONI DIAGNOSTICHE ;2932;1;3;2;11;999
ISTITUTO  RICERCHE CLINICHE ECOMEDICA S.R.L.;22/08/2017;Altre prestazioni professionali e specialistiche n.a.c.;338,61;Liquidazione Fattura Nr. 00090  del 26/10/2016 - PRESTAZIONI DIAGNOSTICHE - AFFIDAMENTO ECOMEDICA SRL.;2932;1;3;2;11;999
ECOMEDICA S.P.A.;22/08/2017;Altre prestazioni professionali e specialistiche n.a.c.;35,32;Liquidazione Fattura Nr. 00112  del 22/12/2016 - PRESTAZIONI DIAGNOSTICHE ;2933;1;3;2;11;999
STUDIO LEGALE ASSOCIATO AVVOCATI FRANCIONI - LEPORATTI;22/08/2017;Patrocinio legale;91,52;LIQUIDAZIONE FATTURA NR. FATTPA 9_17  DEL 21/07/2017 (DI CUI SPLIT PER EURO 16,50) - MEDIAZIONE 33/2016 - GIUBBOLINI;2934;1;3;2;11;6
STUDIO LEGALE ASSOCIATO AVVOCATI FRANCIONI - LEPORATTI;22/08/2017;Patrocinio legale;416,00;LIQUIDAZIONE FATTURA NR. FATTPA 9_17  DEL 21/07/2017 (DI CUI SPLIT PER EURO 75,02) - MEDIAZIONE 33/2016 - GIUBBOLINI;2934;1;3;2;11;6
STUDIO LEGALE ASSOCIATO AVVOCATI FRANCIONI - LEPORATTI;22/08/2017;Patrocinio legale;1.945,50;LIQUIDAZIONE FATTURA NR. FATTPA 10_17  DEL 21/07/2017 (DI CUI SPLIT PER EURO 350,83) - GIUDIZIO DI APPELLO CONTRO LA SENTENZA DEL TRIBUNALE DI FIRENZE SEZ. DISTACCATA DI EMPOLI N. 194 DEL 3.09.2013 - CAUSA COMUNE DI VINCI/GIANI;2935;1;3;2;11;6
LASER S.N.C. DI MARRUGANTI ALESSIO & C.;24/08/2017;Manutenzione ordinaria e riparazioni di macchine per ufficio ;454,30;IVA Liquidazione Fattura Nr. 6/X  del 30/06/2017 (di cui Split per euro 454,30) - SERV. ASS. MANUT. MULTIFUNZIONI C/COPIA RDO 1454642 CIG Z8F1CA95B6 SECONDO TRIMESTRE ;2936;1;3;2;9;6
LASER S.N.C. DI MARRUGANTI ALESSIO & C.;24/08/2017;Manutenzione ordinaria e riparazioni di macchine per ufficio ;2.065,00;Liquidazione Fattura Nr. 6/X  del 30/06/2017 - SERV. ASS. MANUT. MULTIFUNZIONI C/COPIA RDO 1454642 CIG Z8F1CA95B6 SECONDO TRIMESTRE ;2936;1;3;2;9;6
AZIENDA USL TOSCANA CENTRO;24/08/2017;Altre spese per relazioni pubbliche, convegni e mostre, pubblicit� n.a.c;76,88;"""VET 6  PARERE PER MOSTRE ANIMALI""  XIV EDIZIONE DELLA GIORNATA DELLO SPORT - IMPEGNO DI SPESA E LIQUIDAZIONE DIRITTI PARERE ASL TOSCANA CENTRO";2937;1;3;2;2;999
NEOPOST ITALIA - AFFRANCAPOSTA;24/08/2017;Spese postali;5.000,00;SPESE POSTALI - VERSAMENTO SU CONTO POSTALE PER AFFRANCATRICE - IMPEGNO DI SPESA;2938;1;3;2;16;2
TELECOM ITALIA SPA;24/08/2017;Telefonia fissa;0,23;Liquidazione Fattura Nr. 4220617800011523  del 07/06/2017 - 4BIM 2017 Telefonia fissa;2939;1;3;2;5;1
OASI VERDE SNC DI GIRALDI SONIA & C.;24/08/2017;Beni per attivit� di rappresentanza ;90,00;Liquidazione Fattura Nr. 000005-2017-PA  del 04/07/2017 - Cerimonia 02 luglio 2017 - Fornitura n.1 corona di alloro senza canne;2940;1;3;1;2;9
CENTRO  FORMAZIONE E CULTURA MUSICALE;24/08/2017;Organizzazione e partecipazione a manifestazioni e convegni;30,62;iva Liquidazione Fattura Nr. 3/01  del 30/06/2017 (di cui Split per euro 30,62) - SERVICE AUDIO I COLORI DELL'ASSOCIAZIONE;2941;1;3;2;2;5
CENTRO  FORMAZIONE E CULTURA MUSICALE;24/08/2017;Organizzazione e partecipazione a manifestazioni e convegni;139,20;Liquidazione Fattura Nr. 3/01  del 30/06/2017 - SERVICE AUDIO I COLORI DELL'ASSOCIAZIONE;2941;1;3;2;2;5
CIR FOOD S.C. DIVISIONE EUDANIA;24/08/2017;Contratti di servizio per le mense scolastiche;486,55;IVA-Liquidazione Fattura Nr. 5200017888  del 30/06/2017 (di cui Split per euro 486,55) - Trattenute DPR RIT 0,5 % ART. 4 C.3 DPR 207/2010 di 61,12- REFEZIONE SCOLASTICA  MESE DI GIUGNO 2017;2942;1;3;2;15;6
CIR FOOD S.C. DIVISIONE EUDANIA;24/08/2017;Contratti di servizio per le mense scolastiche;12.163,73;Liquidazione Fattura Nr. 5200017888  del 30/06/2017 - Trattenute DPR RIT 0,5 % ART. 4 C.3 DPR 207/2010 di 61,12- REFEZIONE SCOLASTICA  MESE DI GIUGNO 2017;2942;1;3;2;15;6
LE MACCHINE CELIBI SOCIETA' COOPERATIVA A RESPONSABILITA' LIMITATA;24/08/2017;Altri servizi diversi n.a.c.;963,19;IVA-Liquidazione Fattura Nr. FATTPA 422_17  del 31/05/2017 (di cui Split per euro 963,19) - GESTIONE SERVIZIO CENTRO DI AGGREGAZIONE GIOVANILE E DI ALTRE INIZIATIVE RIVOLTE AI GIOVANI NOVEMBRE E DICEMBRE 2016;2943;1;3;2;99;999
LE MACCHINE CELIBI SOCIETA' COOPERATIVA A RESPONSABILITA' LIMITATA;24/08/2017;Altri servizi diversi n.a.c.;4.378,12;Liquidazione Fattura Nr. FATTPA 422_17  del 31/05/2017 - GESTIONE SERVIZIO CENTRO DI AGGREGAZIONE GIOVANILE E DI ALTRE INIZIATIVE RIVOLTE AI GIOVANI NOVEMBRE E DICEMBRE 2016;2943;1;3;2;99;999
LE MACCHINE CELIBI SOCIETA' COOPERATIVA A RESPONSABILITA' LIMITATA;24/08/2017;Altri servizi diversi n.a.c.;1.077,98;IVA-Liquidazione Fattura Nr. FATTPA 424_17  del 31/05/2017 (di cui Split per euro 1.077,98) - GESTIONE SERVIZIO CENTRO DI AGGREGAZIONE GIOVANILE E DI ALTRE INIZIATIVE RIVOLTE AI GIOVANI GENNAIO, FEBBRAIO, MARZO 2017;2944;1;3;2;99;999
LE MACCHINE CELIBI SOCIETA' COOPERATIVA A RESPONSABILITA' LIMITATA;24/08/2017;Altri servizi diversi n.a.c.;4.899,92;Liquidazione Fattura Nr. FATTPA 424_17  del 31/05/2017 - GESTIONE SERVIZIO CENTRO DI AGGREGAZIONE GIOVANILE E DI ALTRE INIZIATIVE RIVOLTE AI GIOVANI GENNAIO, FEBBRAIO, MARZO 2017;2944;1;3;2;99;999
LE MACCHINE CELIBI SOCIETA' COOPERATIVA A RESPONSABILITA' LIMITATA;24/08/2017;Altri servizi diversi n.a.c.;657,05;IVA-Liquidazione Fattura Nr. FATTPA 423_17  del 31/05/2017 (di cui Split per euro 657,05) - GESTIONE SERVIZIO DOPOSCUOLA RIVOLTO AI GIOVANI NOVEMBRE E DICEMBRE 2016;2945;1;3;2;99;999
LE MACCHINE CELIBI SOCIETA' COOPERATIVA A RESPONSABILITA' LIMITATA;24/08/2017;Altri servizi diversi n.a.c.;2.986,60;Liquidazione Fattura Nr. FATTPA 423_17  del 31/05/2017 - GESTIONE SERVIZIO DOPOSCUOLA RIVOLTO AI GIOVANI NOVEMBRE E DICEMBRE 2016;2945;1;3;2;99;999
CO&SO EMPOLI - CONS. DI COOP. SOCIALI - SOCIETA' COOPERATIVA;24/08/2017;Altre spese per contratti di servizio pubblico;2.806,36;Liquidazione Fattura Nr. 000512-2C0  del 30/06/2017 - SERVIZI EDUCATIVI INFANZIA ED EXTRASCOLASTICI VILLA REGHINI GIUGNO 2017;2946;1;3;2;15;999
ESKIMO COOP. SOCIALE ONLUS;24/08/2017;Altre spese per contratti di servizio pubblico;7.184,50;Liquidazione Fattura Nr. FATTPA 68_17  del 30/06/2017 - SERVIZI EDUCATIVI INFANZIA ED EXTRASCOLASTICI MESE DI GIUGNO 2017;2946;1;3;2;15;999
TELECOM ITALIA SPA;24/08/2017;Telefonia fissa;22,43;IVA - Liquidazione Fattura Nr. 7X02644401  del 15/06/2017 (di cui Split per euro 22,43) - 4BIM 2017 Telefonia mobile PA 6;2947;1;3;2;5;1
TELECOM ITALIA SPA;24/08/2017;Telefonia fissa;102,00;Liquidazione Fattura Nr. 7X02644401  del 15/06/2017 - 4BIM 2017 Telefonia mobile PA 6;2947;1;3;2;5;1
TELECOM ITALIA SPA;24/08/2017;Telefonia mobile;16,17;IVA - Liquidazione Fattura Nr. 7X02644401  del 15/06/2017 (di cui Split per euro 16,17) - 4BIM 2017 Telefonia mobile PA 6;2947;1;3;2;5;2
TELECOM ITALIA SPA;24/08/2017;Telefonia mobile;206,37;Liquidazione Fattura Nr. 7X02644401  del 15/06/2017 - 4BIM 2017 Telefonia mobile PA 6;2947;1;3;2;5;2
TELECOM ITALIA SPA;24/08/2017;Telefonia mobile;7,77;IVA - Liquidazione Fattura Nr. 7X02644401  del 15/06/2017 (di cui Split per euro 7,77) - 4BIM 2017 Telefonia mobile PA 6;2948;1;3;2;5;2
TELECOM ITALIA SPA;24/08/2017;Telefonia mobile;164,40;Liquidazione Fattura Nr. 7X02644401  del 15/06/2017 - 4BIM 2017 Telefonia mobile PA 6;2948;1;3;2;5;2
TELECOM ITALIA SPA;24/08/2017;Telefonia mobile;9,11;IVA - Liquidazione Fattura Nr. 7X02644401  del 15/06/2017 (di cui Split per euro 9,11) - 4BIM 2017 Telefonia mobile PA 6;2949;1;3;2;5;2
TELECOM ITALIA SPA;24/08/2017;Telefonia mobile;506,16;Liquidazione Fattura Nr. 7X02644401  del 15/06/2017 - 4BIM 2017 Telefonia mobile PA 6;2949;1;3;2;5;2
GIGLIOLI PIATTAFORME DI GIGLIOLI ANTONIO & C. S.A.S.;25/08/2017;Manutenzione ordinaria e riparazioni di beni immobili;153,62;IVA - Liq. Ft Nr. 4/E/2017  del 30/06/2017 (di cui Split per euro 153,62) - NOLEGGIO PIATTAFORMA AEREA AUTOCARRATA DA 35 MT CON OPERATORE _ DETERMINA A CONTRARRE E AFFIDAMENTO DITTA GIGLIOLI PIATTAFORME  Fattura Nr. 4/E/2017 del 30-06-2017;2950;1;3;2;9;8
GIGLIOLI PIATTAFORME DI GIGLIOLI ANTONIO & C. S.A.S.;25/08/2017;Manutenzione ordinaria e riparazioni di beni immobili;698,25;Liquidazione Fattura Nr. 4/E/2017  del 30/06/2017 - NOLEGGIO DI UNA PIATTAFORMA AEREA AUTOCARRATA DA 35 MT CON OPERATORE _ DETERMINA A CONTRARRE E AFFIDAMENTO DITTA GIGLIOLI PIATTAFORME DI GIGLIOLI ANTONIO & C. SAS;2950;1;3;2;9;8
L'ELETTRICA S.P.A.;25/08/2017;Altri beni e materiali di consumo n.a.c.;46,64;IVA - Liquidazione Fattura Nr. 0000355PA  del 30/06/2017 (di cui Split per euro 46,64) - ACQUISTO INTERRUTTORE PER IMPIANTO ELETTRICO _ DETERMINA A CONTRARRE E AFFIDAMENTO DITTA L'ELETTRICA SPA;2951;1;3;1;2;999
L'ELETTRICA S.P.A.;25/08/2017;Altri beni e materiali di consumo n.a.c.;211,99;Liquidazione Fattura Nr. 0000355PA  del 30/06/2017 - ACQUISTO INTERRUTTORE PER IMPIANTO ELETTRICO _ DETERMINA A CONTRARRE E AFFIDAMENTO DITTA L'ELETTRICA SPA;2951;1;3;1;2;999
COOPERATIVA SOCIALE MIMOSA ONLUS;25/08/2017;Manutenzione ordinaria e riparazioni di beni immobili;499,58;IVA - Liquidazione Fattura Nr. 000014-2017-FE  del 30/06/2017 (di cui Split per euro 499,58) - AFFIDAMENTO DIRETTO AI SENSI DELL'ART. 36 D.LGS. 50/2011 IN APPALTO DEL SERVIZIO DI PULIZIA DEL VERDE PUBBLICO  DAL 13.03.2017 AL 31.12.2017;2952;1;3;2;9;8
COOPERATIVA SOCIALE MIMOSA ONLUS;25/08/2017;Manutenzione ordinaria e riparazioni di beni immobili;2.270,84;Liquidazione Fattura Nr. 000014-2017-FE  del 30/06/2017 - AFFIDAMENTO DIRETTO AI SENSI DELL'ART. 36 D.LGS. 50/2011 IN APPALTO DEL SERVIZIO DI PULIZIA DEL VERDE PUBBLICO  DAL 13.03.2017 AL 31.12.2017;2952;1;3;2;9;8
COOPERATIVA SOCIALE PEGASO SOCIETA' COOPERATIVA;25/08/2017;Manutenzione ordinaria e riparazioni di beni immobili;121,00;IVA - Liquidazione Fattura Nr. 105be  del 30/06/2017 (di cui Split per euro 121,00) - Intervento di smantellamento pergolato in via bixio _ Determina a contrarre e affidamento Cooperativa Sociale Pegaso;2952;1;3;2;9;8
COOPERATIVA SOCIALE PEGASO SOCIETA' COOPERATIVA;25/08/2017;Manutenzione ordinaria e riparazioni di beni immobili;550,00;Liquidazione Fattura Nr. 105be  del 30/06/2017 - Intervento di smantellamento pergolato in via bixio _ Determina a contrarre e affidamento Cooperativa Sociale Pegaso;2952;1;3;2;9;8
L'ELETTRICA S.P.A.;25/08/2017;Altri beni e materiali di consumo n.a.c.;85,58;IVA - Liquidazione Fattura Nr. 0000353PA  del 30/06/2017 - L'ELETTRICA _ FORNITURA MATERIALE ELETTRICO _ DET. 102/2017;2953;1;3;1;2;999
L'ELETTRICA S.P.A.;25/08/2017;Altri beni e materiali di consumo n.a.c.;389,00;Liquidazione Fattura Nr. 0000353PA  del 30/06/2017 - L'ELETTRICA _ FORNITURA MATERIALE ELETTRICO _ DET. 102/2017;2953;1;3;1;2;999
ENERGETIC S.P.A.;25/08/2017;Gas;10,34;IVA - Liquidazione Fattura Nr. EX32088/2017  del 24/07/2017 (di cui Split per euro 10,34) - FORNITURA RISCALDAMENTO UFFICI SPICCHIO;2954;1;3;2;5;6
ENERGETIC S.P.A.;25/08/2017;Gas;6,25;IVA - Liquidazione Fattura Nr. EX32125/2017  del 24/07/2017 (di cui Split per euro 6,25) - FORNITURA RISCALDAMENTO PALAZZO COMUNALE;2954;1;3;2;5;6
ENERGETIC S.P.A.;25/08/2017;Gas;23,37;IVA - Liquidazione Fattura Nr. EX32128/2017  del 24/07/2017 (di cui Split per euro 23,37) - FORNITURA RISCALDAMENTO MAGAZZINO;2954;1;3;2;5;6
ENERGETIC S.P.A.;25/08/2017;Gas;47,01;Liquidazione Fattura Nr. EX32088/2017  del 24/07/2017 - FORNITURA RISCALDAMENTO UFFICI SPICCHIO;2954;1;3;2;5;6
ENERGETIC S.P.A.;25/08/2017;Gas;28,43;Liquidazione Fattura Nr. EX32125/2017  del 24/07/2017 - FORNITURA RISCALDAMENTO PALAZZO COMUNALE;2954;1;3;2;5;6
ENERGETIC S.P.A.;25/08/2017;Gas;106,24;Liquidazione Fattura Nr. EX32128/2017  del 24/07/2017 - FORNITURA RISCALDAMENTO MAGAZZINO;2954;1;3;2;5;6
CERT2000 SRL;25/08/2017;Manutenzione ordinaria e riparazioni di impianti e macchinari;44,00;IVA-Liqu. Fattura Nr. 10/01  del 03/07/2017 (di cui Split per euro 44,00) - VERIFICHE PERIODICHE BIENNALI, AI SENSI DELL'ART. 13 DEL DPR 162/99, AGLI IMPIANTI ASCENSORE ESISTENI PRESSO GLI EDIFICI COMUNALI E SCUOLE-DETERMINA A CONTRARRE- Fa;2955;1;3;2;9;4
CERT2000 SRL;25/08/2017;Manutenzione ordinaria e riparazioni di impianti e macchinari;200,00;Liquidazione Fattura Nr. 10/01  del 03/07/2017 - VERIFICHE PERIODICHE BIENNALI, AI SENSI DELL'ART. 13 DEL DPR 162/99, AGLI IMPIANTI ASCENSORE ESISTENI PRESSO GLI EDIFICI COMUNALI E SCUOLE-DETERMINA A CONTRARRE-AFFIDAMENTO DITTA CERT2000 SRL;2955;1;3;2;9;4
ENERGETIC S.P.A.;25/08/2017;Gas;6,25;IVA - Liquidazione Fattura Nr. EX31633/2017  del 24/07/2017 (di cui Split per euro 6,25) - FORNITURA RISCALDAMENTO SCUOLA INFANZIA VINCI;2956;1;3;2;5;6
ENERGETIC S.P.A.;25/08/2017;Gas;11,60;IVA - Liquidazione Fattura Nr. EX31634/2017  del 24/07/2017 (di cui Split per euro 11,60) - FORNITURA RISCALDAMENTO SCUOLA D'INFANZIA SPICCHIO;2956;1;3;2;5;6
ENERGETIC S.P.A.;25/08/2017;Gas;54,69;IVA - Liquidazione Fattura Nr. EX31961/2017  del 24/07/2017 (di cui Split per euro 54,69) - FORNITURA RISCALDAMENTO SCUOLA D'INFANZIA SOVIGLIANA;2956;1;3;2;5;6
ENERGETIC S.P.A.;25/08/2017;Gas;28,43;Liquidazione Fattura Nr. EX31633/2017  del 24/07/2017 - FORNITURA RISCALDAMENTO SCUOLA INFANZIA VINCI;2956;1;3;2;5;6
ENERGETIC S.P.A.;25/08/2017;Gas;52,74;Liquidazione Fattura Nr. EX31634/2017  del 24/07/2017 - FORNITURA RISCALDAMENTO SCUOLA D'INFANZIA SPICCHIO;2956;1;3;2;5;6
ENERGETIC S.P.A.;25/08/2017;Gas;248,86;Liquidazione Fattura Nr. EX31961/2017  del 24/07/2017 - FORNITURA RISCALDAMENTO SCUOLA D'INFANZIA SOVIGLIANA;2956;1;3;2;5;6
ACQUE S.P.A.;25/08/2017;Acqua;37,00;IVA - Liquidazione Fattura Nr. 6017012000009042  del 07/08/2017 (di cui Split per euro 37,00) - FORNITURA ACQUA POTABILE SCUOLA INFANZIA SPICCHIO;2957;1;3;2;5;5
ACQUE S.P.A.;25/08/2017;Acqua;370,04;Liquidazione Fattura Nr. 6017012000009042  del 07/08/2017 - FORNITURA ACQUA POTABILE SCUOLA INFANZIA SPICCHIO;2957;1;3;2;5;5
CERT2000 SRL;25/08/2017;Manutenzione ordinaria e riparazioni di impianti e macchinari;22,00;IVA-Liqu. Fattura Nr. 10/01  del 03/07/2017 (di cui Split per euro 22,00) - VERIFICHE PERIODICHE BIENNALI, AI SENSI DELL'ART. 13 DEL DPR 162/99, AGLI IMPIANTI ASCENSORE ESISTENI PRESSO GLI EDIFICI COMUNALI E SCUOLE-DETERMINA A CONTRARRE- Fa;2958;1;3;2;9;4
CERT2000 SRL;25/08/2017;Manutenzione ordinaria e riparazioni di impianti e macchinari;100,00;Liquidazione Fattura Nr. 10/01  del 03/07/2017 - VERIFICHE PERIODICHE BIENNALI, AI SENSI DELL'ART. 13 DEL DPR 162/99, AGLI IMPIANTI ASCENSORE ESISTENI PRESSO GLI EDIFICI COMUNALI E SCUOLE-DETERMINA A CONTRARRE-AFFIDAMENTO DITTA CERT2000 SRL;2958;1;3;2;9;4
ENERGETIC S.P.A.;25/08/2017;Gas;6,25;IVA - Liquidazione Fattura Nr. EX32086/2017  del 24/07/2017 (di cui Split per euro 6,25) - FORNITURA RISCALDAMENTO SCUOLA PRIMARIA SPICCHIO;2959;1;3;2;5;6
ENERGETIC S.P.A.;25/08/2017;Gas;5,77;IVA - Liquidazione Fattura Nr. EX32139/2017  del 24/07/2017 - FORNITURA RISCALDAMENTO SCUOLA PRIMARIA E SECONDARIA DI PRIMO GRADO VINCI;2959;1;3;2;5;6
ENERGETIC S.P.A.;25/08/2017;Gas;28,43;Liquidazione Fattura Nr. EX32086/2017  del 24/07/2017 - FORNITURA RISCALDAMENTO SCUOLA PRIMARIA SPICCHIO;2959;1;3;2;5;6
ENERGETIC S.P.A.;25/08/2017;Gas;26,23;Liquidazione Fattura Nr. EX32139/2017  del 24/07/2017 - FORNITURA RISCALDAMENTO SCUOLA PRIMARIA E SECONDARIA DI PRIMO GRADO VINCI;2959;1;3;2;5;6
CERT2000 SRL;25/08/2017;Manutenzione ordinaria e riparazioni di impianti e macchinari;33,00;IVA-Liqu. Fattura Nr. 10/01  del 03/07/2017 (di cui Split per euro 33,00) - VERIFICHE PERIODICHE BIENNALI, AI SENSI DELL'ART. 13 DEL DPR 162/99, AGLI IMPIANTI ASCENSORE ESISTENI PRESSO GLI EDIFICI COMUNALI E SCUOLE-DETERMINA A CONTRARRE- Fa;2960;1;3;2;9;4
CERT2000 SRL;25/08/2017;Manutenzione ordinaria e riparazioni di impianti e macchinari;150,00;Liquidazione Fattura Nr. 10/01  del 03/07/2017 - VERIFICHE PERIODICHE BIENNALI, AI SENSI DELL'ART. 13 DEL DPR 162/99, AGLI IMPIANTI ASCENSORE ESISTENI PRESSO GLI EDIFICI COMUNALI E SCUOLE-DETERMINA A CONTRARRE-AFFIDAMENTO DITTA CERT2000 SRL;2960;1;3;2;9;4
L'ELETTRICA S.P.A.;25/08/2017;Altri beni e materiali di consumo n.a.c.;54,69;IVA - Liquidazione Fattura Nr. 0000353PA  del 30/06/2017 - L'ELETTRICA _ FORNITURA MATERIALE ELETTRICO _ DET. 102/2017;2961;1;3;1;2;999
L'ELETTRICA S.P.A.;25/08/2017;Altri beni e materiali di consumo n.a.c.;248,58;Liquidazione Fattura Nr. 0000353PA  del 30/06/2017 - L'ELETTRICA _ FORNITURA MATERIALE ELETTRICO _ DET. 102/2017;2961;1;3;1;2;999
ENERGETIC S.P.A.;25/08/2017;Gas;6,25;IVA - Liquidazione Fattura Nr. EX32085/2017  del 24/07/2017 (di cui Split per euro 6,25) - FORNITURA RISCALDAMENTO SCUOLA SECONDARIA DI PRIMO GRADO SOVIGLIANA;2962;1;3;2;5;6
ENERGETIC S.P.A.;25/08/2017;Gas;5,77;IVA - Liquidazione Fattura Nr. EX32139/2017  del 24/07/2017 - FORNITURA RISCALDAMENTO SCUOLA PRIMARIA E SECONDARIA DI PRIMO GRADO VINCI;2962;1;3;2;5;6
ENERGETIC S.P.A.;25/08/2017;Gas;28,43;Liquidazione Fattura Nr. EX32085/2017  del 24/07/2017 - FORNITURA RISCALDAMENTO SCUOLA SECONDARIA DI PRIMO GRADO SOVIGLIANA;2962;1;3;2;5;6
ENERGETIC S.P.A.;25/08/2017;Gas;26,22;Liquidazione Fattura Nr. EX32139/2017  del 24/07/2017 - FORNITURA RISCALDAMENTO SCUOLA PRIMARIA E SECONDARIA DI PRIMO GRADO VINCI;2962;1;3;2;5;6
CERT2000 SRL;25/08/2017;Manutenzione ordinaria e riparazioni di impianti e macchinari;33,00;IVA-Liqu. Fattura Nr. 10/01  del 03/07/2017 (di cui Split per euro 33,00) - VERIFICHE PERIODICHE BIENNALI, AI SENSI DELL'ART. 13 DEL DPR 162/99, AGLI IMPIANTI ASCENSORE ESISTENI PRESSO GLI EDIFICI COMUNALI E SCUOLE-DETERMINA A CONTRARRE- Fa;2963;1;3;2;9;4
CERT2000 SRL;25/08/2017;Manutenzione ordinaria e riparazioni di impianti e macchinari;150,00;Liquidazione Fattura Nr. 10/01  del 03/07/2017 - VERIFICHE PERIODICHE BIENNALI, AI SENSI DELL'ART. 13 DEL DPR 162/99, AGLI IMPIANTI ASCENSORE ESISTENI PRESSO GLI EDIFICI COMUNALI E SCUOLE-DETERMINA A CONTRARRE-AFFIDAMENTO DITTA CERT2000 SRL;2963;1;3;2;9;4
CERT2000 SRL;25/08/2017;Manutenzione ordinaria e riparazioni di impianti e macchinari;22,00;IVA-Liquidazione Fattura Nr. 11/01  del 03/07/2017 - VERIFICHE PERIODICHE ASCENSORI PALAZZINA UZIELLI E NIDO;2964;1;3;2;9;4
CERT2000 SRL;25/08/2017;Manutenzione ordinaria e riparazioni di impianti e macchinari;100,00;Liquidazione Fattura Nr. 11/01  del 03/07/2017 - VERIFICHE PERIODICHE ASCENSORI PALAZZINA UZIELLI E NIDO;2964;1;3;2;9;4
ENERGETIC S.P.A.;25/08/2017;Gas;42,30;IVA - Liquidazione Fattura Nr. EX32143/2017  del 24/07/2017 - FORNITURA RISCALDAMENTO PALASPORT 40%;2965;1;3;2;5;6
ENERGETIC S.P.A.;25/08/2017;Gas;63,46;IVA - Liquidazione Fattura Nr. EX32143/2017  del 24/07/2017 - FORNITURA RISCALDAMENTO PALASPORT 60%;2965;1;3;2;5;6
ENERGETIC S.P.A.;25/08/2017;Gas;192,30;Liquidazione Fattura Nr. EX32143/2017  del 24/07/2017 - FORNITURA RISCALDAMENTO PALASPORT 40%;2965;1;3;2;5;6
ENERGETIC S.P.A.;25/08/2017;Gas;288,44;Liquidazione Fattura Nr. EX32143/2017  del 24/07/2017 - FORNITURA RISCALDAMENTO PALASPORT 60%;2965;1;3;2;5;6
ACQUE S.P.A.;25/08/2017;Acqua;0,06;IVA - Liquidazione Fattura Nr. 6017012000009043  del 07/08/2017 (di cui Split per euro 0,06) - FORNITURA ACQUA POTABILE FONT. VIA CAVALLOTTI;2966;1;3;2;5;5
ACQUE S.P.A.;25/08/2017;Acqua;0,59;Liquidazione Fattura Nr. 6017012000009043  del 07/08/2017 - FORNITURA ACQUA POTABILE FONT. VIA CAVALLOTTI;2966;1;3;2;5;5
L'ELETTRICA S.P.A.;25/08/2017;Altri beni e materiali di consumo n.a.c.;1.489,88;IVA - Liquidazione Fattura Nr. 0000353PA  del 30/06/2017 - L'ELETTRICA _ FORNITURA MATERIALE ELETTRICO _ DET. 102/2017;2967;1;3;1;2;999
L'ELETTRICA S.P.A.;25/08/2017;Altri beni e materiali di consumo n.a.c.;14,97;IVA - Liquidazione Fattura Nr. 0000354PA  del 30/06/2017 - L'ELETTRICA _ FORNITURA MATERIALE ELETTRICO _ DET. 102/2017;2967;1;3;1;2;999
L'ELETTRICA S.P.A.;25/08/2017;Altri beni e materiali di consumo n.a.c.;6.772,20;Liquidazione Fattura Nr. 0000353PA  del 30/06/2017 - L'ELETTRICA _ FORNITURA MATERIALE ELETTRICO _ DET. 102/2017;2967;1;3;1;2;999
L'ELETTRICA S.P.A.;25/08/2017;Altri beni e materiali di consumo n.a.c.;68,04;Liquidazione Fattura Nr. 0000354PA  del 30/06/2017 - L'ELETTRICA _ FORNITURA MATERIALE ELETTRICO _ DET. 102/2017;2967;1;3;1;2;999
ENERGETIC S.P.A.;25/08/2017;Gas;27,59;IVA - Liquidazione Fattura Nr. EX32058/2017  del 24/07/2017 (di cui Split per euro 27,59) - FORNITURA RISCALDAMENTO NIDO;2968;1;3;2;5;6
ENERGETIC S.P.A.;25/08/2017;Gas;125,40;Liquidazione Fattura Nr. EX32058/2017  del 24/07/2017 - FORNITURA RISCALDAMENTO NIDO;2968;1;3;2;5;6
ENERGETIC S.P.A.;25/08/2017;Gas;13,49;IVA - Liquidazione Fattura Nr. EX32059/2017  del 24/07/2017 (di cui Split per euro 13,49) - FORNITURA RISCALDAMENTO VILLA REGHINI;2969;1;3;2;5;6
ENERGETIC S.P.A.;25/08/2017;Gas;61,32;Liquidazione Fattura Nr. EX32059/2017  del 24/07/2017 - FORNITURA RISCALDAMENTO VILLA REGHINI;2969;1;3;2;5;6
CERT2000 SRL;25/08/2017;Manutenzione ordinaria e riparazioni di impianti e macchinari;22,00;IVA-Liquidazione Fattura Nr. 11/01  del 03/07/2017 - VERIFICHE PERIODICHE ASCENSORI PALAZZINA UZIELLI E NIDO;2970;1;3;2;9;4
CERT2000 SRL;25/08/2017;Manutenzione ordinaria e riparazioni di impianti e macchinari;100,00;Liquidazione Fattura Nr. 11/01  del 03/07/2017 - VERIFICHE PERIODICHE ASCENSORI PALAZZINA UZIELLI E NIDO;2970;1;3;2;9;4
CERT2000 SRL;25/08/2017;Manutenzione ordinaria e riparazioni di impianti e macchinari;22,00;IVA-Liqu.Fattura Nr. 10/01  del 03/07/2017 (di cui Split per euro 22,00) - VERIFICHE PERIODICHE BIENNALI, AI SENSI DELL'ART. 13 DEL DPR 162/99, AGLI IMPIANTI ASCENSORE ESISTENI PRESSO GLI EDIFICI COMUNALI E SCUOLE-DETERMINA A CONTRARRE- Fat;2971;1;3;2;9;4
CERT2000 SRL;25/08/2017;Manutenzione ordinaria e riparazioni di impianti e macchinari;100,00;Liquidazione Fattura Nr. 10/01  del 03/07/2017 - VERIFICHE PERIODICHE BIENNALI, AI SENSI DELL'ART. 13 DEL DPR 162/99, AGLI IMPIANTI ASCENSORE ESISTENI PRESSO GLI EDIFICI COMUNALI E SCUOLE-DETERMINA A CONTRARRE-AFFIDAMENTO DITTA CERT2000 SRL;2971;1;3;2;9;4
ENERGETIC S.P.A.;25/08/2017;Gas;39,06;IVA - Liquidazione Fattura Nr. EX32100/2017  del 24/07/2017 (di cui Split per euro 39,06) - FORNITURA RISCALDAMENTO R.S.A.;2972;1;3;2;5;6
ENERGETIC S.P.A.;25/08/2017;Gas;177,56;Liquidazione Fattura Nr. EX32100/2017  del 24/07/2017 - FORNITURA RISCALDAMENTO R.S.A.;2972;1;3;2;5;6
CERT2000 SRL;25/08/2017;Manutenzione ordinaria e riparazioni di impianti e macchinari;22,00;IVA-Liqu. Fattura Nr. 10/01  del 03/07/2017 (di cui Split per euro 22,00) - VERIFICHE PERIODICHE BIENNALI, AI SENSI DELL'ART. 13 DEL DPR 162/99, AGLI IMPIANTI ASCENSORE ESISTENI PRESSO GLI EDIFICI COMUNALI E SCUOLE-DETERMINA A CONTRARRE- Fa;2973;1;3;2;9;4
CERT2000 SRL;25/08/2017;Manutenzione ordinaria e riparazioni di impianti e macchinari;100,00;Liquidazione Fattura Nr. 10/01  del 03/07/2017 - VERIFICHE PERIODICHE BIENNALI, AI SENSI DELL'ART. 13 DEL DPR 162/99, AGLI IMPIANTI ASCENSORE ESISTENI PRESSO GLI EDIFICI COMUNALI E SCUOLE-DETERMINA A CONTRARRE-AFFIDAMENTO DITTA CERT2000 SRL;2973;1;3;2;9;4
FRATERNITA MISERICORDIA DI VINCI;29/08/2017;Altri servizi ausiliari n.a.c.;3.208,32;Liquidazione Fattura Nr. FATTPA 8_17  del 03/07/2017 - servizio custodia Teatro mesi aprile maggio giugno 2017;2974;1;3;2;13;999
CASALINI LIBRI S.P.A.;29/08/2017;Giornali e riviste;13,50;Liquidazione Fattura Nr. 17-30555 del 25/07/2017 - Acquisto risorse librarie;2975;1;3;1;1;1
"FONDAZIONE ""GIORGIO RONCHI""";29/08/2017;Giornali e riviste;135,00;Liquidazione Nota di debito Nr. registr. 17731  del 21/07/2017 - ATTI FONDAZIONE GIORGIO RONCHI;2976;1;3;1;1;1
S.MARCO LIPOTIPO SRL;29/08/2017;Giornali e riviste;48,00;Liquidazione Fattura Nr. 1/03 del 20/07/2017 - vendita;2976;1;3;1;1;1
ETRURIA P.A. SRL;29/08/2017;Stampa e rilegatura;365,20;IVA Liquidazione Fattura Nr. 1266/00000  del 30/06/2017 (di cui Split per euro 365,20) - STAMPA DI MATERIALE INFORMATIVO PER MUSEO LEONARDIANO E UFFICIO TURISTICO - AFFIDAMENTO TRAMITE START E IMPEGNO DI SPESA;2977;1;3;2;13;4
ETRURIA P.A. SRL;29/08/2017;Stampa e rilegatura;1.660,00;Liquidazione Fattura Nr. 1266/00000  del 30/06/2017 - STAMPA DI MATERIALE INFORMATIVO PER MUSEO LEONARDIANO E UFFICIO TURISTICO - AFFIDAMENTO TRAMITE START E IMPEGNO DI SPESA;2977;1;3;2;13;4
CENTRO INTERNAZIONALE DI STUDI E DOCUMENTAZIONE LEONARDO DA VINCI C/O BIBLIOTECA;29/08/2017;Altre spese per contratti di servizio pubblico;4.733,61;IVA Liquidazione Fattura Nr. 3/A  del 30/06/2017 - ORGANIZZAZIONE, REALIZZAZIONE E GESTIONE DELL'ESPOSIZIONE 'LEONARDO. UNA MOSTRA IMPOSSIBILE' ANNO 2017. DET. S5 N. 110/2015 IMP. DS05110 CAP. 3300/11 ANNO 2017.;2978;1;3;2;15;999
CENTRO INTERNAZIONALE DI STUDI E DOCUMENTAZIONE LEONARDO DA VINCI C/O BIBLIOTECA;29/08/2017;Altre spese per contratti di servizio pubblico;21.516,39;Liquidazione Fattura Nr. 3/A  del 30/06/2017 (di cui Split per euro 4.733,61) - ORGANIZZAZIONE, REALIZZAZIONE E GESTIONE DELL'ESPOSIZIONE 'LEONARDO. UNA MOSTRA IMPOSSIBILE' ANNO 2017. DET. S5 N. 110/2015 IMP. DS05110 CAP. 3300/11 ANNO 2017.;2978;1;3;2;15;999
CENTRO INTERNAZIONALE DI STUDI E DOCUMENTAZIONE LEONARDO DA VINCI C/O BIBLIOTECA;29/08/2017;Trasferimenti correnti a Istituzioni Sociali Private ;1.200,00;CONCESSIONE DEL CONTRIBUTO PER ORGANIZZAZIONE EVENTI DEL 6 E 16 SETTEMBRE 2017 - ANTICIPO;2979;1;4;4;1;1
ENERGRID S.P.A.;06/09/2017;Energia elettrica;2.508,77;IVA-Liquidazione Fattura Nr. 174022004  del 12/08/2017 (di cui Split per euro 2.508,77) - FORNITURA ENERGIA ELETTRICA PER PUBBLICA ILLUMINAZIONE-LUGLIO 2017;2981;1;3;2;5;4
ENERGRID S.P.A.;06/09/2017;Energia elettrica;11.403,52;Liquidazione Fattura Nr. 174022004  del 12/08/2017 - FORNITURA ENERGIA ELETTRICA PER PUBBLICA ILLUMINAZIONE-LUGLIO 2017;2981;1;3;2;5;4
ERARIO DELLO STATO PER PAGAMENTO I.V.A.;11/09/2017;Versamenti IVA a debito per le gestioni commerciali;6.198,20;PAGAMENTO IVA A DEBITO SERVIZI COMMERCIALI MESE DI AGOSTO 2017;2982;1;10;3;1;1
ANGELINO S.R.L.;11/09/2017;Contratti di servizio di trasporto scolastico;38.439,28;FASCICOLO N. 71/2017/469052 - ATTO DI PIGNORAMENTO CREDITI VERSO TERZI - Liquidazione Fattura Nr. 00277P  del 31/05/2017 (di cui Split per euro 3.843,93);2983;1;3;2;15;2
ANGELINO S.R.L.;11/09/2017;Contratti di servizio di trasporto scolastico;3.843,93;IVA-Liquidazione Fattura Nr. 00277P  del 31/05/2017 (di cui Split per euro 3.843,93) - SERVIZIO TRASPORTO SCOLASTICO MESE DI MAGGIO 2017;2983;1;3;2;15;2
ANGELINO S.R.L.;11/09/2017;Contratti di servizio di trasporto scolastico;93,84;IVA Liquidazione Fattura Nr. 00156P  del 05/05/2017 (di cui Split per euro 93,84) - US�CITE DIDATTICHE GIUGNO E LUGLIO 2016;2984;1;3;2;15;2
ANGELINO S.R.L.;11/09/2017;Contratti di servizio di trasporto scolastico;175,35;IVA Liquidazione Fattura Nr. 00157P  del 05/05/2017 (di cui Split per euro 175,35) - USCITE DIDATTICHE APRILE 2016;2984;1;3;2;15;2
ANGELINO S.R.L.;11/09/2017;Contratti di servizio di trasporto scolastico;140,45;IVA Liquidazione Fattura Nr. 00158P  del 05/05/2017 (di cui Split per euro 140,45) - USCITE DIDATTICHE MAGGIO 2016;2984;1;3;2;15;2
ANGELINO S.R.L.;11/09/2017;Contratti di servizio di trasporto scolastico;26,54;IVA Liquidazione Fattura Nr. 00159P  del 05/05/2017 (di cui Split per euro 26,54) - USCITE DIDATTICHE FEBBRAIO 2016;2984;1;3;2;15;2
ANGELINO S.R.L.;11/09/2017;Contratti di servizio di trasporto scolastico;444,13;IVA Liquidazione Fattura Nr. 00160P  del 05/05/2017 (di cui Split per euro 444,13) - CENTRI ESTIVI GIUGNO E LUGLIO 2016;2984;1;3;2;15;2
ANGELINO S.R.L.;11/09/2017;Contratti di servizio di trasporto scolastico;938,41;Liquidazione Fattura Nr. 00156P  del 05/05/2017 - US�CITE DIDATTICHE GIUGNO E LUGLIO 2016;2984;1;3;2;15;2
ANGELINO S.R.L.;11/09/2017;Contratti di servizio di trasporto scolastico;1.753,51;Liquidazione Fattura Nr. 00157P  del 05/05/2017 - USCITE DIDATTICHE APRILE 2016;2984;1;3;2;15;2
ANGELINO S.R.L.;11/09/2017;Contratti di servizio di trasporto scolastico;1.404,48;Liquidazione Fattura Nr. 00158P  del 05/05/2017 - USCITE DIDATTICHE MAGGIO 2016;2984;1;3;2;15;2
ANGELINO S.R.L.;11/09/2017;Contratti di servizio di trasporto scolastico;265,43;Liquidazione Fattura Nr. 00159P  del 05/05/2017 - USCITE DIDATTICHE FEBBRAIO 2016;2984;1;3;2;15;2
ANGELINO S.R.L.;11/09/2017;Contratti di servizio di trasporto scolastico;4.441,25;Liquidazione Fattura Nr. 00160P  del 05/05/2017 - CENTRI ESTIVI GIUGNO E LUGLIO 2016;2984;1;3;2;15;2
ANGELINO S.R.L.;11/09/2017;Contratti di servizio di trasporto scolastico;2.603,30;IVA Liquidazione Fattura Nr. 00145P  del 29/04/2017 (di cui Split per euro 2.603,30) - TRASPORTO SCOLASTICO APRILE 2017;2985;1;3;2;15;2
ANGELINO S.R.L.;11/09/2017;Contratti di servizio di trasporto scolastico;99,48;IVA Liquidazione Fattura Nr. 00162P  del 11/05/2017 (di cui Split per euro 99,48) - USCITE DIDATTICHE FEBBRAIO 2017;2985;1;3;2;15;2
ANGELINO S.R.L.;11/09/2017;Contratti di servizio di trasporto scolastico;170,96;IVA Liquidazione Fattura Nr. 00163P  del 11/05/2017 (di cui Split per euro 170,96) - USCITE DIDATTICHE MARZO 2017;2985;1;3;2;15;2
ANGELINO S.R.L.;11/09/2017;Contratti di servizio di trasporto scolastico;1.993,65;IVA Liquidazione Fattura Nr. 00338P  del 30/06/2017 (di cui Split per euro 1.993,65) - TRASPOSTO SCOLASTICO GIUGNO 2017;2985;1;3;2;15;2
ANGELINO S.R.L.;11/09/2017;Contratti di servizio di trasporto scolastico;187,68;IVA-Liquidazione Fattura Nr. 00164P  del 11/05/2017 (di cui Split per euro 187,68) - SERVIZIO TRASPORTO PER USCITE DIDATTICHE MESE DI APRILE 2017;2985;1;3;2;15;2
ANGELINO S.R.L.;11/09/2017;Contratti di servizio di trasporto scolastico;26.033,04;Liquidazione Fattura Nr. 00145P  del 29/04/2017 - TRASPORTO SCOLASTICO APRILE 2017;2985;1;3;2;15;2
ANGELINO S.R.L.;11/09/2017;Contratti di servizio di trasporto scolastico;994,84;Liquidazione Fattura Nr. 00162P  del 11/05/2017 - USCITE DIDATTICHE FEBBRAIO 2017;2985;1;3;2;15;2
ANGELINO S.R.L.;11/09/2017;Contratti di servizio di trasporto scolastico;1.709,62;Liquidazione Fattura Nr. 00163P  del 11/05/2017 - USCITE DIDATTICHE MARZO 2017;2985;1;3;2;15;2
ANGELINO S.R.L.;11/09/2017;Contratti di servizio di trasporto scolastico;1.876,82;Liquidazione Fattura Nr. 00164P  del 11/05/2017 - SERVIZIO TRASPORTO PER USCITE DIDATTICHE MESE DI APRILE 2017;2985;1;3;2;15;2
ANGELINO S.R.L.;11/09/2017;Contratti di servizio di trasporto scolastico;19.936,51;Liquidazione Fattura Nr. 00338P  del 30/06/2017 - TRASPOSTO SCOLASTICO GIUGNO 2017;2985;1;3;2;15;2
ENERGETIC S.P.A.;13/09/2017;Gas;6,25;IVA - azione Fattura Nr. EX39062/2017  del 07/08/2017 (di cui Split per euro 6,25) - FORNITURA RISCALDAMENTO MAGAZZINO Fattura Nr. EX39062/2017 del 07-08-2017;2989;1;3;2;5;6
ENERGETIC S.P.A.;13/09/2017;Gas;9,20;IVA - Liquidazione Fattura Nr. EX39022/2017  del 07/08/2017 (di cui Split per euro 9,20) - FORNITURA RISCALDAMENTO UFFICI DI SPICCHIO;2989;1;3;2;5;6
ENERGETIC S.P.A.;13/09/2017;Gas;6,25;IVA - Liquidazione Fattura Nr. EX39059/2017  del 07/08/2017 (di cui Split per euro 6,25) - FORNITURA RISCALDAMENTO PALAZZO COMUNALE;2989;1;3;2;5;6
ENERGETIC S.P.A.;13/09/2017;Gas;41,83;Liquidazione Fattura Nr. EX39022/2017  del 07/08/2017 - FORNITURA RISCALDAMENTO UFFICI DI SPICCHIO;2989;1;3;2;5;6
ENERGETIC S.P.A.;13/09/2017;Gas;28,43;Liquidazione Fattura Nr. EX39059/2017  del 07/08/2017 - FORNITURA RISCALDAMENTO PALAZZO COMUNALE;2989;1;3;2;5;6
ENERGETIC S.P.A.;13/09/2017;Gas;28,43;Liquidazione Fattura Nr. EX39062/2017  del 07/08/2017 - FORNITURA RISCALDAMENTO MAGAZZINO;2989;1;3;2;5;6
ACQUE S.P.A.;13/09/2017;Acqua;18,64;IVA - Liquidazione Fattura Nr. 6017012000009220  del 16/08/2017 (di cui Split per euro 18,64) - FORNITURA ACQUA POTABILE UFFICI COMUNALI;2990;1;3;2;5;5
ACQUE S.P.A.;13/09/2017;Acqua;3,10;IVA - Liquidazione Fattura Nr. 6017012000009844  del 24/08/2017 (di cui Split per euro 3,10) - FORNITURA ACQUA POTABILE EX MACELLI;2990;1;3;2;5;5
ACQUE S.P.A.;13/09/2017;Acqua;186,39;Liquidazione Fattura Nr. 6017012000009220  del 16/08/2017 - FORNITURA ACQUA POTABILE UFFICI COMUNALI;2990;1;3;2;5;5
ACQUE S.P.A.;13/09/2017;Acqua;30,99;Liquidazione Fattura Nr. 6017012000009844  del 24/08/2017 - FORNITURA ACQUA POTABILE EX MACELLI;2990;1;3;2;5;5
ARNO MANETTI ASCENSORI S.R.L.;13/09/2017;Manutenzione ordinaria e riparazioni di impianti e macchinari;125,40;IVA-Liquidazione Fattura Nr. 2124  del 18/07/2017 (di cui Split per euro 125,40) - Manut. imp. ascensore sedi istituzionali, scuole, villa Reghini, RSA, palasport per il 40% uso istituzionale-1� SEM. 2017;2991;1;3;2;9;4
ARNO MANETTI ASCENSORI S.R.L.;13/09/2017;Manutenzione ordinaria e riparazioni di impianti e macchinari;570,00;Liquidazione Fattura Nr. 2124  del 18/07/2017 - Manut. imp. ascensore sedi istituzionali, scuole, villa Reghini, RSA, palasport per il 40% uso istituzionale-1� SEM. 2017;2991;1;3;2;9;4
DGM SICUREZZA SRLS;13/09/2017;Manutenzione ordinaria e riparazioni di impianti e macchinari;61,60;IVA - Liquidazione Fattura Nr. 145/PA  del 30/06/2017 (di cui Split per euro 61,60) - MANUTENZIONE ORDINARIA A E RIPARAZIONE DI IMPIANTI_AFFIDAMENTO DITTA DGM SICUREZZA SRLS;2991;1;3;2;9;4
DGM SICUREZZA SRLS;13/09/2017;Manutenzione ordinaria e riparazioni di impianti e macchinari;280,00;Liquidazione Fattura Nr. 145/PA  del 30/06/2017 - MANUTENZIONE ORDINARIA A E RIPARAZIONE DI IMPIANTI_AFFIDAMENTO DITTA DGM SICUREZZA SRLS;2991;1;3;2;9;4
DAMAZ S.R.L. - INGROSSO CASALINGHI;13/09/2017;Altre prestazioni professionali e specialistiche n.a.c.;79,97;IVA Liquidazione Fattura Nr. 701P  del 17/04/2015 - FORNITURA CASSETTE PRONTO SOCCORSO, PACCHETTI E PRODOTTI MEDICAZIONE ;2992;1;3;2;11;999
DAMAZ S.R.L. - INGROSSO CASALINGHI;13/09/2017;Altre prestazioni professionali e specialistiche n.a.c.;363,52;Liquidazione Fattura Nr. 701P  del 17/04/2015 - FORNITURA CASSETTE PRONTO SOCCORSO, PACCHETTI E PRODOTTI MEDICAZIONE ;2992;1;3;2;11;999
ECOMEDICA S.P.A.;13/09/2017;Altre prestazioni professionali e specialistiche n.a.c.;26,20;Liquidazione Fattura Nr. 00058  del 26/06/2017 - PRESTAZIONI DIAGNOSTICHE - DETERMINA A CONTRARRE - AFFIDAMENTO ECOMEDICA SRL;2992;1;3;2;11;999
TAMBURINI  GIONNI;13/09/2017;Altre prestazioni professionali e specialistiche n.a.c.;528,00;"LIQUIDAZIONE FATTURA NR. FATTPA 16_17  DEL 18/07/2017 - AFFIDAMENTO DEL SERVIZIO PER LO SVOLGIMENTO DELLE ATTIVITA' DI ""MEDICO COMPETENTE"" AI SENSI DEL D.LGS. 81/2008 - ANNI 2015-2016.2017.";2992;1;3;2;11;999
AUTOPASS EMPOLI S.R.L.;13/09/2017;Manutenzione ordinaria e riparazioni di mezzi di trasporto ad uso civile, di sicurezza e ordine pubblico;135,93;IVA - Liquidazione Fattura N. FATTPA 3_17  del 12/07/2017 (di cui Split per euro 135,93) - REVISIONE ED ESECUZIONE DI INTERVENTI COMPLEMENTARI SUGLI AUTOCARRI IN DOTAZIONE DEL COMUNE _ DET. A CONTRARRE E AFFIDAMENTO DITTA AUTOPASS EMPOLI SR;2993;1;3;2;9;1
AUTOPASS EMPOLI S.R.L.;13/09/2017;Manutenzione ordinaria e riparazioni di mezzi di trasporto ad uso civile, di sicurezza e ordine pubblico;91,07;IVA - Liquidazione Fattura N. FATTPA 4_17  del 12/07/2017 (di cui Split per euro 91,07) - LAVORI DI RIPARAZIONE DEL MEZZO FIAT DUCATO TARGATO DJ025DH _ DET. A CONTRARRE E AFFIDAMENTO DITTA AUTOPASS EMPOLI SRL;2993;1;3;2;9;1
AUTOPASS EMPOLI S.R.L.;13/09/2017;Manutenzione ordinaria e riparazioni di mezzi di trasporto ad uso civile, di sicurezza e ordine pubblico;617,87;Liquidazione Fattura Nr. FATTPA 3_17  del 12/07/2017 - REVISIONE ED ESECUZIONE DI INTERVENTI COMPLEMENTARI SUGLI AUTOCARRI IN DOTAZIONE DEL COMUNE _ DETERMINA A CONTRARRE E AFFIDAMENTO DITTA AUTOPASS EMPOLI SRL;2993;1;3;2;9;1
AUTOPASS EMPOLI S.R.L.;13/09/2017;Manutenzione ordinaria e riparazioni di mezzi di trasporto ad uso civile, di sicurezza e ordine pubblico;413,94;Liquidazione Fattura Nr. FATTPA 4_17  del 12/07/2017 - LAVORI DI RIPARAZIONE DEL MEZZO FIAT DUCATO TARGATO DJ025DH _ DETERMINA A CONTRARRE E AFFIDAMENTO DITTA AUTOPASS EMPOLI SRL;2993;1;3;2;9;1
ENERGETIC S.P.A.;13/09/2017;Gas;27,52;IVA - Liquidazione Fattura Nr. EX38564/2017  el 07/08/2017 (di cui Split per euro 27,52) - FORNITURA RISCALDAMENTO SCUOLA INFANZIA DI VINCI;2994;1;3;2;5;6
ENERGETIC S.P.A.;13/09/2017;Gas;10,43;IVA - Liquidazione Fattura Nr. EX38565/2017  del 07/08/2017 (di cui Split per euro 10,43) - FORNITURA RISCALDAMENTO SCUOLA INFANZIA DI SPICCHIO;2994;1;3;2;5;6
ENERGETIC S.P.A.;13/09/2017;Gas;6,25;IVA - Liquidazione Fattura Nr. EX38894/2017  del 07/08/2017 (di cui Split per euro 6,25) - FORNITURA RISCALDAMENTO SCUOLA INFANZIA DI SOVIGLIANA;2994;1;3;2;5;6
ENERGETIC S.P.A.;13/09/2017;Gas;125,08;Liquidazione Fattura Nr. EX38564/2017  del 07/08/2017 - FORNITURA RISCALDAMENTO SCUOLA INFANZIA DI VINCI;2994;1;3;2;5;6
ENERGETIC S.P.A.;13/09/2017;Gas;47,39;Liquidazione Fattura Nr. EX38565/2017  del 07/08/2017 - FORNITURA RISCALDAMENTO SCUOLA INFANZIA DI SPICCHIO;2994;1;3;2;5;6
ENERGETIC S.P.A.;13/09/2017;Gas;28,43;Liquidazione Fattura Nr. EX38894/2017  del 07/08/2017 - FORNITURA RISCALDAMENTO SCUOLA INFANZIA DI SOVIGLIANA;2994;1;3;2;5;6
ARNO MANETTI ASCENSORI S.R.L.;13/09/2017;Manutenzione ordinaria e riparazioni di impianti e macchinari;40,70;IVA-Liquidazione Fattura Nr. 2124  del 18/07/2017 (di cui Split per euro 40,70) - Manut. imp. ascensore sedi istituzionali, scuole, villa Reghini, RSA, palasport per il 40% uso istituzionale-1� SEM. 2017;2995;1;3;2;9;4
ARNO MANETTI ASCENSORI S.R.L.;13/09/2017;Manutenzione ordinaria e riparazioni di impianti e macchinari;185,00;Liquidazione Fattura Nr. 2124  del 18/07/2017 - Manut. imp. ascensore sedi istituzionali, scuole, villa Reghini, RSA, palasport per il 40% uso istituzionale-1� SEM. 2017;2995;1;3;2;9;4
ENERGETIC S.P.A.;13/09/2017;Gas;6,25;IVA - Liquidazione Fattura Nr. EX39020/2017  del 07/08/2017 (di cui Split per euro 6,25) - FORNITURA RISCALDAMENTO SCUOLA PRIMARIA DI SPICCHIO;2996;1;3;2;5;6
ENERGETIC S.P.A.;13/09/2017;Gas;3,12;IVA - Liquidazione Fattura Nr. EX39073/2017  del 07/08/2017 - FORNITURA RISCALDAMENTO SCUOLA PRIMARIA E SECONDARIA DI PRIMO GRADO DI VINCI;2996;1;3;2;5;6
ENERGETIC S.P.A.;13/09/2017;Gas;28,43;Liquidazione Fattura Nr. EX39020/2017  del 07/08/2017 - FORNITURA RISCALDAMENTO SCUOLA PRIMARIA DI SPICCHIO;2996;1;3;2;5;6
ENERGETIC S.P.A.;13/09/2017;Gas;14,21;Liquidazione Fattura Nr. EX39073/2017  del 07/08/2017 - FORNITURA RISCALDAMENTO SCUOLA PRIMARIA E SECONDARIA DI PRIMO GRADO DI VINCI;2996;1;3;2;5;6
ARNO MANETTI ASCENSORI S.R.L.;13/09/2017;Manutenzione ordinaria e riparazioni di impianti e macchinari;61,05;IVA-Liquidazione Fattura Nr. 2124  del 18/07/2017 (di cui Split per euro 61,05) - Manut. imp. ascensore sedi istituzionali, scuole, villa Reghini, RSA, palasport per il 40% uso istituzionale-1� SEM. 2017;2997;1;3;2;9;4
ARNO MANETTI ASCENSORI S.R.L.;13/09/2017;Manutenzione ordinaria e riparazioni di impianti e macchinari;277,50;Liquidazione Fattura Nr. 2124  del 18/07/2017 - Manut. imp. ascensore sedi istituzionali, scuole, villa Reghini, RSA, palasport per il 40% uso istituzionale-1� SEM. 2017;2997;1;3;2;9;4
ACQUE S.P.A.;13/09/2017;Acqua;9,85;IVA - Liquidazione Fattura Nr. 6017012000009766  del 23/08/2017 (di cui Split per euro 9,85) - FORNITURA ACQUA POTABILE SCUOLA PRIMARIA DI VINCI;2998;1;3;2;5;5
ACQUE S.P.A.;13/09/2017;Acqua;98,45;Liquidazione Fattura Nr. 6017012000009766  del 23/08/2017 - FORNITURA ACQUA POTABILE SCUOLA PRIMARIA DI VINCI;2998;1;3;2;5;5
ENERGETIC S.P.A.;13/09/2017;Gas;6,25;IVA - iquidazione Fattura Nr. EX39019/2017  del 07/08/2017 (di cui Split per euro 6,25) - FORNITURA RISCALDAMENTO SCUOLA SECONDARIA DI PRIMO GRADO DI SOVIGLIANA Fattura Nr. EX39019/2017 del 07-08-2017;2999;1;3;2;5;6
ENERGETIC S.P.A.;13/09/2017;Gas;3,13;IVA - Liquidazione Fattura Nr. EX39073/2017  del 07/08/2017 - FORNITURA RISCALDAMENTO SCUOLA PRIMARIA E SECONDARIA DI PRIMO GRADO DI VINCI;2999;1;3;2;5;6
ENERGETIC S.P.A.;13/09/2017;Gas;28,43;Liquidazione Fattura Nr. EX39019/2017  del 07/08/2017 - FORNITURA RISCALDAMENTO SCUOLA SECONDARIA DI PRIMO GRADO DI SOVIGLIANA;2999;1;3;2;5;6
ENERGETIC S.P.A.;13/09/2017;Gas;14,22;Liquidazione Fattura Nr. EX39073/2017  del 07/08/2017 - FORNITURA RISCALDAMENTO SCUOLA PRIMARIA E SECONDARIA DI PRIMO GRADO DI VINCI;2999;1;3;2;5;6
ACQUE S.P.A.;13/09/2017;Acqua;99,44;IVA - Liquidazione Fattura Nr. 6017012000009339  del 17/08/2017 (di cui Split per euro 99,44) - FORNITURA ACQUA POTABILE SCUOLA SECONDARIA DI SOVIGLIANA;3000;1;3;2;5;5
ACQUE S.P.A.;13/09/2017;Acqua;54,14;IVA - Liquidazione Fattura Nr. 6017012000009788  del 24/08/2017 (di cui Split per euro 54,14) - FORNITURA ACQUA POTABILE SCUOLA SECONDARIA DI VINCI;3000;1;3;2;5;5
ACQUE S.P.A.;13/09/2017;Acqua;994,42;Liquidazione Fattura Nr. 6017012000009339  del 17/08/2017 - FORNITURA ACQUA POTABILE SCUOLA SECONDARIA DI SOVIGLIANA;3000;1;3;2;5;5
ACQUE S.P.A.;13/09/2017;Acqua;541,42;Liquidazione Fattura Nr. 6017012000009788  del 24/08/2017 - FORNITURA ACQUA POTABILE SCUOLA SECONDARIA DI VINCI;3000;1;3;2;5;5
ARNO MANETTI ASCENSORI S.R.L.;13/09/2017;Manutenzione ordinaria e riparazioni di impianti e macchinari;61,05;IVA-Liquidazione Fattura Nr. 2124  del 18/07/2017 (di cui Split per euro 61,05) - Manut. imp. ascensore sedi istituzionali, scuole, villa Reghini, RSA, palasport per il 40% uso istituzionale-1� SEM. 2017;3001;1;3;2;9;4
ARNO MANETTI ASCENSORI S.R.L.;13/09/2017;Manutenzione ordinaria e riparazioni di impianti e macchinari;277,50;Liquidazione Fattura Nr. 2124  del 18/07/2017 - Manut. imp. ascensore sedi istituzionali, scuole, villa Reghini, RSA, palasport per il 40% uso istituzionale-1� SEM. 2017;3001;1;3;2;9;4
ACQUE S.P.A.;13/09/2017;Acqua;36,10;IVA - Liquidazione Fattura Nr. 6017012000009769  del 23/08/2017 - FORNITURA ACQUA POTABILE PALAZZINA;3002;1;3;2;5;5
ACQUE S.P.A.;13/09/2017;Acqua;361,02;Liquidazione Fattura Nr. 6017012000009769  del 23/08/2017 - FORNITURA ACQUA POTABILE PALAZZINA;3002;1;3;2;5;5
ACQUE S.P.A.;13/09/2017;Acqua;7,01;IVA - Liquidazione Fattura Nr. 6017012000009772  del 23/08/2017 (di cui Split per euro 7,01) - FORNITURA ACQUA POTABILE TEATRO DELLA MISERICORDIA;3003;1;3;2;5;5
ACQUE S.P.A.;13/09/2017;Acqua;70,12;Liquidazione Fattura Nr. 6017012000009772  del 23/08/2017 - FORNITURA ACQUA POTABILE TEATRO DELLA MISERICORDIA;3003;1;3;2;5;5
ARNO MANETTI ASCENSORI S.R.L.;13/09/2017;Manutenzione ordinaria e riparazioni di impianti e macchinari;122,10;IVA-Liquidazione Fattura Nr. 2123  del 18/07/2017 - Manut. imp. ascensore Museo, Casa Natale, Palazzina, Nido, Palasport per il 60% uso extrascolastico-1� SEM. 2017;3004;1;3;2;9;4
ARNO MANETTI ASCENSORI S.R.L.;13/09/2017;Manutenzione ordinaria e riparazioni di impianti e macchinari;555,00;Liquidazione Fattura Nr. 2123  del 18/07/2017 - Manut. imp. ascensore Museo, Casa Natale, Palazzina, Nido, Palasport per il 60% uso extrascolastico-1� SEM. 2017;3004;1;3;2;9;4
ARNO MANETTI ASCENSORI S.R.L.;13/09/2017;Manutenzione ordinaria e riparazioni di impianti e macchinari;44,22;IVA-Liquidazione Fattura Nr. 2123  del 18/07/2017 - Manut. imp. ascensore Museo, Casa Natale, Palazzina, Nido, Palasport per il 60% uso extrascolastico-1� SEM. 2017;3005;1;3;2;9;4
ARNO MANETTI ASCENSORI S.R.L.;13/09/2017;Manutenzione ordinaria e riparazioni di impianti e macchinari;29,48;IVA-Liquidazione Fattura Nr. 2124  del 18/07/2017 (di cui Split per euro 29,48) - Manut. imp. ascensore sedi istituzionali, scuole, villa Reghini, RSA, palasport per il 40% uso istituzionale-1� SEM. 2017;3005;1;3;2;9;4
ARNO MANETTI ASCENSORI S.R.L.;13/09/2017;Manutenzione ordinaria e riparazioni di impianti e macchinari;201,00;Liquidazione Fattura Nr. 2123  del 18/07/2017 - Manut. imp. ascensore Museo, Casa Natale, Palazzina, Nido, Palasport per il 60% uso extrascolastico-1� SEM. 2017;3005;1;3;2;9;4
ARNO MANETTI ASCENSORI S.R.L.;13/09/2017;Manutenzione ordinaria e riparazioni di impianti e macchinari;134,00;Liquidazione Fattura Nr. 2124  del 18/07/2017 - Manut. imp. ascensore sedi istituzionali, scuole, villa Reghini, RSA, palasport per il 40% uso istituzionale-1� SEM. 2017;3005;1;3;2;9;4
ACQUE S.P.A.;13/09/2017;Acqua;17,62;IVA - Liquidazione Fattura Nr. 6017012000009269  del 16/08/2017 (di cui Split per euro 17,62) - FORNITURA ACQUA POTABILE PALASPORT 40%;3006;1;3;2;5;5
ACQUE S.P.A.;13/09/2017;Acqua;26,29;IVA - Liquidazione Fattura Nr. 6017012000009269  del 16/08/2017 (di cui Split per euro 43,91) - FORNITURA ACQUA POTABILE PALASPORT 60%;3006;1;3;2;5;5
ACQUE S.P.A.;13/09/2017;Acqua;175,60;Liquidazione Fattura Nr. 6017012000009269  del 16/08/2017 - FORNITURA ACQUA POTABILE PALASPORT 40%;3006;1;3;2;5;5
ACQUE S.P.A.;13/09/2017;Acqua;263,51;Liquidazione Fattura Nr. 6017012000009269  del 16/08/2017 - FORNITURA ACQUA POTABILE PALASPORT 60%;3006;1;3;2;5;5
ENERGETIC S.P.A.;13/09/2017;Gas;2,46;IVA - Liquidazione Fattura Nr. EX39077/2017  del 07/08/2017 - FORNITURA RISCALDAMENTO PALASPORT 40%;3007;1;3;2;5;6
ENERGETIC S.P.A.;13/09/2017;Gas;3,79;IVA - Liquidazione Fattura Nr. EX39077/2017  del 07/08/2017 - FORNITURA RISCALDAMENTO PALASPORT 60%;3007;1;3;2;5;6
ENERGETIC S.P.A.;13/09/2017;Gas;11,22;Liquidazione Fattura Nr. EX39077/2017  del 07/08/2017 - FORNITURA RISCALDAMENTO PALASPORT 40%;3007;1;3;2;5;6
ENERGETIC S.P.A.;13/09/2017;Gas;17,21;Liquidazione Fattura Nr. EX39077/2017  del 07/08/2017 - FORNITURA RISCALDAMENTO PALASPORT 60%;3007;1;3;2;5;6
ACQUE S.P.A.;13/09/2017;Acqua;3,10;IVA - Liquidazione Fattura Nr. 6017012000009221  del 16/08/2017 (di cui Split per euro 3,10) - FORNITURA ACQUA POTABILE FONT. VIA BIXIO;3008;1;3;2;5;5
ACQUE S.P.A.;13/09/2017;Acqua;1,71;IVA - Liquidazione Fattura Nr. 6017012000009222  del 16/08/2017 (di cui Split per euro 1,71) - FORNITURA ACQUA POTABILE FONTANELLO VIA N. SAURO;3008;1;3;2;5;5
ACQUE S.P.A.;13/09/2017;Acqua;43,56;IVA - Liquidazione Fattura Nr. 6017012000009379  del 17/08/2017 (di cui Split per euro 43,56) - FORNITURA ACQUA POTABILE FONTANELLO VIA EMPOLESE;3008;1;3;2;5;5
ACQUE S.P.A.;13/09/2017;Acqua;15,10;IVA - Liquidazione Fattura Nr. 6017012000009380  del 17/08/2017 (di cui Split per euro 15,10) - FORNITURA ACQUA POTABILE FONT. VIA MARMUGI;3008;1;3;2;5;5
ACQUE S.P.A.;13/09/2017;Acqua;3,05;IVA - Liquidazione Fattura Nr. 6017012000009381  del 17/08/2017 (di cui Split per euro 3,05) - FORNITURA ACQUA POTABILE FONTANA VIA TOGLIATTI;3008;1;3;2;5;5
ACQUE S.P.A.;13/09/2017;Acqua;0,18;IVA - Liquidazione Fattura Nr. 6017012000009382  del 17/08/2017 (di cui Split per euro 0,18) - FORNITURA ACQUA POTABILE IDRANTE VIA MARMUGI;3008;1;3;2;5;5
ACQUE S.P.A.;13/09/2017;Acqua;2,41;IVA - Liquidazione Fattura Nr. 6017012000009418  del 17/08/2017 (di cui Split per euro 2,41) - FORNITURA ACQUA POTABILE FONTANELLO VIA PIETRAMARINA;3008;1;3;2;5;5
ACQUE S.P.A.;13/09/2017;Acqua;3,10;IVA - Liquidazione Fattura Nr. 6017012000009768  del 23/08/2017 (di cui Split per euro 3,10) - FORNITURA ACQUA POTABILE FONT. VIA CERRETANA;3008;1;3;2;5;5
ACQUE S.P.A.;13/09/2017;Acqua;0,61;IVA - Liquidazione Fattura Nr. 6017012000009771  del 23/08/2017 (di cui Split per euro 0,61) - FORNITURA ACQUA POTABILE FONT. VIA G. CALVI;3008;1;3;2;5;5
ACQUE S.P.A.;13/09/2017;Acqua;30,99;Liquidazione Fattura Nr. 6017012000009221  del 16/08/2017 - FORNITURA ACQUA POTABILE FONT. VIA BIXIO;3008;1;3;2;5;5
ACQUE S.P.A.;13/09/2017;Acqua;17,12;Liquidazione Fattura Nr. 6017012000009222  del 16/08/2017 - FORNITURA ACQUA POTABILE FONTANELLO VIA N. SAURO;3008;1;3;2;5;5
ACQUE S.P.A.;13/09/2017;Acqua;435,57;Liquidazione Fattura Nr. 6017012000009379  del 17/08/2017 - FORNITURA ACQUA POTABILE FONTANELLO VIA EMPOLESE;3008;1;3;2;5;5
ACQUE S.P.A.;13/09/2017;Acqua;151,01;Liquidazione Fattura Nr. 6017012000009380  del 17/08/2017 - FORNITURA ACQUA POTABILE FONT. VIA MARMUGI;3008;1;3;2;5;5
ACQUE S.P.A.;13/09/2017;Acqua;30,50;Liquidazione Fattura Nr. 6017012000009381  del 17/08/2017 - FORNITURA ACQUA POTABILE FONTANA VIA TOGLIATTI;3008;1;3;2;5;5
ACQUE S.P.A.;13/09/2017;Acqua;1,77;Liquidazione Fattura Nr. 6017012000009382  del 17/08/2017 - FORNITURA ACQUA POTABILE IDRANTE VIA MARMUGI;3008;1;3;2;5;5
ACQUE S.P.A.;13/09/2017;Acqua;24,07;Liquidazione Fattura Nr. 6017012000009418  del 17/08/2017 - FORNITURA ACQUA POTABILE FONTANELLO VIA PIETRAMARINA;3008;1;3;2;5;5
ACQUE S.P.A.;13/09/2017;Acqua;30,99;Liquidazione Fattura Nr. 6017012000009768  del 23/08/2017 - FORNITURA ACQUA POTABILE FONT. VIA CERRETANA;3008;1;3;2;5;5
ACQUE S.P.A.;13/09/2017;Acqua;6,09;Liquidazione Fattura Nr. 6017012000009771  del 23/08/2017 - FORNITURA ACQUA POTABILE FONT. VIA G. CALVI;3008;1;3;2;5;5
ENERGETIC S.P.A.;13/09/2017;Gas;0,53;IVA - Liquidazione Fattura Nr. EX38992/2017  del 07/08/2017 (di cui Split per euro 0,53) - FORNITURA RISCALDAMENTO NIDO;3009;1;3;2;5;6
ENERGETIC S.P.A.;13/09/2017;Gas;2,39;Liquidazione Fattura Nr. EX38992/2017  del 07/08/2017 - FORNITURA RISCALDAMENTO NIDO;3009;1;3;2;5;6
ENERGETIC S.P.A.;13/09/2017;Gas;12,14;IVA - Liquidazione Fattura Nr. EX38993/2017  del 07/08/2017 (di cui Split per euro 12,14) - FORNITURA RISCALDAMENTO VILLA REGHINI;3010;1;3;2;5;6
ENERGETIC S.P.A.;13/09/2017;Gas;55,16;Liquidazione Fattura Nr. EX38993/2017  del 07/08/2017 - FORNITURA RISCALDAMENTO VILLA REGHINI;3010;1;3;2;5;6
ARNO MANETTI ASCENSORI S.R.L.;13/09/2017;Manutenzione ordinaria e riparazioni di impianti e macchinari;40,70;IVA-Liquidazione Fattura Nr. 2123  del 18/07/2017 - Manut. imp. ascensore Museo, Casa Natale, Palazzina, Nido, Palasport per il 60% uso extrascolastico-1� SEM. 2017;3011;1;3;2;9;4
ARNO MANETTI ASCENSORI S.R.L.;13/09/2017;Manutenzione ordinaria e riparazioni di impianti e macchinari;185,00;Liquidazione Fattura Nr. 2123  del 18/07/2017 - Manut. imp. ascensore Museo, Casa Natale, Palazzina, Nido, Palasport per il 60% uso extrascolastico-1� SEM. 2017;3011;1;3;2;9;4
ARNO MANETTI ASCENSORI S.R.L.;13/09/2017;Manutenzione ordinaria e riparazioni di impianti e macchinari;40,70;IVA-Liquidazione Fattura Nr. 2124  del 18/07/2017 (di cui Split per euro 40,70) - Manut. imp. ascensore sedi istituzionali, scuole, villa Reghini, RSA, palasport per il 40% uso istituzionale-1� SEM. 2017;3012;1;3;2;9;4
ARNO MANETTI ASCENSORI S.R.L.;13/09/2017;Manutenzione ordinaria e riparazioni di impianti e macchinari;185,00;Liquidazione Fattura Nr. 2124  del 18/07/2017 - Manut. imp. ascensore sedi istituzionali, scuole, villa Reghini, RSA, palasport per il 40% uso istituzionale-1� SEM. 2017;3012;1;3;2;9;4
ENERGETIC S.P.A.;13/09/2017;Gas;6,25;IVA - Liquidazione Fattura Nr. EX39034/2017  del 07/08/2017 (di cui Split per euro 6,25) - FORNITURA RISCALDAMENTO R.S.A.;3013;1;3;2;5;6
ENERGETIC S.P.A.;13/09/2017;Gas;28,43;Liquidazione Fattura Nr. EX39034/2017  del 07/08/2017 - FORNITURA RISCALDAMENTO R.S.A.;3013;1;3;2;5;6
ARNO MANETTI ASCENSORI S.R.L.;13/09/2017;Manutenzione ordinaria e riparazioni di impianti e macchinari;40,70;IVA-Liquidazione Fattura Nr. 2124  del 18/07/2017 (di cui Split per euro 40,70) - Manut. imp. ascensore sedi istituzionali, scuole, villa Reghini, RSA, palasport per il 40% uso istituzionale-1� SEM. 2017;3014;1;3;2;9;4
ARNO MANETTI ASCENSORI S.R.L.;13/09/2017;Manutenzione ordinaria e riparazioni di impianti e macchinari;185,00;Liquidazione Fattura Nr. 2124  del 18/07/2017 - Manut. imp. ascensore sedi istituzionali, scuole, villa Reghini, RSA, palasport per il 40% uso istituzionale-1� SEM. 2017;3014;1;3;2;9;4
STUDIO TECNICO SALVAGGIO MICHELE & MARCHETTI DANIELE;13/09/2017;Incarichi professionali per la realizzazione di investimenti;186,66;LIQUIDAZIONE FATTURA NR. 09/PA  DEL 13/07/2017 (DI CUI SPLIT PER EURO 33,66) - ACCONTO N1 PER PRESTAZIONI PROFESSIONALI RIFERITE AL PROGRAMMA DI EFFICIENTAMENTO E MANUTENZIONE IMPIANTO DI PUBBLICA ILLUMINAZIONE: INCARICO DI SUPPORTO AL RUP;3015;2;2;3;5;1
STUDIO TECNICO SALVAGGIO MICHELE & MARCHETTI DANIELE;13/09/2017;Incarichi professionali per la realizzazione di investimenti;3.111,00;LIQUIDAZIONE FATTURA NR. 09/PA  DEL 13/07/2017 (DI CUI SPLIT PER EURO 561,00) - ACCONTO N1 PER PRESTAZIONI PROFESSIONALI RIFERITE AL PROGRAMMA DI EFFICIENTAMENTO E MANUTENZIONE IMPIANTO DI PUBBLICA ILLUMINAZIONE: INCARICO DI SUPPORTO AL RU;3016;2;2;3;5;1
TOTALERG SPA;13/09/2017;Carburanti, combustibili e lubrificanti ;69,96;IVA-Liquidazione Fattura Nr. I7306907  del 31/07/2017 - FORNITURA CARBURANTI - LUGLIO 2017;3017;1;3;1;2;2
TOTALERG SPA;13/09/2017;Carburanti, combustibili e lubrificanti ;317,97;Liquidazione Fattura Nr. I7306907  del 31/07/2017 - FORNITURA CARBURANTI - LUGLIO 2017;3017;1;3;1;2;2
TOTALERG SPA;13/09/2017;Carburanti, combustibili e lubrificanti ;71,63;IVA-Liquidazione Fattura Nr. I7306907  del 31/07/2017 - FORNITURA CARBURANTI - LUGLIO 2017;3018;1;3;1;2;2
TOTALERG SPA;13/09/2017;Carburanti, combustibili e lubrificanti ;325,60;Liquidazione Fattura Nr. I7306907  del 31/07/2017 - FORNITURA CARBURANTI - LUGLIO 2017;3018;1;3;1;2;2
TOTALERG SPA;13/09/2017;Carburanti, combustibili e lubrificanti ;175,06;IVA-Liquidazione Fattura Nr. I7306907  del 31/07/2017 - FORNITURA CARBURANTI - LUGLIO 2017;3019;1;3;1;2;2
TOTALERG SPA;13/09/2017;Carburanti, combustibili e lubrificanti ;795,74;Liquidazione Fattura Nr. I7306907  del 31/07/2017 - FORNITURA CARBURANTI - LUGLIO 2017;3019;1;3;1;2;2
ISTITUTO GEOGRAFICO MILITARE;14/09/2017;Stampa e rilegatura;13,20;IVA Liquidazione Fattura Nr. PVFV0030058  del 28/06/2017 - FOTO AEREE SU CARTA;3020;1;3;2;13;4
VIRTUAL LOGIC SRL;14/09/2017;Attrezzature n.a.c.;217,36;IVA Liquidazione Fattura Nr. 345/2016  del 29/01/2016 - Vendita;3024;2;2;1;5;999
VIRTUAL LOGIC SRL;14/09/2017;Attrezzature n.a.c.;988,00;Liquidazione Fattura Nr. 345/2016 del 29/01/2016 - Vendita;3024;2;2;1;5;999
"PENSIONE PER CANI E GATTI ""CERTOSA"" S.R.L.";14/09/2017;Contratti di servizio per la lotta al randagismo ;285,71;IVA Liquidazione Fattura Nr. FATTPA 43_17  del 17/07/2017 (di cui Split per euro 285,71) - AGGIUDIC DEFINITIVA ED EFFICACE DELL'APPALTO DEL SERVIZIO DI RICOVERO, CUSTODIA, MANTENIMENTO E CURA DI CANI ABBANDONATI E FERITI AI SENSI DELLA LE;3025;1;3;2;15;11
"PENSIONE PER CANI E GATTI ""CERTOSA"" S.R.L.";14/09/2017;Contratti di servizio per la lotta al randagismo ;1.298,70;Liquidazione Fattura Nr. FATTPA 43_17  del 17/07/2017 - AGGIUDICAZIONE DEFINITIVA ED EFFICACE DELL'APPALTO DEL SERVIZIO DI RICOVERO, CUSTODIA, MANTENIMENTO E CURA DI CANI ABBANDONATI E FERITI AI SENSI DELLA LEGGE REGIONALE TOSCANA N. 59 DEL;3025;1;3;2;15;11
